Date of Payment,Expense type,Expense Area,Supplier,Transaction Number,Amount,Department and Entity,Department and Entity
15/08/2013,MATERIALS & SPARES,FUSION,A & J Non Ferrous,1900058676,490.00,United Kingdom Atomic Energy Authority,United Kingdom Atomic Energy Authority
19/08/2013,PLANT SPARES,FUSION,A D INSTALLATION LTD,5100292663,620.00,United Kingdom Atomic Energy Authority,United Kingdom Atomic Energy Authority
12/08/2013,PLANT SPARES,FUSION,A W CLARKE,5100292291,136.80,United Kingdom Atomic Energy Authority,United Kingdom Atomic Energy Authority
29/07/2013,PLANT SPARES,FUSION,A W CLARKE,5100291040,"3,912.00",United Kingdom Atomic Energy Authority,United Kingdom Atomic Energy Authority
31/07/2013,PLANT & EQUIPMENT,FUSION,AALCO LIMITED,5100291965,189.60,United Kingdom Atomic Energy Authority,United Kingdom Atomic Energy Authority
29/07/2013,PLANT & EQUIPMENT,FUSION,AALCO LIMITED,5100291914,252.70,United Kingdom Atomic Energy Authority,United Kingdom Atomic Energy Authority
05/08/2013,PLANT & EQUIPMENT,FUSION,AALCO LIMITED,5100292137,642.50,United Kingdom Atomic Energy Authority,United Kingdom Atomic Energy Authority
05/08/2013,PLANT & EQUIPMENT,FUSION,AALCO LIMITED,5100292136,"1,189.20",United Kingdom Atomic Energy Authority,United Kingdom Atomic Energy Authority
29/07/2013,PLANT & EQUIPMENT,FUSION,AALCO LIMITED,5100291962,"3,144.10",United Kingdom Atomic Energy Authority,United Kingdom Atomic Energy Authority
05/08/2013,PLANT & EQUIPMENT,FUSION,ABB LIMITED,5100291877,"1,960.00",United Kingdom Atomic Energy Authority,United Kingdom Atomic Energy Authority
29/07/2013,PLANT & EQUIPMENT,FUSION,ABB LIMITED,5100291876,"3,873.00",United Kingdom Atomic Energy Authority,United Kingdom Atomic Energy Authority
13/08/2013,PLANT & EQUIPMENT,FUSION,Absolute Data Services Ltd,1900058652,837.04,United Kingdom Atomic Energy Authority,United Kingdom Atomic Energy Authority
29/07/2013,MATERIALS & SPARES,FUSION,ADHECTIC LIMITED,5100291866,78.69,United Kingdom Atomic Energy Authority,United Kingdom Atomic Energy Authority
07/08/2013,MATERIALS & SPARES,FUSION,ADHECTIC LIMITED,5100291213,"1,159.76",United Kingdom Atomic Energy Authority,United Kingdom Atomic Energy Authority
12/08/2013,SECURITY AND EMERGENCY,PROPERTY,ADT FIRE & SECURITY PLC,5100292140,"5,518.00",United Kingdom Atomic Energy Authority,United Kingdom Atomic Energy Authority
05/08/2013,CONSUMABLES,FUSION,AGATE PRODUCTS LTD,5100292059,195.00,United Kingdom Atomic Energy Authority,United Kingdom Atomic Energy Authority
29/07/2013,GASES,FUSION,AIR PRODUCTS PLC,5100291650,18.30,United Kingdom Atomic Energy Authority,United Kingdom Atomic Energy Authority
12/08/2013,MATERIALS & SPARES,FUSION,ALLWELD SUPPLIES,5100292427,92.50,United Kingdom Atomic Energy Authority,United Kingdom Atomic Energy Authority
05/08/2013,MATERIALS & SPARES,FUSION,ALPHA ENGINEERING SUPPLIES,5100292128,1.19,United Kingdom Atomic Energy Authority,United Kingdom Atomic Energy Authority
05/08/2013,MATERIALS & SPARES,FUSION,ALPHA ENGINEERING SUPPLIES,5100292060,27.12,United Kingdom Atomic Energy Authority,United Kingdom Atomic Energy Authority
29/07/2013,MATERIALS & SPARES,FUSION,ALPHA ENGINEERING SUPPLIES,5100291911,162.00,United Kingdom Atomic Energy Authority,United Kingdom Atomic Energy Authority
05/08/2013,MATERIALS & SPARES,FUSION,ALPHA ENGINEERING SUPPLIES,5100292193,199.25,United Kingdom Atomic Energy Authority,United Kingdom Atomic Energy Authority
29/07/2013,MATERIALS & SPARES,FUSION,ALPHA ENGINEERING SUPPLIES,5100291910,210.83,United Kingdom Atomic Energy Authority,United Kingdom Atomic Energy Authority
29/07/2013,MATERIALS & SPARES,FUSION,ALPHA ENGINEERING SUPPLIES,5100291871,221.34,United Kingdom Atomic Energy Authority,United Kingdom Atomic Energy Authority
05/08/2013,MATERIALS & SPARES,FUSION,ALPHA ENGINEERING SUPPLIES,5100292129,384.55,United Kingdom Atomic Energy Authority,United Kingdom Atomic Energy Authority
29/07/2013,MATERIALS & SPARES,FUSION,ALPHA ENGINEERING SUPPLIES,5100291870,425.00,United Kingdom Atomic Energy Authority,United Kingdom Atomic Energy Authority
29/07/2013,MATERIALS & SPARES,FUSION,ALPHA ENGINEERING SUPPLIES,5100291966,551.00,United Kingdom Atomic Energy Authority,United Kingdom Atomic Energy Authority
12/08/2013,MATERIALS & SPARES,SUPPORT SERVICES,ALPHA PACKAGING,5100292416,266.00,United Kingdom Atomic Energy Authority,United Kingdom Atomic Energy Authority
19/08/2013,MATERIALS & SPARES,FUSION,ANIXTER (UK) LTD,5100292579,"1,090.00",United Kingdom Atomic Energy Authority,United Kingdom Atomic Energy Authority
29/07/2013,OPERATING LEASE,FUSION,ANNODATA BUSINESS COMMUNICATIONS,5100290829,"1,184.45",United Kingdom Atomic Energy Authority,United Kingdom Atomic Energy Authority
29/07/2013,OPERATING LEASE,FUSION,ANNODATA BUSINESS COMMUNICATIONS,5100290828,"2,070.00",United Kingdom Atomic Energy Authority,United Kingdom Atomic Energy Authority
05/08/2013,OPERATING LEASE,FUSION,ANNODATA BUSINESS COMMUNICATIONS,5100292116,"2,577.48",United Kingdom Atomic Energy Authority,United Kingdom Atomic Energy Authority
05/08/2013,PROFESSIONAL SERVICES,SUPPORT SERVICES,AON HEWITT LTD,5100292146,"20,588.97",United Kingdom Atomic Energy Authority,United Kingdom Atomic Energy Authority
29/07/2013,PROFESSIONAL SERVICES,SUPPORT SERVICES,AON HEWITT LTD,5100291883,"147,151.50",United Kingdom Atomic Energy Authority,United Kingdom Atomic Energy Authority
07/08/2013,PERSONAL PROTECTIVE EQUIPMENT,FUSION,ARCO LTD,5100292088,7.82,United Kingdom Atomic Energy Authority,United Kingdom Atomic Energy Authority
07/08/2013,PERSONAL PROTECTIVE EQUIPMENT,FUSION,ARCO LTD,5100292069,18.07,United Kingdom Atomic Energy Authority,United Kingdom Atomic Energy Authority
12/08/2013,PERSONAL PROTECTIVE EQUIPMENT,FUSION,ARCO LTD,5100292415,38.52,United Kingdom Atomic Energy Authority,United Kingdom Atomic Energy Authority
29/07/2013,PERSONAL PROTECTIVE EQUIPMENT,FUSION,ARCO LTD,5100291777,40.00,United Kingdom Atomic Energy Authority,United Kingdom Atomic Energy Authority
29/07/2013,PERSONAL PROTECTIVE EQUIPMENT,FUSION,ARCO LTD,5100291771,49.59,United Kingdom Atomic Energy Authority,United Kingdom Atomic Energy Authority
29/07/2013,PERSONAL PROTECTIVE EQUIPMENT,FUSION,ARCO LTD,5100291860,52.12,United Kingdom Atomic Energy Authority,United Kingdom Atomic Energy Authority
29/07/2013,PERSONAL PROTECTIVE EQUIPMENT,FUSION,ARCO LTD,5100291859,54.47,United Kingdom Atomic Energy Authority,United Kingdom Atomic Energy Authority
12/08/2013,PERSONAL PROTECTIVE EQUIPMENT,FUSION,ARCO LTD,5100292410,61.56,United Kingdom Atomic Energy Authority,United Kingdom Atomic Energy Authority
07/08/2013,PERSONAL PROTECTIVE EQUIPMENT,FUSION,ARCO LTD,5100292100,71.00,United Kingdom Atomic Energy Authority,United Kingdom Atomic Energy Authority
07/08/2013,PERSONAL PROTECTIVE EQUIPMENT,FUSION,ARCO LTD,5100292067,77.76,United Kingdom Atomic Energy Authority,United Kingdom Atomic Energy Authority
29/07/2013,PERSONAL PROTECTIVE EQUIPMENT,FUSION,ARCO LTD,5100291773,103.68,United Kingdom Atomic Energy Authority,United Kingdom Atomic Energy Authority
07/08/2013,PERSONAL PROTECTIVE EQUIPMENT,FUSION,ARCO LTD,5100292066,104.00,United Kingdom Atomic Energy Authority,United Kingdom Atomic Energy Authority
05/08/2013,PERSONAL PROTECTIVE EQUIPMENT,FUSION,ARCO LTD,5100292068,134.82,United Kingdom Atomic Energy Authority,United Kingdom Atomic Energy Authority
29/07/2013,PERSONAL PROTECTIVE EQUIPMENT,FUSION,ARCO LTD,5100291768,153.61,United Kingdom Atomic Energy Authority,United Kingdom Atomic Energy Authority
07/08/2013,PERSONAL PROTECTIVE EQUIPMENT,FUSION,ARCO LTD,5100292087,160.00,United Kingdom Atomic Energy Authority,United Kingdom Atomic Energy Authority
19/08/2013,PERSONAL PROTECTIVE EQUIPMENT,FUSION,ARCO LTD,5100292601,180.51,United Kingdom Atomic Energy Authority,United Kingdom Atomic Energy Authority
12/08/2013,PERSONAL PROTECTIVE EQUIPMENT,FUSION,ARCO LTD,5100290716,193.20,United Kingdom Atomic Energy Authority,United Kingdom Atomic Energy Authority
29/07/2013,PERSONAL PROTECTIVE EQUIPMENT,FUSION,ARCO LTD,5100291774,274.32,United Kingdom Atomic Energy Authority,United Kingdom Atomic Energy Authority
29/07/2013,PERSONAL PROTECTIVE EQUIPMENT,FUSION,ARCO LTD,5100291858,342.90,United Kingdom Atomic Energy Authority,United Kingdom Atomic Energy Authority
29/07/2013,PERSONAL PROTECTIVE EQUIPMENT,FUSION,ARCO LTD,5100291767,349.02,United Kingdom Atomic Energy Authority,United Kingdom Atomic Energy Authority
29/07/2013,PERSONAL PROTECTIVE EQUIPMENT,FUSION,ARCO LTD,5100291778,349.02,United Kingdom Atomic Energy Authority,United Kingdom Atomic Energy Authority
05/08/2013,PERSONAL PROTECTIVE EQUIPMENT,FUSION,ARCO LTD,5100292070,571.32,United Kingdom Atomic Energy Authority,United Kingdom Atomic Energy Authority
07/08/2013,PERSONAL PROTECTIVE EQUIPMENT,FUSION,ARCO LTD,5100292086,958.00,United Kingdom Atomic Energy Authority,United Kingdom Atomic Energy Authority
12/08/2013,PERSONAL PROTECTIVE EQUIPMENT,FUSION,ARCO LTD,5100292226,"1,641.00",United Kingdom Atomic Energy Authority,United Kingdom Atomic Energy Authority
29/07/2013,PERSONAL PROTECTIVE EQUIPMENT,FUSION,ARCO LTD,5100291766,"2,007.84",United Kingdom Atomic Energy Authority,United Kingdom Atomic Energy Authority
05/08/2013,PERSONAL PROTECTIVE EQUIPMENT,FUSION,ARCO WESSEX,5100292096,8.50,United Kingdom Atomic Energy Authority,United Kingdom Atomic Energy Authority
05/08/2013,PERSONAL PROTECTIVE EQUIPMENT,FUSION,ARCO WESSEX,5100292097,11.33,United Kingdom Atomic Energy Authority,United Kingdom Atomic Energy Authority
05/08/2013,PERSONAL PROTECTIVE EQUIPMENT,FUSION,ARCO WESSEX,5100292099,11.33,United Kingdom Atomic Energy Authority,United Kingdom Atomic Energy Authority
19/08/2013,PERSONAL PROTECTIVE EQUIPMENT,FUSION,ARCO WESSEX,5100292596,14.00,United Kingdom Atomic Energy Authority,United Kingdom Atomic Energy Authority
05/08/2013,PERSONAL PROTECTIVE EQUIPMENT,FUSION,ARCO WESSEX,5100292098,14.16,United Kingdom Atomic Energy Authority,United Kingdom Atomic Energy Authority
05/08/2013,PERSONAL PROTECTIVE EQUIPMENT,FUSION,ARCO WESSEX,5100292095,16.99,United Kingdom Atomic Energy Authority,United Kingdom Atomic Energy Authority
29/07/2013,PERSONAL PROTECTIVE EQUIPMENT,FUSION,ARCO WESSEX,5100291769,41.59,United Kingdom Atomic Energy Authority,United Kingdom Atomic Energy Authority
29/07/2013,PERSONAL PROTECTIVE EQUIPMENT,FUSION,ARCO WESSEX,5100291775,46.32,United Kingdom Atomic Energy Authority,United Kingdom Atomic Energy Authority
21/08/2013,PERSONAL PROTECTIVE EQUIPMENT,FUSION,ARCO WESSEX,5100292412,75.58,United Kingdom Atomic Energy Authority,United Kingdom Atomic Energy Authority
29/07/2013,PERSONAL PROTECTIVE EQUIPMENT,SUPPORT SERVICES,ARCO WESSEX,5100291776,80.19,United Kingdom Atomic Energy Authority,United Kingdom Atomic Energy Authority
19/08/2013,PERSONAL PROTECTIVE EQUIPMENT,SUPPORT SERVICES,ARCO WESSEX,5100292725,181.51,United Kingdom Atomic Energy Authority,United Kingdom Atomic Energy Authority
22/08/2013,PERSONAL PROTECTION EQUIPMENT,SUPPORT SERVICES,Army And Workwear,1900058714,25.49,United Kingdom Atomic Energy Authority,United Kingdom Atomic Energy Authority
29/07/2013,STATIONERY,FUSION,ARTISAN LITHO PRINT  DESIGN,5100291902,"1,184.00",United Kingdom Atomic Energy Authority,United Kingdom Atomic Energy Authority
12/08/2013,INSPECTION SERVICES,SUPPORT SERVICES,ASHDALE ENGINEERING,5100292147,"11,700.00",United Kingdom Atomic Energy Authority,United Kingdom Atomic Energy Authority
05/08/2013,MATERIALS & SPARES,FUSION,ASO GLASBLOWING LTD,5100292091,336.00,United Kingdom Atomic Energy Authority,United Kingdom Atomic Energy Authority
29/07/2013,PLANT SPARES,FUSION,AURIGA EUROPE PLC,5100291958,44.60,United Kingdom Atomic Energy Authority,United Kingdom Atomic Energy Authority
12/08/2013,PLANT SPARES,FUSION,AURIGA EUROPE PLC,5100292476,65.30,United Kingdom Atomic Energy Authority,United Kingdom Atomic Energy Authority
19/08/2013,CATERING,PROPERTY,AVENANCE PLC,5100292565,"-1,318.44",United Kingdom Atomic Energy Authority,United Kingdom Atomic Energy Authority
19/08/2013,CATERING,PROPERTY,AVENANCE PLC,5100292552,-675.24,United Kingdom Atomic Energy Authority,United Kingdom Atomic Energy Authority
19/08/2013,CATERING,PROPERTY,AVENANCE PLC,5100292755,-466.11,United Kingdom Atomic Energy Authority,United Kingdom Atomic Energy Authority
19/08/2013,CATERING,PROPERTY,AVENANCE PLC,5100292631,130.05,United Kingdom Atomic Energy Authority,United Kingdom Atomic Energy Authority
19/08/2013,CATERING,SUPPORT SERVICES,AVENANCE PLC,5100292633,545.50,United Kingdom Atomic Energy Authority,United Kingdom Atomic Energy Authority
19/08/2013,CATERING,PROPERTY,AVENANCE PLC,5100292568,689.09,United Kingdom Atomic Energy Authority,United Kingdom Atomic Energy Authority
12/08/2013,CATERING,FUSION,AVENANCE PLC,5100292283,692.83,United Kingdom Atomic Energy Authority,United Kingdom Atomic Energy Authority
19/08/2013,CATERING,PROPERTY,AVENANCE PLC,5100292564,733.87,United Kingdom Atomic Energy Authority,United Kingdom Atomic Energy Authority
19/08/2013,CATERING,PROPERTY,AVENANCE PLC,5100292561,734.94,United Kingdom Atomic Energy Authority,United Kingdom Atomic Energy Authority
19/08/2013,CATERING,FUSION,AVENANCE PLC,5100292567,"1,140.00",United Kingdom Atomic Energy Authority,United Kingdom Atomic Energy Authority
07/08/2013,CATERING,FUSION,AVENANCE PLC,5100292243,"2,380.97",United Kingdom Atomic Energy Authority,United Kingdom Atomic Energy Authority
12/08/2013,CATERING,PROPERTY,AVENANCE PLC,5100292421,"3,260.75",United Kingdom Atomic Energy Authority,United Kingdom Atomic Energy Authority
12/08/2013,CATERING,PROPERTY,AVENANCE PLC,5100292284,"6,148.15",United Kingdom Atomic Energy Authority,United Kingdom Atomic Energy Authority
29/07/2013,PRINTING & GRAPHICS,FUSION,AWARDFRAMERS INTERNATIONAL,5100291901,122.00,United Kingdom Atomic Energy Authority,United Kingdom Atomic Energy Authority
14/08/2013,IT EQUIPMENT NON CAPITAL,FUSION,AZTEX SOLUTIONS LIMITED,5100292380,"11,054.40",United Kingdom Atomic Energy Authority,United Kingdom Atomic Energy Authority
05/08/2013,TREATED WATER,FUSION,B & V WATER TREATMENT,5100292080,"1,234.88",United Kingdom Atomic Energy Authority,United Kingdom Atomic Energy Authority
14/08/2013,CONFERENCES/MEETINGS,FUSION,Barcelo Turismo y Congresos SL,1900058668,743.96,United Kingdom Atomic Energy Authority,United Kingdom Atomic Energy Authority
20/08/2013,CONFERENCES/MEETINGS,FUSION,Barcelo Turismo y Congresos SL,1900058688,"2,063.26",United Kingdom Atomic Energy Authority,United Kingdom Atomic Energy Authority
05/08/2013,REPAIRS & MAINTENANCE,FUSION,BATT CABLES PLC,5100292114,632.00,United Kingdom Atomic Energy Authority,United Kingdom Atomic Energy Authority
14/08/2013,REPAIRS & MAINTENANCE,FUSION,BATT CABLES PLC,5100292623,"39,397.50",United Kingdom Atomic Energy Authority,United Kingdom Atomic Energy Authority
14/08/2013,COMPUTER REPAIRS,FUSION,BCAS LTD,5100292304,36.48,United Kingdom Atomic Energy Authority,United Kingdom Atomic Energy Authority
07/08/2013,REPAIRS & MAINTENANCE,FUSION,BEAVER 84 LIMITED,5100292230,440.62,United Kingdom Atomic Energy Authority,United Kingdom Atomic Energy Authority
19/08/2013,PLANT & EQUIPMENT,FUSION,BELLEVILLE SPRINGS LTD,5100292680,50.92,United Kingdom Atomic Energy Authority,United Kingdom Atomic Energy Authority
12/08/2013,CLEANING,FUSION,BIFFA RECYCLING,5100292444,14.00,United Kingdom Atomic Energy Authority,United Kingdom Atomic Energy Authority
12/08/2013,CLEANING,FUSION,BIFFA RECYCLING,5100292445,14.00,United Kingdom Atomic Energy Authority,United Kingdom Atomic Energy Authority
12/08/2013,CLEANING,FUSION,BIFFA RECYCLING,5100292446,14.00,United Kingdom Atomic Energy Authority,United Kingdom Atomic Energy Authority
12/08/2013,CLEANING,FUSION,BIFFA RECYCLING,5100292451,14.00,United Kingdom Atomic Energy Authority,United Kingdom Atomic Energy Authority
29/07/2013,CLEANING,FUSION,BIFFA RECYCLING,5100291388,17.50,United Kingdom Atomic Energy Authority,United Kingdom Atomic Energy Authority
29/07/2013,CLEANING,FUSION,BIFFA RECYCLING,5100291400,17.50,United Kingdom Atomic Energy Authority,United Kingdom Atomic Energy Authority
29/07/2013,CLEANING,FUSION,BIFFA RECYCLING,5100291401,17.50,United Kingdom Atomic Energy Authority,United Kingdom Atomic Energy Authority
12/08/2013,CLEANING,FUSION,BIFFA RECYCLING,5100292453,19.50,United Kingdom Atomic Energy Authority,United Kingdom Atomic Energy Authority
29/07/2013,CLEANING,FUSION,BIFFA RECYCLING,5100291387,35.00,United Kingdom Atomic Energy Authority,United Kingdom Atomic Energy Authority
19/08/2013,CLEANING,PROPERTY,BIFFA RECYCLING,5100292563,91.31,United Kingdom Atomic Energy Authority,United Kingdom Atomic Energy Authority
12/08/2013,CLEANING,FUSION,BIFFA RECYCLING,5100292450,97.50,United Kingdom Atomic Energy Authority,United Kingdom Atomic Energy Authority
29/07/2013,CLEANING,FUSION,BIFFA RECYCLING,5100291397,101.00,United Kingdom Atomic Energy Authority,United Kingdom Atomic Energy Authority
12/08/2013,CLEANING,FUSION,BIFFA RECYCLING,5100292449,181.00,United Kingdom Atomic Energy Authority,United Kingdom Atomic Energy Authority
29/07/2013,CLEANING,FUSION,BIFFA RECYCLING,5100291392,181.90,United Kingdom Atomic Energy Authority,United Kingdom Atomic Energy Authority
29/07/2013,CLEANING,FUSION,BIFFA RECYCLING,5100291395,184.50,United Kingdom Atomic Energy Authority,United Kingdom Atomic Energy Authority
12/08/2013,CLEANING,FUSION,BIFFA RECYCLING,5100292442,190.00,United Kingdom Atomic Energy Authority,United Kingdom Atomic Energy Authority
29/07/2013,CLEANING,FUSION,BIFFA RECYCLING,5100291391,202.50,United Kingdom Atomic Energy Authority,United Kingdom Atomic Energy Authority
12/08/2013,CLEANING,FUSION,BIFFA RECYCLING,5100292443,250.50,United Kingdom Atomic Energy Authority,United Kingdom Atomic Energy Authority
12/08/2013,CLEANING,FUSION,BIFFA RECYCLING,5100292448,296.00,United Kingdom Atomic Energy Authority,United Kingdom Atomic Energy Authority
29/07/2013,CLEANING,FUSION,BIFFA RECYCLING,5100291394,299.50,United Kingdom Atomic Energy Authority,United Kingdom Atomic Energy Authority
29/07/2013,CLEANING,FUSION,BIFFA RECYCLING,5100291399,300.00,United Kingdom Atomic Energy Authority,United Kingdom Atomic Energy Authority
29/07/2013,CLEANING,FUSION,BIFFA RECYCLING,5100291390,336.50,United Kingdom Atomic Energy Authority,United Kingdom Atomic Energy Authority
29/07/2013,CLEANING,FUSION,BIFFA RECYCLING,5100291398,586.50,United Kingdom Atomic Energy Authority,United Kingdom Atomic Energy Authority
29/07/2013,CLEANING,FUSION,BIFFA RECYCLING,5100291389,600.50,United Kingdom Atomic Energy Authority,United Kingdom Atomic Energy Authority
12/08/2013,CLEANING,FUSION,BIFFA RECYCLING,5100292452,652.00,United Kingdom Atomic Energy Authority,United Kingdom Atomic Energy Authority
12/08/2013,CLEANING,FUSION,BIFFA RECYCLING,5100292447,860.00,United Kingdom Atomic Energy Authority,United Kingdom Atomic Energy Authority
29/07/2013,CLEANING,FUSION,BIFFA RECYCLING,5100291393,863.50,United Kingdom Atomic Energy Authority,United Kingdom Atomic Energy Authority
14/08/2013,LEGAL FEES,SUPPORT SERVICES,BIGGART BAILLIE,5100292571,153.00,United Kingdom Atomic Energy Authority,United Kingdom Atomic Energy Authority
14/08/2013,LEGAL FEES,SUPPORT SERVICES,BIGGART BAILLIE,5100292574,303.50,United Kingdom Atomic Energy Authority,United Kingdom Atomic Energy Authority
14/08/2013,LEGAL FEES,SUPPORT SERVICES,BIGGART BAILLIE,5100292573,595.00,United Kingdom Atomic Energy Authority,United Kingdom Atomic Energy Authority
31/07/2013,STATIONERY,FUSION,BISHOPS PRINTERS,5100292057,664.00,United Kingdom Atomic Energy Authority,United Kingdom Atomic Energy Authority
12/08/2013,LAUNDRY,FUSION,BLUEBELL LAUNDRY,5100292301,164.75,United Kingdom Atomic Energy Authority,United Kingdom Atomic Energy Authority
12/08/2013,IT EQUIPMENT NON CAPITAL,FUSION,BLUEFORT SECURITY,5100292229,"7,799.00",United Kingdom Atomic Energy Authority,United Kingdom Atomic Energy Authority
14/08/2013,PROFESSIONAL SERVICES,FUSION,BNS NUCLEAR SERVICES,5100292475,"56,486.99",United Kingdom Atomic Energy Authority,United Kingdom Atomic Energy Authority
31/07/2013,PROFESSIONAL SERVICES,FUSION,BNS NUCLEAR SERVICES,5100291982,"86,165.99",United Kingdom Atomic Energy Authority,United Kingdom Atomic Energy Authority
29/07/2013,GASES,FUSION,BOC LTD,5100291796,4.72,United Kingdom Atomic Energy Authority,United Kingdom Atomic Energy Authority
14/08/2013,GASES,FUSION,BOC LTD,5100292499,22.80,United Kingdom Atomic Energy Authority,United Kingdom Atomic Energy Authority
12/08/2013,GASES,FUSION,BOC LTD,5100292145,31.20,United Kingdom Atomic Energy Authority,United Kingdom Atomic Energy Authority
31/07/2013,GASES,FUSION,BOC LTD,5100291994,51.36,United Kingdom Atomic Energy Authority,United Kingdom Atomic Energy Authority
12/08/2013,GASES,FUSION,BOC LTD,5100292505,60.79,United Kingdom Atomic Energy Authority,United Kingdom Atomic Energy Authority
12/08/2013,GASES,FUSION,BOC LTD,5100292503,70.66,United Kingdom Atomic Energy Authority,United Kingdom Atomic Energy Authority
31/07/2013,GASES,FUSION,BOC LTD,5100291998,76.84,United Kingdom Atomic Energy Authority,United Kingdom Atomic Energy Authority
14/08/2013,GASES,FUSION,BOC LTD,5100292434,76.84,United Kingdom Atomic Energy Authority,United Kingdom Atomic Energy Authority
21/08/2013,GASES,FUSION,BOC LTD,5100292729,81.24,United Kingdom Atomic Energy Authority,United Kingdom Atomic Energy Authority
12/08/2013,GASES,FUSION,BOC LTD,5100292496,112.83,United Kingdom Atomic Energy Authority,United Kingdom Atomic Energy Authority
21/08/2013,GASES,FUSION,BOC LTD,5100292500,153.75,United Kingdom Atomic Energy Authority,United Kingdom Atomic Energy Authority
12/08/2013,GASES,FUSION,BOC LTD,5100292506,188.94,United Kingdom Atomic Energy Authority,United Kingdom Atomic Energy Authority
29/07/2013,GASES,FUSION,BOC LTD,5100291865,194.07,United Kingdom Atomic Energy Authority,United Kingdom Atomic Energy Authority
14/08/2013,GASES,FUSION,BOC LTD,5100292495,194.24,United Kingdom Atomic Energy Authority,United Kingdom Atomic Energy Authority
12/08/2013,GASES,FUSION,BOC LTD,5100292502,199.27,United Kingdom Atomic Energy Authority,United Kingdom Atomic Energy Authority
14/08/2013,GASES,FUSION,BOC LTD,5100292498,208.51,United Kingdom Atomic Energy Authority,United Kingdom Atomic Energy Authority
12/08/2013,GASES,FUSION,BOC LTD,5100292144,211.28,United Kingdom Atomic Energy Authority,United Kingdom Atomic Energy Authority
12/08/2013,GASES,FUSION,BOC LTD,5100292504,222.11,United Kingdom Atomic Energy Authority,United Kingdom Atomic Energy Authority
12/08/2013,GASES,FUSION,BOC LTD,5100292497,227.80,United Kingdom Atomic Energy Authority,United Kingdom Atomic Energy Authority
14/08/2013,GASES,FUSION,BOC LTD,5100292604,243.05,United Kingdom Atomic Energy Authority,United Kingdom Atomic Energy Authority
14/08/2013,GASES,FUSION,BOC LTD,5100292501,425.65,United Kingdom Atomic Energy Authority,United Kingdom Atomic Energy Authority
05/08/2013,GASES,FUSION,BOC LTD,5100292143,511.20,United Kingdom Atomic Energy Authority,United Kingdom Atomic Energy Authority
14/08/2013,GASES,FUSION,BOC LTD,5100292433,"1,548.75",United Kingdom Atomic Energy Authority,United Kingdom Atomic Energy Authority
14/08/2013,GASES,FUSION,BOC LTD,5100292084,"8,946.60",United Kingdom Atomic Energy Authority,United Kingdom Atomic Energy Authority
14/08/2013,GASES,FUSION,BOC LTD,5100292141,"10,974.00",United Kingdom Atomic Energy Authority,United Kingdom Atomic Energy Authority
29/07/2013,GASES,FUSION,BOC LTD,5100291795,"12,489.90",United Kingdom Atomic Energy Authority,United Kingdom Atomic Energy Authority
14/08/2013,GASES,FUSION,BOC LTD,5100292432,"21,315.60",United Kingdom Atomic Energy Authority,United Kingdom Atomic Energy Authority
19/08/2013,GASES,FUSION,BOC LTD,5100292600,"34,189.66",United Kingdom Atomic Energy Authority,United Kingdom Atomic Energy Authority
02/08/2013,COMPENSATION & LEGAL FEES,SUPPORT SERVICES,Boyes Turner LLP,1900058599,"6,005.60",United Kingdom Atomic Energy Authority,United Kingdom Atomic Energy Authority
12/08/2013,TRAINING COURSE FEES,SUPPORT SERVICES,BPP LEARNING MEDIA LTD,5100292344,317.51,United Kingdom Atomic Energy Authority,United Kingdom Atomic Energy Authority
12/08/2013,PLANT SPARES,FUSION,BRITE PRECISION,5100292292,"8,265.96",United Kingdom Atomic Energy Authority,United Kingdom Atomic Energy Authority
19/08/2013,UTILITIES/ELECTRICITY,PROPERTY,BRITISH GAS BUSINESS,5100292007,-101.09,United Kingdom Atomic Energy Authority,United Kingdom Atomic Energy Authority
19/08/2013,UTILITIES/ELECTRICITY,PROPERTY,BRITISH GAS BUSINESS,5100292002,-100.84,United Kingdom Atomic Energy Authority,United Kingdom Atomic Energy Authority
19/08/2013,UTILITIES/ELECTRICITY,PROPERTY,BRITISH GAS BUSINESS,5100292652,22.14,United Kingdom Atomic Energy Authority,United Kingdom Atomic Energy Authority
19/08/2013,UTILITIES/ELECTRICITY,PROPERTY,BRITISH GAS BUSINESS,5100292647,69.52,United Kingdom Atomic Energy Authority,United Kingdom Atomic Energy Authority
19/08/2013,UTILITIES/ELECTRICITY,PROPERTY,BRITISH GAS BUSINESS,5100292648,80.12,United Kingdom Atomic Energy Authority,United Kingdom Atomic Energy Authority
19/08/2013,UTILITIES/ELECTRICITY,PROPERTY,BRITISH GAS BUSINESS,5100292010,111.62,United Kingdom Atomic Energy Authority,United Kingdom Atomic Energy Authority
19/08/2013,UTILITIES/ELECTRICITY,PROPERTY,BRITISH GAS BUSINESS,5100292649,208.03,United Kingdom Atomic Energy Authority,United Kingdom Atomic Energy Authority
19/08/2013,UTILITIES/ELECTRICITY,PROPERTY,BRITISH GAS BUSINESS,5100292650,242.74,United Kingdom Atomic Energy Authority,United Kingdom Atomic Energy Authority
19/08/2013,UTILITIES/ELECTRICITY,PROPERTY,BRITISH GAS BUSINESS,5100292654,265.22,United Kingdom Atomic Energy Authority,United Kingdom Atomic Energy Authority
19/08/2013,UTILITIES/ELECTRICITY,PROPERTY,BRITISH GAS BUSINESS,5100292643,271.59,United Kingdom Atomic Energy Authority,United Kingdom Atomic Energy Authority
19/08/2013,UTILITIES/ELECTRICITY,PROPERTY,BRITISH GAS BUSINESS,5100292653,446.84,United Kingdom Atomic Energy Authority,United Kingdom Atomic Energy Authority
19/08/2013,UTILITIES/ELECTRICITY,PROPERTY,BRITISH GAS BUSINESS,5100292651,572.19,United Kingdom Atomic Energy Authority,United Kingdom Atomic Energy Authority
12/08/2013,CONSUMABLES,FUSION,BRITISH SALT LTD,5100292419,"2,872.37",United Kingdom Atomic Energy Authority,United Kingdom Atomic Energy Authority
14/08/2013,BOOKS & PUBLICATIONS,SUPPORT SERVICES,BRITISH STANDARDS INSTITUTION,5100292172,132.00,United Kingdom Atomic Energy Authority,United Kingdom Atomic Energy Authority
19/08/2013,BOOKS & PUBLICATIONS,FUSION,BRITISH STANDARDS INSTITUTION,5100292610,"5,727.00",United Kingdom Atomic Energy Authority,United Kingdom Atomic Energy Authority
19/08/2013,BOOKS & PUBLICATIONS,FUSION,BRITISH STANDARDS INSTITUTION,5100292384,"9,615.00",United Kingdom Atomic Energy Authority,United Kingdom Atomic Energy Authority
05/08/2013,REPAIRS & MAINTENANCE,FUSION,BSA MACHINE TOOLS LTD,5100291868,"1,598.87",United Kingdom Atomic Energy Authority,United Kingdom Atomic Energy Authority
05/08/2013,REPAIRS & MAINTENANCE,FUSION,BSA MACHINE TOOLS LTD,5100291869,"5,161.21",United Kingdom Atomic Energy Authority,United Kingdom Atomic Energy Authority
14/08/2013,PROFESSIONAL SERVICES,PROPERTY,BSP CONSULTING,5100292431,800.00,United Kingdom Atomic Energy Authority,United Kingdom Atomic Energy Authority
29/07/2013,MATERIALS & SPARES,FUSION,BSS OXFORD,5100290915,130.80,United Kingdom Atomic Energy Authority,United Kingdom Atomic Energy Authority
19/08/2013,PERSONAL PROTECTIVE EQUIPMENT,FUSION,BUCK & HICKMAN LTD,5100291921,-66.79,United Kingdom Atomic Energy Authority,United Kingdom Atomic Energy Authority
19/08/2013,PERSONAL PROTECTIVE EQUIPMENT,FUSION,BUCK & HICKMAN LTD,5100291922,-30.49,United Kingdom Atomic Energy Authority,United Kingdom Atomic Energy Authority
19/08/2013,PERSONAL PROTECTIVE EQUIPMENT,FUSION,BUCK & HICKMAN LTD,5100292751,-20.24,United Kingdom Atomic Energy Authority,United Kingdom Atomic Energy Authority
29/07/2013,PERSONAL PROTECTIVE EQUIPMENT,FUSION,BUCK & HICKMAN LTD,5100291917,-15.45,United Kingdom Atomic Energy Authority,United Kingdom Atomic Energy Authority
19/08/2013,PERSONAL PROTECTIVE EQUIPMENT,FUSION,BUCK & HICKMAN LTD,5100291918,29.20,United Kingdom Atomic Energy Authority,United Kingdom Atomic Energy Authority
29/07/2013,PERSONAL PROTECTIVE EQUIPMENT,FUSION,BUCK & HICKMAN LTD,5100291146,56.89,United Kingdom Atomic Energy Authority,United Kingdom Atomic Energy Authority
29/07/2013,PERSONAL PROTECTIVE EQUIPMENT,FUSION,BUCK & HICKMAN LTD,5100291652,113.78,United Kingdom Atomic Energy Authority,United Kingdom Atomic Energy Authority
29/07/2013,PERSONAL PROTECTIVE EQUIPMENT,FUSION,BUCK & HICKMAN LTD,5100291915,134.33,United Kingdom Atomic Energy Authority,United Kingdom Atomic Energy Authority
19/08/2013,PERSONAL PROTECTIVE EQUIPMENT,FUSION,BUCK & HICKMAN LTD,5100291919,159.62,United Kingdom Atomic Energy Authority,United Kingdom Atomic Energy Authority
19/08/2013,PERSONAL PROTECTIVE EQUIPMENT,FUSION,BUCK & HICKMAN LTD,5100291920,176.36,United Kingdom Atomic Energy Authority,United Kingdom Atomic Energy Authority
12/08/2013,PERSONAL PROTECTIVE EQUIPMENT,FUSION,BUCK & HICKMAN LTD,5100292254,308.03,United Kingdom Atomic Energy Authority,United Kingdom Atomic Energy Authority
29/07/2013,PERSONAL PROTECTIVE EQUIPMENT,FUSION,BUCK & HICKMAN LTD,5100291144,376.03,United Kingdom Atomic Energy Authority,United Kingdom Atomic Energy Authority
29/07/2013,MATERIALS & SPARES,FUSION,BUDGET FORKTRUCKS LTD,5100291849,268.67,United Kingdom Atomic Energy Authority,United Kingdom Atomic Energy Authority
29/07/2013,MATERIALS & SPARES,FUSION,BUDGET FORKTRUCKS LTD,5100291845,390.00,United Kingdom Atomic Energy Authority,United Kingdom Atomic Energy Authority
05/08/2013,MATERIALS & SPARES,FUSION,BUDGET FORKTRUCKS LTD,5100291846,"1,196.00",United Kingdom Atomic Energy Authority,United Kingdom Atomic Energy Authority
12/08/2013,CATERING SUPPLIES,SUPPORT SERVICES,BWT UK LTD,5100292232,180.00,United Kingdom Atomic Energy Authority,United Kingdom Atomic Energy Authority
12/08/2013,CATERING SUPPLIES,SUPPORT SERVICES,BWT UK LTD,5100292231,"1,368.65",United Kingdom Atomic Energy Authority,United Kingdom Atomic Energy Authority
12/08/2013,MATERIALS & SPARES,FUSION,CANBERRA UK LTD,5100292425,665.00,United Kingdom Atomic Energy Authority,United Kingdom Atomic Energy Authority
19/08/2013,MATERIALS & SPARES,FUSION,CANBERRA UK LTD,5100292659,"1,412.00",United Kingdom Atomic Energy Authority,United Kingdom Atomic Energy Authority
12/08/2013,CONSUMABLES,FUSION,CAPARO TESTING TECHNOLOGIES,5100292300,360.00,United Kingdom Atomic Energy Authority,United Kingdom Atomic Energy Authority
19/08/2013,TRAVEL,SUPPORT SERVICES,CAPITA BUSINESS TRAVEL,5100292246,"28,146.51",United Kingdom Atomic Energy Authority,United Kingdom Atomic Energy Authority
29/07/2013,CONSUMABLES,FUSION,CARILLON INDUSTRIAL SERVICES LTD,5100291907,69.86,United Kingdom Atomic Energy Authority,United Kingdom Atomic Energy Authority
12/08/2013,CONSUMABLES,FUSION,CARILLON INDUSTRIAL SERVICES LTD,5100292316,82.57,United Kingdom Atomic Energy Authority,United Kingdom Atomic Energy Authority
29/07/2013,LEGAL FEES,SUPPORT SERVICES,CATER LEYDON MILLARD LTD,5100291948,175.00,United Kingdom Atomic Energy Authority,United Kingdom Atomic Energy Authority
29/07/2013,LEGAL FEES,SUPPORT SERVICES,CATER LEYDON MILLARD LTD,5100291947,210.00,United Kingdom Atomic Energy Authority,United Kingdom Atomic Energy Authority
29/07/2013,LEGAL FEES,SUPPORT SERVICES,CATER LEYDON MILLARD LTD,5100291946,"1,312.50",United Kingdom Atomic Energy Authority,United Kingdom Atomic Energy Authority
14/08/2013,MATERIALS & SPARES,FUSION,CBL ELECTRIC VEHICLES LTD,5100292309,284.80,United Kingdom Atomic Energy Authority,United Kingdom Atomic Energy Authority
19/08/2013,CONFERENCES/MEETINGS,SUPPORT SERVICES,CERN,1900058682,238.82,United Kingdom Atomic Energy Authority,United Kingdom Atomic Energy Authority
12/08/2013,LAUNDRY,FUSION,CLEAN LINEN SERVICES LTD,5100292255,80.90,United Kingdom Atomic Energy Authority,United Kingdom Atomic Energy Authority
19/08/2013,PROFESSIONAL SERVICES,SUPPORT SERVICES,CLYDE & CO LLP,5100292621,"1,010.50",United Kingdom Atomic Energy Authority,United Kingdom Atomic Energy Authority
19/08/2013,PROFESSIONAL SERVICES,SUPPORT SERVICES,CLYDE & CO LLP,5100292620,"1,034.00",United Kingdom Atomic Energy Authority,United Kingdom Atomic Energy Authority
12/08/2013,UTILITIES/GAS,PROPERTY,COFELY LTD,5100292285,"20,044.73",United Kingdom Atomic Energy Authority,United Kingdom Atomic Energy Authority
12/08/2013,UTILITIES/GAS,PROPERTY,COFELY LTD,5100292288,"26,582.50",United Kingdom Atomic Energy Authority,United Kingdom Atomic Energy Authority
12/08/2013,PLANT & EQUIPMENT,FUSION,COLE-PALMER INSTRUMENTAL COMPANY LTD,5100292352,497.95,United Kingdom Atomic Energy Authority,United Kingdom Atomic Energy Authority
31/07/2013,EFDA SECONDEE CONTRACT,FUSION,COMMISSARIAT L ENERGIE ATOMIQUE CEA,5100291378,"11,736.49",United Kingdom Atomic Energy Authority,United Kingdom Atomic Energy Authority
31/07/2013,COMPENSATION & LEGAL FEES,SUPPORT SERVICES,CLYDE & CO LLP,1900058586,"5,000.00",United Kingdom Atomic Energy Authority,United Kingdom Atomic Energy Authority
29/07/2013,REPAIRS & MAINTENANCE,FUSION,COMPRESSOR ENGINEERING LTD,5100291233,752.00,United Kingdom Atomic Energy Authority,United Kingdom Atomic Energy Authority
29/07/2013,PLANT SPARES,FUSION,CONDEC INDUSTRIAL MAINTENANCE,5100291879,325.00,United Kingdom Atomic Energy Authority,United Kingdom Atomic Energy Authority
29/07/2013,PLANT SPARES,FUSION,CONDEC INDUSTRIAL MAINTENANCE,5100291843,920.00,United Kingdom Atomic Energy Authority,United Kingdom Atomic Energy Authority
12/08/2013,PROFESSIONAL SERVICES,PROPERTY,CONNAUGHT COMPLIANCE SERVICES LTD,5100292235,456.00,United Kingdom Atomic Energy Authority,United Kingdom Atomic Energy Authority
12/08/2013,PROFESSIONAL SERVICES,PROPERTY,CONNAUGHT COMPLIANCE SERVICES LTD,5100292234,500.00,United Kingdom Atomic Energy Authority,United Kingdom Atomic Energy Authority
29/07/2013,PROFESSIONAL SERVICES,PROPERTY,CONNAUGHT COMPLIANCE SERVICES LTD,5100291977,"1,590.00",United Kingdom Atomic Energy Authority,United Kingdom Atomic Energy Authority
19/08/2013,MATERIALS & SPARES,FUSION,CPC PLC,5100292580,18.42,United Kingdom Atomic Energy Authority,United Kingdom Atomic Energy Authority
05/08/2013,MATERIALS & SPARES,FUSION,CPC PLC,5100292082,20.79,United Kingdom Atomic Energy Authority,United Kingdom Atomic Energy Authority
29/07/2013,MATERIALS & SPARES,FUSION,CPC PLC,5100291864,86.48,United Kingdom Atomic Energy Authority,United Kingdom Atomic Energy Authority
05/08/2013,MATERIALS & SPARES,FUSION,CPC PLC,5100292083,100.63,United Kingdom Atomic Energy Authority,United Kingdom Atomic Energy Authority
29/07/2013,MATERIALS & SPARES,FUSION,CPC PLC,5100291863,192.20,United Kingdom Atomic Energy Authority,United Kingdom Atomic Energy Authority
12/08/2013,MATERIALS & SPARES,FUSION,CPC PLC,5100292081,340.55,United Kingdom Atomic Energy Authority,United Kingdom Atomic Energy Authority
29/07/2013,REPAIRS & MAINTENANCE,FUSION,CRANE CARE LTD,5100291853,"7,080.00",United Kingdom Atomic Energy Authority,United Kingdom Atomic Energy Authority
29/07/2013,MATERIALS & SPARES,FUSION,CROMWELL LTD,5100292027,7.80,United Kingdom Atomic Energy Authority,United Kingdom Atomic Energy Authority
12/08/2013,MATERIALS & SPARES,FUSION,CROMWELL LTD,5100292325,12.63,United Kingdom Atomic Energy Authority,United Kingdom Atomic Energy Authority
12/08/2013,MATERIALS & SPARES,FUSION,CROMWELL LTD,5100292326,12.63,United Kingdom Atomic Energy Authority,United Kingdom Atomic Energy Authority
29/07/2013,MATERIALS & SPARES,FUSION,CROMWELL LTD,5100292024,15.59,United Kingdom Atomic Energy Authority,United Kingdom Atomic Energy Authority
12/08/2013,MATERIALS & SPARES,FUSION,CROMWELL LTD,5100292437,82.12,United Kingdom Atomic Energy Authority,United Kingdom Atomic Energy Authority
31/07/2013,MATERIALS & SPARES,FUSION,CROMWELL LTD,5100291704,89.99,United Kingdom Atomic Energy Authority,United Kingdom Atomic Energy Authority
05/08/2013,MATERIALS & SPARES,FUSION,CROMWELL LTD,5100292025,108.62,United Kingdom Atomic Energy Authority,United Kingdom Atomic Energy Authority
19/08/2013,MATERIALS & SPARES,FUSION,CROMWELL LTD,5100292666,108.66,United Kingdom Atomic Energy Authority,United Kingdom Atomic Energy Authority
29/07/2013,MATERIALS & SPARES,FUSION,CROMWELL LTD,5100292026,112.86,United Kingdom Atomic Energy Authority,United Kingdom Atomic Energy Authority
12/08/2013,MATERIALS & SPARES,FUSION,CROMWELL LTD,5100292327,142.79,United Kingdom Atomic Energy Authority,United Kingdom Atomic Energy Authority
12/08/2013,MATERIALS & SPARES,FUSION,CROMWELL LTD,5100292436,145.37,United Kingdom Atomic Energy Authority,United Kingdom Atomic Energy Authority
12/08/2013,MATERIALS & SPARES,FUSION,CROMWELL LTD,5100292330,197.10,United Kingdom Atomic Energy Authority,United Kingdom Atomic Energy Authority
12/08/2013,MATERIALS & SPARES,FUSION,CROMWELL LTD,5100292329,250.77,United Kingdom Atomic Energy Authority,United Kingdom Atomic Energy Authority
05/08/2013,REPAIRS & MAINTENANCE,FUSION,CROWCON DETECTION INSTRUMENTS LTD,5100292089,54.59,United Kingdom Atomic Energy Authority,United Kingdom Atomic Energy Authority
29/07/2013,REPAIRS & MAINTENANCE,FUSION,CROWCON DETECTION INSTRUMENTS LTD,5100291909,445.86,United Kingdom Atomic Energy Authority,United Kingdom Atomic Energy Authority
31/07/2013,REPAIRS & MAINTENANCE,FUSION,CROWCON DETECTION INSTRUMENTS LTD,5100291881,590.69,United Kingdom Atomic Energy Authority,United Kingdom Atomic Energy Authority
29/07/2013,REPAIRS & MAINTENANCE,FUSION,CROWCON DETECTION INSTRUMENTS LTD,5100291882,800.00,United Kingdom Atomic Energy Authority,United Kingdom Atomic Energy Authority
29/07/2013,PROFESSIONAL SERVICES,SUPPORT SERVICES,CSC COMPUTER SERVICES,5100291951,"12,417.55",United Kingdom Atomic Energy Authority,United Kingdom Atomic Energy Authority
19/08/2013,PROFESSIONAL SERVICES,SUPPORT SERVICES,CSC COMPUTER SERVICES,5100292700,"13,599.40",United Kingdom Atomic Energy Authority,United Kingdom Atomic Energy Authority
19/08/2013,PROFESSIONAL SERVICES,SUPPORT SERVICES,CSC COMPUTER SERVICES,5100292703,"23,033.56",United Kingdom Atomic Energy Authority,United Kingdom Atomic Energy Authority
21/08/2013,PLANT SPARES,FUSION,CSE INDUSTRIAL ELECTRICAL DISTRIBUT,5100292741,9.50,United Kingdom Atomic Energy Authority,United Kingdom Atomic Energy Authority
21/08/2013,PLANT SPARES,FUSION,CSE INDUSTRIAL ELECTRICAL DISTRIBUT,5100292599,32.99,United Kingdom Atomic Energy Authority,United Kingdom Atomic Energy Authority
19/08/2013,PLANT SPARES,FUSION,CSE INDUSTRIAL ELECTRICAL DISTRIBUT,5100292598,455.58,United Kingdom Atomic Energy Authority,United Kingdom Atomic Energy Authority
29/07/2013,PROFESSIONAL SERVICES,SUPPORT SERVICES,CSS WORKSAFE,5100291638,750.00,United Kingdom Atomic Energy Authority,United Kingdom Atomic Energy Authority
14/08/2013,PLANT SPARES,FUSION,CUTWEL LTD,5100292472,65.67,United Kingdom Atomic Energy Authority,United Kingdom Atomic Energy Authority
31/07/2013,PLANT SPARES,FUSION,CUTWEL LTD,5100291950,115.30,United Kingdom Atomic Energy Authority,United Kingdom Atomic Energy Authority
19/08/2013,PLANT SPARES,FUSION,CUTWEL LTD,5100292557,118.34,United Kingdom Atomic Energy Authority,United Kingdom Atomic Energy Authority
05/08/2013,MATERIALS & SPARES,FUSION,CYCLOPS ELECTRONICS LIMITED,5100292213,"4,080.00",United Kingdom Atomic Energy Authority,United Kingdom Atomic Energy Authority
05/08/2013,CONSUMABLES,FUSION,CYFAS SYSTEMS LTD,5100292076,350.00,United Kingdom Atomic Energy Authority,United Kingdom Atomic Energy Authority
19/08/2013,BUILDING REPAIRS,FUSION,D CLOUGH LTD,5100292706,"2,401.57",United Kingdom Atomic Energy Authority,United Kingdom Atomic Energy Authority
12/08/2013,PROFESSIONAL SERVICES,FUSION,DCL FUSION,5100292441,213.00,United Kingdom Atomic Energy Authority,United Kingdom Atomic Energy Authority
12/08/2013,CONSULTANCY,SUPPORT SERVICES,DENTONS UKMEA LLP,5100292302,"1,500.00",United Kingdom Atomic Energy Authority,United Kingdom Atomic Energy Authority
29/07/2013,PROFESSIONAL SERVICES,FUSION,DESIGNRULE LTD,5100291875,50.00,United Kingdom Atomic Energy Authority,United Kingdom Atomic Energy Authority
14/08/2013,PLANT & EQUIPMENT,FUSION,DIGIKEY CORPORATION,5100292244,545.02,United Kingdom Atomic Energy Authority,United Kingdom Atomic Energy Authority
12/08/2013,PROFESSIONAL SERVICES,SUPPORT SERVICES,DISCLOSURE SCOTLAND,5100292474,125.00,United Kingdom Atomic Energy Authority,United Kingdom Atomic Energy Authority
12/08/2013,PROFESSIONAL SERVICES,SUPPORT SERVICES,DISCLOSURE SCOTLAND,5100292420,375.00,United Kingdom Atomic Energy Authority,United Kingdom Atomic Energy Authority
29/07/2013,PROFESSIONAL SERVICES,SUPPORT SERVICES,DISCLOSURE SCOTLAND,5100291764,525.00,United Kingdom Atomic Energy Authority,United Kingdom Atomic Energy Authority
13/08/2013,PLANT & EQUIPMENT,FUSION,DMV UK,1900058659,"2,592.00",United Kingdom Atomic Energy Authority,United Kingdom Atomic Energy Authority
29/07/2013,PAYROLL BUREAU,SUPPORT SERVICES,DOUNREAY SITE RESTORATION LTD,5100291872,"1,931.00",United Kingdom Atomic Energy Authority,United Kingdom Atomic Energy Authority
05/08/2013,MATERIALS & SPARES,FUSION,DURBIN METAL INDUSTRIES LTD,5100292029,-65.60,United Kingdom Atomic Energy Authority,United Kingdom Atomic Energy Authority
05/08/2013,MATERIALS & SPARES,FUSION,DURBIN METAL INDUSTRIES LTD,5100292078,12.50,United Kingdom Atomic Energy Authority,United Kingdom Atomic Energy Authority
12/08/2013,MATERIALS & SPARES,FUSION,DURBIN METAL INDUSTRIES LTD,5100292479,22.10,United Kingdom Atomic Energy Authority,United Kingdom Atomic Energy Authority
12/08/2013,MATERIALS & SPARES,FUSION,DURBIN METAL INDUSTRIES LTD,5100292223,24.10,United Kingdom Atomic Energy Authority,United Kingdom Atomic Energy Authority
12/08/2013,MATERIALS & SPARES,FUSION,DURBIN METAL INDUSTRIES LTD,5100292350,31.95,United Kingdom Atomic Energy Authority,United Kingdom Atomic Energy Authority
05/08/2013,MATERIALS & SPARES,FUSION,DURBIN METAL INDUSTRIES LTD,5100292134,42.00,United Kingdom Atomic Energy Authority,United Kingdom Atomic Energy Authority
12/08/2013,MATERIALS & SPARES,FUSION,DURBIN METAL INDUSTRIES LTD,5100292221,88.40,United Kingdom Atomic Energy Authority,United Kingdom Atomic Energy Authority
12/08/2013,MATERIALS & SPARES,FUSION,DURBIN METAL INDUSTRIES LTD,5100292222,98.50,United Kingdom Atomic Energy Authority,United Kingdom Atomic Energy Authority
12/08/2013,MATERIALS & SPARES,FUSION,DURBIN METAL INDUSTRIES LTD,5100292170,107.50,United Kingdom Atomic Energy Authority,United Kingdom Atomic Energy Authority
05/08/2013,MATERIALS & SPARES,FUSION,DURBIN METAL INDUSTRIES LTD,5100292079,125.00,United Kingdom Atomic Energy Authority,United Kingdom Atomic Energy Authority
05/08/2013,MATERIALS & SPARES,FUSION,DURBIN METAL INDUSTRIES LTD,5100292058,143.55,United Kingdom Atomic Energy Authority,United Kingdom Atomic Energy Authority
12/08/2013,MATERIALS & SPARES,FUSION,DURBIN METAL INDUSTRIES LTD,5100292477,165.00,United Kingdom Atomic Energy Authority,United Kingdom Atomic Energy Authority
21/08/2013,MATERIALS & SPARES,FUSION,DURBIN METAL INDUSTRIES LTD,5100292660,433.40,United Kingdom Atomic Energy Authority,United Kingdom Atomic Energy Authority
12/08/2013,MATERIALS & SPARES,FUSION,DURBIN METAL INDUSTRIES LTD,5100292478,"1,230.70",United Kingdom Atomic Energy Authority,United Kingdom Atomic Energy Authority
15/08/2013,ROAD TRAVEL,PROPERTY,DVLA,1900058673,25.00,United Kingdom Atomic Energy Authority,United Kingdom Atomic Energy Authority
12/08/2013,UTILITIES/ELECTRICITY,PROPERTY,EDF ENERGY,5100292323,67.75,United Kingdom Atomic Energy Authority,United Kingdom Atomic Energy Authority
12/08/2013,UTILITIES/ELECTRICITY,PROPERTY,EDF ENERGY,5100292390,404.95,United Kingdom Atomic Energy Authority,United Kingdom Atomic Energy Authority
12/08/2013,UTILITIES/ELECTRICITY,PROPERTY,EDF ENERGY,5100292385,784.59,United Kingdom Atomic Energy Authority,United Kingdom Atomic Energy Authority
12/08/2013,UTILITIES/ELECTRICITY,PROPERTY,EDF ENERGY,5100292387,"2,102.39",United Kingdom Atomic Energy Authority,United Kingdom Atomic Energy Authority
12/08/2013,UTILITIES/ELECTRICITY,PROPERTY,EDF ENERGY,5100292391,"3,590.53",United Kingdom Atomic Energy Authority,United Kingdom Atomic Energy Authority
12/08/2013,UTILITIES/ELECTRICITY,PROPERTY,EDF ENERGY,5100292393,"10,176.95",United Kingdom Atomic Energy Authority,United Kingdom Atomic Energy Authority
12/08/2013,UTILITIES/ELECTRICITY,PROPERTY,EDF ENERGY,5100292386,"33,173.62",United Kingdom Atomic Energy Authority,United Kingdom Atomic Energy Authority
12/08/2013,UTILITIES/ELECTRICITY,PROPERTY,EDF ENERGY,5100292389,"33,731.66",United Kingdom Atomic Energy Authority,United Kingdom Atomic Energy Authority
12/08/2013,UTILITIES/ELECTRICITY,FUSION,EDF ENERGY,5100292324,"84,015.41",United Kingdom Atomic Energy Authority,United Kingdom Atomic Energy Authority
12/08/2013,UTILITIES/ELECTRICITY,FUSION,EDF ENERGY,5100292394,"362,395.64",United Kingdom Atomic Energy Authority,United Kingdom Atomic Energy Authority
05/08/2013,PROFESSIONAL SERVICES,FUSION,EDM PRECISION TECHNOLOGIES,5100292077,"52,192.75",United Kingdom Atomic Energy Authority,United Kingdom Atomic Energy Authority
29/07/2013,PLANT & EQUIPMENT,FUSION,EDMUNDSON ELECTRICAL LTD,5100291905,797.16,United Kingdom Atomic Energy Authority,United Kingdom Atomic Energy Authority
05/08/2013,PLANT & EQUIPMENT,FUSION,EDMUNDSON ELECTRICALS LTD,5100292061,14.49,United Kingdom Atomic Energy Authority,United Kingdom Atomic Energy Authority
12/08/2013,PLANT & EQUIPMENT,FUSION,EDMUNDSON ELECTRICALS LTD,5100292430,25.21,United Kingdom Atomic Energy Authority,United Kingdom Atomic Energy Authority
05/08/2013,PLANT & EQUIPMENT,FUSION,EDMUNDSON ELECTRICALS LTD,5100291473,40.56,United Kingdom Atomic Energy Authority,United Kingdom Atomic Energy Authority
14/08/2013,PLANT & EQUIPMENT,FUSION,EDMUNDSON ELECTRICALS LTD,5100292266,60.27,United Kingdom Atomic Energy Authority,United Kingdom Atomic Energy Authority
05/08/2013,PLANT & EQUIPMENT,FUSION,EDMUNDSON ELECTRICALS LTD,5100292062,100.07,United Kingdom Atomic Energy Authority,United Kingdom Atomic Energy Authority
19/08/2013,PLANT & EQUIPMENT,FUSION,EDMUNDSON ELECTRICALS LTD,5100292588,101.39,United Kingdom Atomic Energy Authority,United Kingdom Atomic Energy Authority
19/08/2013,PLANT & EQUIPMENT,FUSION,EDMUNDSON ELECTRICALS LTD,5100292576,104.25,United Kingdom Atomic Energy Authority,United Kingdom Atomic Energy Authority
12/08/2013,PLANT & EQUIPMENT,FUSION,EDMUNDSON ELECTRICALS LTD,5100292261,157.73,United Kingdom Atomic Energy Authority,United Kingdom Atomic Energy Authority
05/08/2013,PLANT & EQUIPMENT,FUSION,EDMUNDSON ELECTRICALS LTD,5100292064,178.50,United Kingdom Atomic Energy Authority,United Kingdom Atomic Energy Authority
14/08/2013,PLANT & EQUIPMENT,FUSION,EDMUNDSON ELECTRICALS LTD,5100292263,202.78,United Kingdom Atomic Energy Authority,United Kingdom Atomic Energy Authority
29/07/2013,PLANT & EQUIPMENT,FUSION,EDMUNDSON ELECTRICALS LTD,5100292022,204.58,United Kingdom Atomic Energy Authority,United Kingdom Atomic Energy Authority
19/08/2013,PLANT & EQUIPMENT,FUSION,EDMUNDSON ELECTRICALS LTD,5100292587,272.06,United Kingdom Atomic Energy Authority,United Kingdom Atomic Energy Authority
29/07/2013,PLANT & EQUIPMENT,FUSION,EDMUNDSON ELECTRICALS LTD,5100291655,319.13,United Kingdom Atomic Energy Authority,United Kingdom Atomic Energy Authority
29/07/2013,PLANT & EQUIPMENT,FUSION,EDMUNDSON ELECTRICALS LTD,5100291657,324.72,United Kingdom Atomic Energy Authority,United Kingdom Atomic Energy Authority
19/08/2013,PLANT & EQUIPMENT,FUSION,EDMUNDSON ELECTRICALS LTD,5100292577,421.44,United Kingdom Atomic Energy Authority,United Kingdom Atomic Energy Authority
19/08/2013,PLANT & EQUIPMENT,FUSION,EDMUNDSON ELECTRICALS LTD,5100292586,458.86,United Kingdom Atomic Energy Authority,United Kingdom Atomic Energy Authority
05/08/2013,PLANT & EQUIPMENT,FUSION,EDMUNDSON ELECTRICALS LTD,5100291904,477.16,United Kingdom Atomic Energy Authority,United Kingdom Atomic Energy Authority
05/08/2013,PLANT & EQUIPMENT,FUSION,EDMUNDSON ELECTRICALS LTD,5100292063,886.16,United Kingdom Atomic Energy Authority,United Kingdom Atomic Energy Authority
12/08/2013,PLANT & EQUIPMENT,FUSION,EDMUNDSON ELECTRICALS LTD,5100292428,"1,476.33",United Kingdom Atomic Energy Authority,United Kingdom Atomic Energy Authority
29/07/2013,PLANT & EQUIPMENT,FUSION,EDMUNDSON ELECTRICALS LTD,5100291906,"2,453.52",United Kingdom Atomic Energy Authority,United Kingdom Atomic Energy Authority
05/08/2013,F&F,PROPERTY,EFG MATTHEWS OFFICE FURNITURE LTD,5100292092,140.00,United Kingdom Atomic Energy Authority,United Kingdom Atomic Energy Authority
05/08/2013,F&F,FUSION,EFG MATTHEWS OFFICE FURNITURE LTD,5100292093,193.20,United Kingdom Atomic Energy Authority,United Kingdom Atomic Energy Authority
05/08/2013,F&F,SUPPORT SERVICES,EFG MATTHEWS OFFICE FURNITURE LTD,5100292220,305.64,United Kingdom Atomic Energy Authority,United Kingdom Atomic Energy Authority
19/08/2013,F&F,PROPERTY,EFG MATTHEWS OFFICE FURNITURE LTD,5100292583,311.00,United Kingdom Atomic Energy Authority,United Kingdom Atomic Energy Authority
07/08/2013,F&F,SUPPORT SERVICES,EFG MATTHEWS OFFICE FURNITURE LTD,5100292259,962.32,United Kingdom Atomic Energy Authority,United Kingdom Atomic Energy Authority
07/08/2013,F&F,PROPERTY,EFG MATTHEWS OFFICE FURNITURE LTD,5100292258,"2,137.46",United Kingdom Atomic Energy Authority,United Kingdom Atomic Energy Authority
12/08/2013,F&F,PROPERTY,EFG MATTHEWS OFFICE FURNITURE LTD,5100292256,"2,272.56",United Kingdom Atomic Energy Authority,United Kingdom Atomic Energy Authority
12/08/2013,F&F,SUPPORT SERVICES,EFG MATTHEWS OFFICE FURNITURE LTD,5100292257,"4,554.92",United Kingdom Atomic Energy Authority,United Kingdom Atomic Energy Authority
29/07/2013,MATERIALS & SPARES,FUSION,ELECTRICAL OIL SERVICES LTD,5100291908,473.19,United Kingdom Atomic Energy Authority,United Kingdom Atomic Energy Authority
23/08/2013,TRAINING COURSE FEES,FUSION,EMBL ,1900058716,"25,803.98",United Kingdom Atomic Energy Authority,United Kingdom Atomic Energy Authority
03/08/2013,ROAD TRAVEL,FUSION,EMPLOYEE EXPENSES,100694160,1.00,United Kingdom Atomic Energy Authority,United Kingdom Atomic Energy Authority
23/08/2013,SUBSISTENCE,FUSION,EMPLOYEE EXPENSES,100694374,1.66,United Kingdom Atomic Energy Authority,United Kingdom Atomic Energy Authority
03/08/2013,RAIL TRAVEL,FUSION,EMPLOYEE EXPENSES,100694164,1.73,United Kingdom Atomic Energy Authority,United Kingdom Atomic Energy Authority
03/08/2013,SUBSISTENCE,FUSION,EMPLOYEE EXPENSES,100694157,1.74,United Kingdom Atomic Energy Authority,United Kingdom Atomic Energy Authority
03/08/2013,SUBSISTENCE,FUSION,EMPLOYEE EXPENSES,100694157,1.75,United Kingdom Atomic Energy Authority,United Kingdom Atomic Energy Authority
23/08/2013,ROAD TRAVEL,FUSION,EMPLOYEE EXPENSES,100694369,3.00,United Kingdom Atomic Energy Authority,United Kingdom Atomic Energy Authority
03/08/2013,SUBSISTENCE,FUSION,EMPLOYEE EXPENSES,100694156,3.37,United Kingdom Atomic Energy Authority,United Kingdom Atomic Energy Authority
17/08/2013,SUBSISTENCE,FUSION,EMPLOYEE EXPENSES,100694274,3.38,United Kingdom Atomic Energy Authority,United Kingdom Atomic Energy Authority
17/08/2013,OTHER EMPLOYEE EXPENSES,FUSION,EMPLOYEE EXPENSES,100694274,3.39,United Kingdom Atomic Energy Authority,United Kingdom Atomic Energy Authority
23/08/2013,RAIL TRAVEL,FUSION,EMPLOYEE EXPENSES,100694371,3.40,United Kingdom Atomic Energy Authority,United Kingdom Atomic Energy Authority
17/08/2013,ROAD TRAVEL,FUSION,EMPLOYEE EXPENSES,100694280,3.42,United Kingdom Atomic Energy Authority,United Kingdom Atomic Energy Authority
03/08/2013,SUBSISTENCE,FUSION,EMPLOYEE EXPENSES,100694158,4.20,United Kingdom Atomic Energy Authority,United Kingdom Atomic Energy Authority
03/08/2013,ROAD TRAVEL,SUPPORT SERVICES,EMPLOYEE EXPENSES,100694155,4.75,United Kingdom Atomic Energy Authority,United Kingdom Atomic Energy Authority
17/08/2013,SUBSISTENCE,FUSION,EMPLOYEE EXPENSES,100694273,5.00,United Kingdom Atomic Energy Authority,United Kingdom Atomic Energy Authority
23/08/2013,SUBSISTENCE,FUSION,EMPLOYEE EXPENSES,100694370,5.00,United Kingdom Atomic Energy Authority,United Kingdom Atomic Energy Authority
23/08/2013,SUBSISTENCE,SUPPORT SERVICES,EMPLOYEE EXPENSES,100694376,5.00,United Kingdom Atomic Energy Authority,United Kingdom Atomic Energy Authority
10/08/2013,ROAD TRAVEL,FUSION,EMPLOYEE EXPENSES,100694219,5.17,United Kingdom Atomic Energy Authority,United Kingdom Atomic Energy Authority
08/08/2013,ROAD TRAVEL,FUSION,EMPLOYEE EXPENSES,100694205,5.17,United Kingdom Atomic Energy Authority,United Kingdom Atomic Energy Authority
08/08/2013,MILEAGE ALLOWANCE,FUSION,EMPLOYEE EXPENSES,100694205,5.40,United Kingdom Atomic Energy Authority,United Kingdom Atomic Energy Authority
23/08/2013,TAXIS,FUSION,EMPLOYEE EXPENSES,100694365,5.58,United Kingdom Atomic Energy Authority,United Kingdom Atomic Energy Authority
17/08/2013,OTHER EMPLOYEE EXPENSES,FUSION,EMPLOYEE EXPENSES,100694280,5.99,United Kingdom Atomic Energy Authority,United Kingdom Atomic Energy Authority
03/08/2013,ROAD TRAVEL,SUPPORT SERVICES,EMPLOYEE EXPENSES,100694151,6.20,United Kingdom Atomic Energy Authority,United Kingdom Atomic Energy Authority
10/08/2013,MILEAGE ALLOWANCE,FUSION,EMPLOYEE EXPENSES,100694219,6.30,United Kingdom Atomic Energy Authority,United Kingdom Atomic Energy Authority
03/08/2013,MILEAGE ALLOWANCE,SUPPORT SERVICES,EMPLOYEE EXPENSES,100694151,6.30,United Kingdom Atomic Energy Authority,United Kingdom Atomic Energy Authority
23/08/2013,SUBSISTENCE,FUSION,EMPLOYEE EXPENSES,100694371,6.53,United Kingdom Atomic Energy Authority,United Kingdom Atomic Energy Authority
03/08/2013,ROAD TRAVEL,FUSION,EMPLOYEE EXPENSES,100694153,6.54,United Kingdom Atomic Energy Authority,United Kingdom Atomic Energy Authority
03/08/2013,SUBSISTENCE,FUSION,EMPLOYEE EXPENSES,100694158,7.00,United Kingdom Atomic Energy Authority,United Kingdom Atomic Energy Authority
03/08/2013,TAXIS,SUPPORT SERVICES,EMPLOYEE EXPENSES,100694167,7.00,United Kingdom Atomic Energy Authority,United Kingdom Atomic Energy Authority
10/08/2013,SUBSISTENCE,FUSION,EMPLOYEE EXPENSES,100694221,7.04,United Kingdom Atomic Energy Authority,United Kingdom Atomic Energy Authority
10/08/2013,SUBSISTENCE,FUSION,EMPLOYEE EXPENSES,100694219,7.10,United Kingdom Atomic Energy Authority,United Kingdom Atomic Energy Authority
08/08/2013,MILEAGE ALLOWANCE,FUSION,EMPLOYEE EXPENSES,100694203,7.20,United Kingdom Atomic Energy Authority,United Kingdom Atomic Energy Authority
23/08/2013,SUBSISTENCE,FUSION,EMPLOYEE EXPENSES,100694369,8.08,United Kingdom Atomic Energy Authority,United Kingdom Atomic Energy Authority
23/08/2013,SUBSISTENCE,FUSION,EMPLOYEE EXPENSES,100694364,8.17,United Kingdom Atomic Energy Authority,United Kingdom Atomic Energy Authority
03/08/2013,SUBSISTENCE,FUSION,EMPLOYEE EXPENSES,100694154,8.37,United Kingdom Atomic Energy Authority,United Kingdom Atomic Energy Authority
03/08/2013,ROAD TRAVEL,FUSION,EMPLOYEE EXPENSES,100694159,9.00,United Kingdom Atomic Energy Authority,United Kingdom Atomic Energy Authority
23/08/2013,RAIL TRAVEL,FUSION,EMPLOYEE EXPENSES,100694369,9.00,United Kingdom Atomic Energy Authority,United Kingdom Atomic Energy Authority
23/08/2013,ROAD TRAVEL,FUSION,EMPLOYEE EXPENSES,100694364,9.02,United Kingdom Atomic Energy Authority,United Kingdom Atomic Energy Authority
03/08/2013,SUBSISTENCE,FUSION,EMPLOYEE EXPENSES,100694158,9.20,United Kingdom Atomic Energy Authority,United Kingdom Atomic Energy Authority
17/08/2013,TAXIS,FUSION,EMPLOYEE EXPENSES,100694279,9.28,United Kingdom Atomic Energy Authority,United Kingdom Atomic Energy Authority
08/08/2013,RAIL TRAVEL,FUSION,EMPLOYEE EXPENSES,100694205,10.30,United Kingdom Atomic Energy Authority,United Kingdom Atomic Energy Authority
08/08/2013,ROAD TRAVEL,FUSION,EMPLOYEE EXPENSES,100694208,10.76,United Kingdom Atomic Energy Authority,United Kingdom Atomic Energy Authority
03/08/2013,ROAD TRAVEL,FUSION,EMPLOYEE EXPENSES,100694158,11.00,United Kingdom Atomic Energy Authority,United Kingdom Atomic Energy Authority
03/08/2013,MILEAGE ALLOWANCE,SUPPORT SERVICES,EMPLOYEE EXPENSES,100694155,12.60,United Kingdom Atomic Energy Authority,United Kingdom Atomic Energy Authority
23/08/2013,RAIL TRAVEL,FUSION,EMPLOYEE EXPENSES,100694369,14.06,United Kingdom Atomic Energy Authority,United Kingdom Atomic Energy Authority
08/08/2013,MILEAGE ALLOWANCE,FUSION,EMPLOYEE EXPENSES,100694204,14.40,United Kingdom Atomic Energy Authority,United Kingdom Atomic Energy Authority
17/08/2013,PROFESSIONAL SUBSCRIPTION,FUSION,EMPLOYEE EXPENSES,100694276,15.00,United Kingdom Atomic Energy Authority,United Kingdom Atomic Energy Authority
17/08/2013,ROAD TRAVEL,FUSION,EMPLOYEE EXPENSES,100694278,16.69,United Kingdom Atomic Energy Authority,United Kingdom Atomic Energy Authority
17/08/2013,ROAD TRAVEL,FUSION,EMPLOYEE EXPENSES,100694277,17.40,United Kingdom Atomic Energy Authority,United Kingdom Atomic Energy Authority
03/08/2013,MILEAGE ALLOWANCE,FUSION,EMPLOYEE EXPENSES,100694161,18.90,United Kingdom Atomic Energy Authority,United Kingdom Atomic Energy Authority
10/08/2013,SUBSISTENCE,FUSION,EMPLOYEE EXPENSES,100694220,19.62,United Kingdom Atomic Energy Authority,United Kingdom Atomic Energy Authority
03/08/2013,TAXIS,FUSION,EMPLOYEE EXPENSES,100694152,21.18,United Kingdom Atomic Energy Authority,United Kingdom Atomic Energy Authority
23/08/2013,TAXIS,FUSION,EMPLOYEE EXPENSES,100694374,21.97,United Kingdom Atomic Energy Authority,United Kingdom Atomic Energy Authority
03/08/2013,ROAD TRAVEL,FUSION,EMPLOYEE EXPENSES,100694166,24.00,United Kingdom Atomic Energy Authority,United Kingdom Atomic Energy Authority
03/08/2013,ROAD TRAVEL,FUSION,EMPLOYEE EXPENSES,100694164,24.00,United Kingdom Atomic Energy Authority,United Kingdom Atomic Energy Authority
23/08/2013,ROAD TRAVEL,FUSION,EMPLOYEE EXPENSES,100694372,24.18,United Kingdom Atomic Energy Authority,United Kingdom Atomic Energy Authority
03/08/2013,SUBSISTENCE,FUSION,EMPLOYEE EXPENSES,100694164,24.56,United Kingdom Atomic Energy Authority,United Kingdom Atomic Energy Authority
03/08/2013,OTHER EMPLOYEE EXPENSES,FUSION,EMPLOYEE EXPENSES,100694168,26.16,United Kingdom Atomic Energy Authority,United Kingdom Atomic Energy Authority
23/08/2013,SUBSISTENCE,SUPPORT SERVICES,EMPLOYEE EXPENSES,100694366,26.53,United Kingdom Atomic Energy Authority,United Kingdom Atomic Energy Authority
03/08/2013,RAIL TRAVEL,FUSION,EMPLOYEE EXPENSES,100694159,28.10,United Kingdom Atomic Energy Authority,United Kingdom Atomic Energy Authority
23/08/2013,ROAD TRAVEL,FUSION,EMPLOYEE EXPENSES,100694364,29.00,United Kingdom Atomic Energy Authority,United Kingdom Atomic Energy Authority
10/08/2013,ROAD TRAVEL,FUSION,EMPLOYEE EXPENSES,100694221,29.00,United Kingdom Atomic Energy Authority,United Kingdom Atomic Energy Authority
03/08/2013,ROAD TRAVEL,FUSION,EMPLOYEE EXPENSES,100694157,33.24,United Kingdom Atomic Energy Authority,United Kingdom Atomic Energy Authority
03/08/2013,ROAD TRAVEL,FUSION,EMPLOYEE EXPENSES,100694157,33.24,United Kingdom Atomic Energy Authority,United Kingdom Atomic Energy Authority
10/08/2013,MILEAGE ALLOWANCE,FUSION,EMPLOYEE EXPENSES,100694223,34.68,United Kingdom Atomic Energy Authority,United Kingdom Atomic Energy Authority
17/08/2013,ROAD TRAVEL,FUSION,EMPLOYEE EXPENSES,100694274,35.66,United Kingdom Atomic Energy Authority,United Kingdom Atomic Energy Authority
03/08/2013,OTHER EMPLOYEE EXPENSES,FUSION,EMPLOYEE EXPENSES,100694165,36.95,United Kingdom Atomic Energy Authority,United Kingdom Atomic Energy Authority
03/08/2013,SUBSISTENCE,FUSION,EMPLOYEE EXPENSES,100694159,38.79,United Kingdom Atomic Energy Authority,United Kingdom Atomic Energy Authority
23/08/2013,ROAD TRAVEL,SUPPORT SERVICES,EMPLOYEE EXPENSES,100694366,39.50,United Kingdom Atomic Energy Authority,United Kingdom Atomic Energy Authority
17/08/2013,SUBSISTENCE,FUSION,EMPLOYEE EXPENSES,100694279,40.00,United Kingdom Atomic Energy Authority,United Kingdom Atomic Energy Authority
08/08/2013,OTHER EMPLOYEE EXPENSES,FUSION,EMPLOYEE EXPENSES,100694208,40.19,United Kingdom Atomic Energy Authority,United Kingdom Atomic Energy Authority
23/08/2013,SUBSISTENCE,FUSION,EMPLOYEE EXPENSES,100694367,40.48,United Kingdom Atomic Energy Authority,United Kingdom Atomic Energy Authority
10/08/2013,TAXIS,FUSION,EMPLOYEE EXPENSES,100694221,41.50,United Kingdom Atomic Energy Authority,United Kingdom Atomic Energy Authority
03/08/2013,ROAD TRAVEL,FUSION,EMPLOYEE EXPENSES,100694152,45.25,United Kingdom Atomic Energy Authority,United Kingdom Atomic Energy Authority
03/08/2013,ROAD TRAVEL,FUSION,EMPLOYEE EXPENSES,100694158,46.76,United Kingdom Atomic Energy Authority,United Kingdom Atomic Energy Authority
10/08/2013,SUBSISTENCE,FUSION,EMPLOYEE EXPENSES,100694220,46.92,United Kingdom Atomic Energy Authority,United Kingdom Atomic Energy Authority
23/08/2013,PROFESSIONAL SUBSCRIPTION,SUPPORT SERVICES,EMPLOYEE EXPENSES,100694375,47.00,United Kingdom Atomic Energy Authority,United Kingdom Atomic Energy Authority
10/08/2013,ROAD TRAVEL,FUSION,EMPLOYEE EXPENSES,100694220,48.33,United Kingdom Atomic Energy Authority,United Kingdom Atomic Energy Authority
03/08/2013,MILEAGE ALLOWANCE,FUSION,EMPLOYEE EXPENSES,100694160,49.50,United Kingdom Atomic Energy Authority,United Kingdom Atomic Energy Authority
23/08/2013,RAIL TRAVEL,SUPPORT SERVICES,EMPLOYEE EXPENSES,100694376,49.80,United Kingdom Atomic Energy Authority,United Kingdom Atomic Energy Authority
17/08/2013,SUBSISTENCE,FUSION,EMPLOYEE EXPENSES,100694273,52.84,United Kingdom Atomic Energy Authority,United Kingdom Atomic Energy Authority
23/08/2013,BUSINESS ENTERTAINMENT,FUSION,EMPLOYEE EXPENSES,100694368,53.43,United Kingdom Atomic Energy Authority,United Kingdom Atomic Energy Authority
03/08/2013,MILEAGE ALLOWANCE,FUSION,EMPLOYEE EXPENSES,100694154,54.00,United Kingdom Atomic Energy Authority,United Kingdom Atomic Energy Authority
17/08/2013,MILEAGE ALLOWANCE,FUSION,EMPLOYEE EXPENSES,100694273,54.00,United Kingdom Atomic Energy Authority,United Kingdom Atomic Energy Authority
10/08/2013,MILEAGE ALLOWANCE,FUSION,EMPLOYEE EXPENSES,100694225,55.35,United Kingdom Atomic Energy Authority,United Kingdom Atomic Energy Authority
03/08/2013,ROAD TRAVEL,FUSION,EMPLOYEE EXPENSES,100694166,56.85,United Kingdom Atomic Energy Authority,United Kingdom Atomic Energy Authority
23/08/2013,TAXIS,FUSION,EMPLOYEE EXPENSES,100694367,68.45,United Kingdom Atomic Energy Authority,United Kingdom Atomic Energy Authority
23/08/2013,ROAD TRAVEL,SUPPORT SERVICES,EMPLOYEE EXPENSES,100694376,72.60,United Kingdom Atomic Energy Authority,United Kingdom Atomic Energy Authority
08/08/2013,BUSINESS ENTERTAINMENT,FUSION,EMPLOYEE EXPENSES,100694209,75.80,United Kingdom Atomic Energy Authority,United Kingdom Atomic Energy Authority
23/08/2013,RAIL TRAVEL,FUSION,EMPLOYEE EXPENSES,100694374,79.16,United Kingdom Atomic Energy Authority,United Kingdom Atomic Energy Authority
10/08/2013,ROAD TRAVEL,FUSION,EMPLOYEE EXPENSES,100694221,82.30,United Kingdom Atomic Energy Authority,United Kingdom Atomic Energy Authority
23/08/2013,MILEAGE ALLOWANCE,FUSION,EMPLOYEE EXPENSES,100694370,88.20,United Kingdom Atomic Energy Authority,United Kingdom Atomic Energy Authority
23/08/2013,TAXIS,SUPPORT SERVICES,EMPLOYEE EXPENSES,100694366,94.00,United Kingdom Atomic Energy Authority,United Kingdom Atomic Energy Authority
08/08/2013,BUSINESS ENTERTAINMENT,FUSION,EMPLOYEE EXPENSES,100694207,95.23,United Kingdom Atomic Energy Authority,United Kingdom Atomic Energy Authority
23/08/2013,MILEAGE ALLOWANCE,SUPPORT SERVICES,EMPLOYEE EXPENSES,100694376,107.10,United Kingdom Atomic Energy Authority,United Kingdom Atomic Energy Authority
03/08/2013,SUBSISTENCE,FUSION,EMPLOYEE EXPENSES,100694159,110.00,United Kingdom Atomic Energy Authority,United Kingdom Atomic Energy Authority
17/08/2013,PROFESSIONAL SUBSCRIPTION,FUSION,EMPLOYEE EXPENSES,100694275,111.00,United Kingdom Atomic Energy Authority,United Kingdom Atomic Energy Authority
23/08/2013,RAIL TRAVEL,SUPPORT SERVICES,EMPLOYEE EXPENSES,100694366,123.60,United Kingdom Atomic Energy Authority,United Kingdom Atomic Energy Authority
03/08/2013,SUBSISTENCE,FUSION,EMPLOYEE EXPENSES,100694156,123.90,United Kingdom Atomic Energy Authority,United Kingdom Atomic Energy Authority
03/08/2013,SUBSISTENCE,FUSION,EMPLOYEE EXPENSES,100694166,124.24,United Kingdom Atomic Energy Authority,United Kingdom Atomic Energy Authority
17/08/2013,SUBSISTENCE,FUSION,EMPLOYEE EXPENSES,100694274,130.11,United Kingdom Atomic Energy Authority,United Kingdom Atomic Energy Authority
17/08/2013,OTHER EMPLOYEE EXPENSES,FUSION,EMPLOYEE EXPENSES,100694281,133.00,United Kingdom Atomic Energy Authority,United Kingdom Atomic Energy Authority
23/08/2013,AIR TRAVEL,FUSION,EMPLOYEE EXPENSES,100694374,139.53,United Kingdom Atomic Energy Authority,United Kingdom Atomic Energy Authority
23/08/2013,SUBSISTENCE,FUSION,EMPLOYEE EXPENSES,100694367,140.00,United Kingdom Atomic Energy Authority,United Kingdom Atomic Energy Authority
17/08/2013,CAR HIRE,FUSION,EMPLOYEE EXPENSES,100694274,158.98,United Kingdom Atomic Energy Authority,United Kingdom Atomic Energy Authority
19/08/2013,SUBSISTENCE,SUPPORT SERVICES,EMPLOYEE EXPENSES,1900058680,160.08,United Kingdom Atomic Energy Authority,United Kingdom Atomic Energy Authority
23/08/2013,SUBSISTENCE,FUSION,EMPLOYEE EXPENSES,100694371,160.43,United Kingdom Atomic Energy Authority,United Kingdom Atomic Energy Authority
23/08/2013,SUBSISTENCE,FUSION,EMPLOYEE EXPENSES,100694370,173.33,United Kingdom Atomic Energy Authority,United Kingdom Atomic Energy Authority
08/08/2013,CAR HIRE,FUSION,EMPLOYEE EXPENSES,100694206,182.57,United Kingdom Atomic Energy Authority,United Kingdom Atomic Energy Authority
03/08/2013,AIR TRAVEL,FUSION,EMPLOYEE EXPENSES,100694152,204.77,United Kingdom Atomic Energy Authority,United Kingdom Atomic Energy Authority
17/08/2013,SUBSISTENCE,FUSION,EMPLOYEE EXPENSES,100694280,212.82,United Kingdom Atomic Energy Authority,United Kingdom Atomic Energy Authority
23/08/2013,OTHER EMPLOYEE EXPENSES,FUSION,EMPLOYEE EXPENSES,100694374,226.31,United Kingdom Atomic Energy Authority,United Kingdom Atomic Energy Authority
08/08/2013,SUBSISTENCE,FUSION,EMPLOYEE EXPENSES,100694206,304.56,United Kingdom Atomic Energy Authority,United Kingdom Atomic Energy Authority
23/08/2013,SUBSISTENCE,FUSION,EMPLOYEE EXPENSES,100694369,311.87,United Kingdom Atomic Energy Authority,United Kingdom Atomic Energy Authority
23/08/2013,PROFESSIONAL SUBSCRIPTION,SUPPORT SERVICES,EMPLOYEE EXPENSES,100694376,360.00,United Kingdom Atomic Energy Authority,United Kingdom Atomic Energy Authority
03/08/2013,BUSINESS ENTERTAINMENT,FUSION,EMPLOYEE EXPENSES,100694165,369.50,United Kingdom Atomic Energy Authority,United Kingdom Atomic Energy Authority
03/08/2013,OTHER EMPLOYEE EXPENSES,FUSION,EMPLOYEE EXPENSES,100694152,427.20,United Kingdom Atomic Energy Authority,United Kingdom Atomic Energy Authority
23/08/2013,SUBSISTENCE,FUSION,EMPLOYEE EXPENSES,100694364,464.52,United Kingdom Atomic Energy Authority,United Kingdom Atomic Energy Authority
17/08/2013,SUBSISTENCE,FUSION,EMPLOYEE EXPENSES,100694277,467.77,United Kingdom Atomic Energy Authority,United Kingdom Atomic Energy Authority
03/08/2013,SUBSISTENCE,FUSION,EMPLOYEE EXPENSES,100694171,486.91,United Kingdom Atomic Energy Authority,United Kingdom Atomic Energy Authority
03/08/2013,SUBSISTENCE,FUSION,EMPLOYEE EXPENSES,100694152,491.34,United Kingdom Atomic Energy Authority,United Kingdom Atomic Energy Authority
23/08/2013,SUBSISTENCE,FUSION,EMPLOYEE EXPENSES,100694374,493.00,United Kingdom Atomic Energy Authority,United Kingdom Atomic Energy Authority
03/08/2013,SUBSISTENCE,FUSION,EMPLOYEE EXPENSES,100694153,548.61,United Kingdom Atomic Energy Authority,United Kingdom Atomic Energy Authority
08/08/2013,SUBSISTENCE,FUSION,EMPLOYEE EXPENSES,100694208,563.67,United Kingdom Atomic Energy Authority,United Kingdom Atomic Energy Authority
10/08/2013,SUBSISTENCE,FUSION,EMPLOYEE EXPENSES,100694221,581.56,United Kingdom Atomic Energy Authority,United Kingdom Atomic Energy Authority
23/08/2013,SUBSISTENCE,FUSION,EMPLOYEE EXPENSES,100694365,598.52,United Kingdom Atomic Energy Authority,United Kingdom Atomic Energy Authority
23/08/2013,CONFERENCES/MEETINGS,FUSION,EMPLOYEE EXPENSES,1900058715,682.67,United Kingdom Atomic Energy Authority,United Kingdom Atomic Energy Authority
07/08/2013,SUBSISTENCE,FUSION,VISITOR EXPENSES,1900058620,700.00,United Kingdom Atomic Energy Authority,United Kingdom Atomic Energy Authority
07/08/2013,SUBSISTENCE,FUSION,VISITOR EXPENSES,1900058621,700.00,United Kingdom Atomic Energy Authority,United Kingdom Atomic Energy Authority
03/08/2013,PROFESSIONAL SUBSCRIPTION,SUPPORT SERVICES,EMPLOYEE EXPENSES,100694169,"1,125.00",United Kingdom Atomic Energy Authority,United Kingdom Atomic Energy Authority
21/08/2013,PROFESSIONAL SERVICES,FUSION,ENERGY SAFETY AND RISK CONSULTANTS,5100292602,"33,360.97",United Kingdom Atomic Energy Authority,United Kingdom Atomic Energy Authority
14/08/2013,SITE SUPPORT SERVICES,FUSION,EVERSON TESLA INC,5100292508,"16,787.19",United Kingdom Atomic Energy Authority,United Kingdom Atomic Energy Authority
29/07/2013,MATERIALS & SPARES,FUSION,FARNELL ELECTRONIC,5100291894,-404.35,United Kingdom Atomic Energy Authority,United Kingdom Atomic Energy Authority
29/07/2013,MATERIALS & SPARES,FUSION,FARNELL ELECTRONIC,5100291800,1.19,United Kingdom Atomic Energy Authority,United Kingdom Atomic Energy Authority
05/08/2013,MATERIALS & SPARES,FUSION,FARNELL ELECTRONIC,5100292032,1.95,United Kingdom Atomic Energy Authority,United Kingdom Atomic Energy Authority
29/07/2013,MATERIALS & SPARES,FUSION,FARNELL ELECTRONIC,5100291812,4.20,United Kingdom Atomic Energy Authority,United Kingdom Atomic Energy Authority
29/07/2013,MATERIALS & SPARES,FUSION,FARNELL ELECTRONIC,5100291848,4.60,United Kingdom Atomic Energy Authority,United Kingdom Atomic Energy Authority
29/07/2013,MATERIALS & SPARES,FUSION,FARNELL ELECTRONIC,5100291821,4.76,United Kingdom Atomic Energy Authority,United Kingdom Atomic Energy Authority
29/07/2013,MATERIALS & SPARES,FUSION,FARNELL ELECTRONIC,5100291827,6.00,United Kingdom Atomic Energy Authority,United Kingdom Atomic Energy Authority
29/07/2013,MATERIALS & SPARES,FUSION,FARNELL ELECTRONIC,5100291788,6.22,United Kingdom Atomic Energy Authority,United Kingdom Atomic Energy Authority
12/08/2013,MATERIALS & SPARES,FUSION,FARNELL ELECTRONIC,5100292468,10.33,United Kingdom Atomic Energy Authority,United Kingdom Atomic Energy Authority
05/08/2013,MATERIALS & SPARES,FUSION,FARNELL ELECTRONIC,5100292038,10.40,United Kingdom Atomic Energy Authority,United Kingdom Atomic Energy Authority
29/07/2013,MATERIALS & SPARES,FUSION,FARNELL ELECTRONIC,5100291792,15.04,United Kingdom Atomic Energy Authority,United Kingdom Atomic Energy Authority
12/08/2013,MATERIALS & SPARES,FUSION,FARNELL ELECTRONIC,5100292271,15.12,United Kingdom Atomic Energy Authority,United Kingdom Atomic Energy Authority
29/07/2013,MATERIALS & SPARES,FUSION,FARNELL ELECTRONIC,5100291942,15.40,United Kingdom Atomic Energy Authority,United Kingdom Atomic Energy Authority
12/08/2013,MATERIALS & SPARES,FUSION,FARNELL ELECTRONIC,5100292262,16.16,United Kingdom Atomic Energy Authority,United Kingdom Atomic Energy Authority
12/08/2013,MATERIALS & SPARES,FUSION,FARNELL ELECTRONIC,5100292273,16.56,United Kingdom Atomic Energy Authority,United Kingdom Atomic Energy Authority
19/08/2013,MATERIALS & SPARES,FUSION,FARNELL ELECTRONIC,5100292749,21.43,United Kingdom Atomic Energy Authority,United Kingdom Atomic Energy Authority
29/07/2013,MATERIALS & SPARES,FUSION,FARNELL ELECTRONIC,5100291831,22.40,United Kingdom Atomic Energy Authority,United Kingdom Atomic Energy Authority
29/07/2013,MATERIALS & SPARES,FUSION,FARNELL ELECTRONIC,5100291793,23.74,United Kingdom Atomic Energy Authority,United Kingdom Atomic Energy Authority
19/08/2013,MATERIALS & SPARES,FUSION,FARNELL ELECTRONIC,5100292543,24.60,United Kingdom Atomic Energy Authority,United Kingdom Atomic Energy Authority
29/07/2013,MATERIALS & SPARES,FUSION,FARNELL ELECTRONIC,5100291893,30.42,United Kingdom Atomic Energy Authority,United Kingdom Atomic Energy Authority
19/08/2013,MATERIALS & SPARES,FUSION,FARNELL ELECTRONIC,5100292542,30.80,United Kingdom Atomic Energy Authority,United Kingdom Atomic Energy Authority
29/07/2013,MATERIALS & SPARES,FUSION,FARNELL ELECTRONIC,5100291840,35.90,United Kingdom Atomic Energy Authority,United Kingdom Atomic Energy Authority
12/08/2013,MATERIALS & SPARES,FUSION,FARNELL ELECTRONIC,5100292260,36.26,United Kingdom Atomic Energy Authority,United Kingdom Atomic Energy Authority
05/08/2013,MATERIALS & SPARES,FUSION,FARNELL ELECTRONIC,5100292035,36.53,United Kingdom Atomic Energy Authority,United Kingdom Atomic Energy Authority
12/08/2013,MATERIALS & SPARES,FUSION,FARNELL ELECTRONIC,5100292470,40.51,United Kingdom Atomic Energy Authority,United Kingdom Atomic Energy Authority
12/08/2013,MATERIALS & SPARES,FUSION,FARNELL ELECTRONIC,5100292267,41.25,United Kingdom Atomic Energy Authority,United Kingdom Atomic Energy Authority
29/07/2013,MATERIALS & SPARES,FUSION,FARNELL ELECTRONIC,5100290855,43.30,United Kingdom Atomic Energy Authority,United Kingdom Atomic Energy Authority
29/07/2013,MATERIALS & SPARES,FUSION,FARNELL ELECTRONIC,5100291823,44.78,United Kingdom Atomic Energy Authority,United Kingdom Atomic Energy Authority
19/08/2013,MATERIALS & SPARES,FUSION,FARNELL ELECTRONIC,5100292627,45.08,United Kingdom Atomic Energy Authority,United Kingdom Atomic Energy Authority
29/07/2013,MATERIALS & SPARES,FUSION,FARNELL ELECTRONIC,5100291824,45.90,United Kingdom Atomic Energy Authority,United Kingdom Atomic Energy Authority
14/08/2013,MATERIALS & SPARES,FUSION,FARNELL ELECTRONIC,5100291815,47.28,United Kingdom Atomic Energy Authority,United Kingdom Atomic Energy Authority
29/07/2013,MATERIALS & SPARES,FUSION,FARNELL ELECTRONIC,5100291797,48.34,United Kingdom Atomic Energy Authority,United Kingdom Atomic Energy Authority
19/08/2013,MATERIALS & SPARES,FUSION,FARNELL ELECTRONIC,5100292742,48.68,United Kingdom Atomic Energy Authority,United Kingdom Atomic Energy Authority
19/08/2013,MATERIALS & SPARES,FUSION,FARNELL ELECTRONIC,5100292544,52.80,United Kingdom Atomic Energy Authority,United Kingdom Atomic Energy Authority
07/08/2013,MATERIALS & SPARES,FUSION,FARNELL ELECTRONIC,5100292194,60.75,United Kingdom Atomic Energy Authority,United Kingdom Atomic Energy Authority
19/08/2013,MATERIALS & SPARES,FUSION,FARNELL ELECTRONIC,5100292403,61.70,United Kingdom Atomic Energy Authority,United Kingdom Atomic Energy Authority
29/07/2013,MATERIALS & SPARES,FUSION,FARNELL ELECTRONIC,5100291784,63.23,United Kingdom Atomic Energy Authority,United Kingdom Atomic Energy Authority
12/08/2013,MATERIALS & SPARES,FUSION,FARNELL ELECTRONIC,5100292265,64.39,United Kingdom Atomic Energy Authority,United Kingdom Atomic Energy Authority
29/07/2013,MATERIALS & SPARES,FUSION,FARNELL ELECTRONIC,5100291819,69.53,United Kingdom Atomic Energy Authority,United Kingdom Atomic Energy Authority
29/07/2013,MATERIALS & SPARES,FUSION,FARNELL ELECTRONIC,5100291811,71.20,United Kingdom Atomic Energy Authority,United Kingdom Atomic Energy Authority
19/08/2013,MATERIALS & SPARES,FUSION,FARNELL ELECTRONIC,5100292628,72.00,United Kingdom Atomic Energy Authority,United Kingdom Atomic Energy Authority
05/08/2013,MATERIALS & SPARES,FUSION,FARNELL ELECTRONIC,5100292157,73.65,United Kingdom Atomic Energy Authority,United Kingdom Atomic Energy Authority
12/08/2013,MATERIALS & SPARES,FUSION,FARNELL ELECTRONIC,5100292275,76.40,United Kingdom Atomic Energy Authority,United Kingdom Atomic Energy Authority
29/07/2013,MATERIALS & SPARES,FUSION,FARNELL ELECTRONIC,5100291941,80.35,United Kingdom Atomic Energy Authority,United Kingdom Atomic Energy Authority
12/08/2013,MATERIALS & SPARES,FUSION,FARNELL ELECTRONIC,5100292467,82.00,United Kingdom Atomic Energy Authority,United Kingdom Atomic Energy Authority
29/07/2013,MATERIALS & SPARES,FUSION,FARNELL ELECTRONIC,5100291943,84.30,United Kingdom Atomic Energy Authority,United Kingdom Atomic Energy Authority
05/08/2013,MATERIALS & SPARES,FUSION,FARNELL ELECTRONIC,5100292040,85.76,United Kingdom Atomic Energy Authority,United Kingdom Atomic Energy Authority
12/08/2013,MATERIALS & SPARES,FUSION,FARNELL ELECTRONIC,5100292272,92.86,United Kingdom Atomic Energy Authority,United Kingdom Atomic Energy Authority
05/08/2013,MATERIALS & SPARES,FUSION,FARNELL ELECTRONIC,5100292158,93.72,United Kingdom Atomic Energy Authority,United Kingdom Atomic Energy Authority
29/07/2013,MATERIALS & SPARES,FUSION,FARNELL ELECTRONIC,5100291825,94.04,United Kingdom Atomic Energy Authority,United Kingdom Atomic Energy Authority
07/08/2013,MATERIALS & SPARES,FUSION,FARNELL ELECTRONIC,5100292036,96.53,United Kingdom Atomic Energy Authority,United Kingdom Atomic Energy Authority
12/08/2013,MATERIALS & SPARES,FUSION,FARNELL ELECTRONIC,5100292401,96.63,United Kingdom Atomic Energy Authority,United Kingdom Atomic Energy Authority
05/08/2013,MATERIALS & SPARES,FUSION,FARNELL ELECTRONIC,5100292030,99.77,United Kingdom Atomic Energy Authority,United Kingdom Atomic Energy Authority
29/07/2013,MATERIALS & SPARES,FUSION,FARNELL ELECTRONIC,5100291789,99.80,United Kingdom Atomic Energy Authority,United Kingdom Atomic Energy Authority
29/07/2013,MATERIALS & SPARES,FUSION,FARNELL ELECTRONIC,5100291804,100.10,United Kingdom Atomic Energy Authority,United Kingdom Atomic Energy Authority
12/08/2013,MATERIALS & SPARES,FUSION,FARNELL ELECTRONIC,5100292402,101.78,United Kingdom Atomic Energy Authority,United Kingdom Atomic Energy Authority
12/08/2013,MATERIALS & SPARES,FUSION,FARNELL ELECTRONIC,5100292465,101.97,United Kingdom Atomic Energy Authority,United Kingdom Atomic Energy Authority
29/07/2013,MATERIALS & SPARES,FUSION,FARNELL ELECTRONIC,5100291787,102.24,United Kingdom Atomic Energy Authority,United Kingdom Atomic Energy Authority
14/08/2013,MATERIALS & SPARES,FUSION,FARNELL ELECTRONIC,5100292530,107.31,United Kingdom Atomic Energy Authority,United Kingdom Atomic Energy Authority
19/08/2013,MATERIALS & SPARES,FUSION,FARNELL ELECTRONIC,5100292748,110.50,United Kingdom Atomic Energy Authority,United Kingdom Atomic Energy Authority
12/08/2013,MATERIALS & SPARES,FUSION,FARNELL ELECTRONIC,5100292529,124.29,United Kingdom Atomic Energy Authority,United Kingdom Atomic Energy Authority
29/07/2013,MATERIALS & SPARES,FUSION,FARNELL ELECTRONIC,5100291791,126.85,United Kingdom Atomic Energy Authority,United Kingdom Atomic Energy Authority
29/07/2013,MATERIALS & SPARES,FUSION,FARNELL ELECTRONIC,5100291534,127.30,United Kingdom Atomic Energy Authority,United Kingdom Atomic Energy Authority
29/07/2013,MATERIALS & SPARES,FUSION,FARNELL ELECTRONIC,5100291826,134.50,United Kingdom Atomic Energy Authority,United Kingdom Atomic Energy Authority
29/07/2013,MATERIALS & SPARES,FUSION,FARNELL ELECTRONIC,5100291833,136.23,United Kingdom Atomic Energy Authority,United Kingdom Atomic Energy Authority
12/08/2013,MATERIALS & SPARES,FUSION,FARNELL ELECTRONIC,5100292268,140.55,United Kingdom Atomic Energy Authority,United Kingdom Atomic Energy Authority
29/07/2013,MATERIALS & SPARES,FUSION,FARNELL ELECTRONIC,5100291842,141.31,United Kingdom Atomic Energy Authority,United Kingdom Atomic Energy Authority
12/08/2013,MATERIALS & SPARES,FUSION,FARNELL ELECTRONIC,5100292466,143.25,United Kingdom Atomic Energy Authority,United Kingdom Atomic Energy Authority
29/07/2013,MATERIALS & SPARES,FUSION,FARNELL ELECTRONIC,5100291829,144.70,United Kingdom Atomic Energy Authority,United Kingdom Atomic Energy Authority
12/08/2013,MATERIALS & SPARES,FUSION,FARNELL ELECTRONIC,5100292270,151.11,United Kingdom Atomic Energy Authority,United Kingdom Atomic Energy Authority
29/07/2013,MATERIALS & SPARES,FUSION,FARNELL ELECTRONIC,5100291542,154.00,United Kingdom Atomic Energy Authority,United Kingdom Atomic Energy Authority
29/07/2013,MATERIALS & SPARES,FUSION,FARNELL ELECTRONIC,5100291786,155.72,United Kingdom Atomic Energy Authority,United Kingdom Atomic Energy Authority
05/08/2013,MATERIALS & SPARES,FUSION,FARNELL ELECTRONIC,5100292197,157.68,United Kingdom Atomic Energy Authority,United Kingdom Atomic Energy Authority
29/07/2013,MATERIALS & SPARES,FUSION,FARNELL ELECTRONIC,5100291805,169.72,United Kingdom Atomic Energy Authority,United Kingdom Atomic Energy Authority
29/07/2013,MATERIALS & SPARES,FUSION,FARNELL ELECTRONIC,5100291939,170.47,United Kingdom Atomic Energy Authority,United Kingdom Atomic Energy Authority
05/08/2013,MATERIALS & SPARES,FUSION,FARNELL ELECTRONIC,5100292031,170.90,United Kingdom Atomic Energy Authority,United Kingdom Atomic Energy Authority
19/08/2013,MATERIALS & SPARES,FUSION,FARNELL ELECTRONIC,5100292629,174.63,United Kingdom Atomic Energy Authority,United Kingdom Atomic Energy Authority
19/08/2013,MATERIALS & SPARES,FUSION,FARNELL ELECTRONIC,5100292545,177.34,United Kingdom Atomic Energy Authority,United Kingdom Atomic Energy Authority
05/08/2013,MATERIALS & SPARES,FUSION,FARNELL ELECTRONIC,5100292039,182.14,United Kingdom Atomic Energy Authority,United Kingdom Atomic Energy Authority
29/07/2013,MATERIALS & SPARES,SUPPORT SERVICES,FARNELL ELECTRONIC,5100291847,200.60,United Kingdom Atomic Energy Authority,United Kingdom Atomic Energy Authority
29/07/2013,MATERIALS & SPARES,FUSION,FARNELL ELECTRONIC,5100291794,211.90,United Kingdom Atomic Energy Authority,United Kingdom Atomic Energy Authority
29/07/2013,MATERIALS & SPARES,FUSION,FARNELL ELECTRONIC,5100291850,213.72,United Kingdom Atomic Energy Authority,United Kingdom Atomic Energy Authority
12/08/2013,MATERIALS & SPARES,FUSION,FARNELL ELECTRONIC,5100292469,217.85,United Kingdom Atomic Energy Authority,United Kingdom Atomic Energy Authority
12/08/2013,MATERIALS & SPARES,FUSION,FARNELL ELECTRONIC,5100292269,217.92,United Kingdom Atomic Energy Authority,United Kingdom Atomic Energy Authority
19/08/2013,MATERIALS & SPARES,FUSION,FARNELL ELECTRONIC,5100292630,223.20,United Kingdom Atomic Energy Authority,United Kingdom Atomic Energy Authority
12/08/2013,MATERIALS & SPARES,FUSION,FARNELL ELECTRONIC,5100292264,225.40,United Kingdom Atomic Energy Authority,United Kingdom Atomic Energy Authority
19/08/2013,MATERIALS & SPARES,FUSION,FARNELL ELECTRONIC,5100292744,246.55,United Kingdom Atomic Energy Authority,United Kingdom Atomic Energy Authority
19/08/2013,MATERIALS & SPARES,FUSION,FARNELL ELECTRONIC,5100292540,252.54,United Kingdom Atomic Energy Authority,United Kingdom Atomic Energy Authority
19/08/2013,MATERIALS & SPARES,FUSION,FARNELL ELECTRONIC,5100292541,259.98,United Kingdom Atomic Energy Authority,United Kingdom Atomic Energy Authority
12/08/2013,MATERIALS & SPARES,FUSION,FARNELL ELECTRONIC,5100292404,263.82,United Kingdom Atomic Energy Authority,United Kingdom Atomic Energy Authority
29/07/2013,MATERIALS & SPARES,FUSION,FARNELL ELECTRONIC,5100291799,274.30,United Kingdom Atomic Energy Authority,United Kingdom Atomic Energy Authority
29/07/2013,MATERIALS & SPARES,FUSION,FARNELL ELECTRONIC,5100291822,274.90,United Kingdom Atomic Energy Authority,United Kingdom Atomic Energy Authority
29/07/2013,MATERIALS & SPARES,FUSION,FARNELL ELECTRONIC,5100291837,278.59,United Kingdom Atomic Energy Authority,United Kingdom Atomic Energy Authority
05/08/2013,MATERIALS & SPARES,FUSION,FARNELL ELECTRONIC,5100292037,285.00,United Kingdom Atomic Energy Authority,United Kingdom Atomic Energy Authority
29/07/2013,MATERIALS & SPARES,FUSION,FARNELL ELECTRONIC,5100291798,304.40,United Kingdom Atomic Energy Authority,United Kingdom Atomic Energy Authority
05/08/2013,MATERIALS & SPARES,FUSION,FARNELL ELECTRONIC,5100292196,412.35,United Kingdom Atomic Energy Authority,United Kingdom Atomic Energy Authority
29/07/2013,MATERIALS & SPARES,FUSION,FARNELL ELECTRONIC,5100291830,503.10,United Kingdom Atomic Energy Authority,United Kingdom Atomic Energy Authority
05/08/2013,MATERIALS & SPARES,FUSION,FARNELL ELECTRONIC,5100292195,512.25,United Kingdom Atomic Energy Authority,United Kingdom Atomic Energy Authority
12/08/2013,MATERIALS & SPARES,FUSION,FARNELL ELECTRONIC,5100292274,521.27,United Kingdom Atomic Energy Authority,United Kingdom Atomic Energy Authority
29/07/2013,MATERIALS & SPARES,FUSION,FARNELL ELECTRONIC,5100291838,531.40,United Kingdom Atomic Energy Authority,United Kingdom Atomic Energy Authority
29/07/2013,MATERIALS & SPARES,FUSION,FARNELL ELECTRONIC,5100291839,547.80,United Kingdom Atomic Energy Authority,United Kingdom Atomic Energy Authority
29/07/2013,MATERIALS & SPARES,FUSION,FARNELL ELECTRONIC,5100291785,551.05,United Kingdom Atomic Energy Authority,United Kingdom Atomic Energy Authority
29/07/2013,MATERIALS & SPARES,SUPPORT SERVICES,FARNELL ELECTRONIC,5100291790,711.90,United Kingdom Atomic Energy Authority,United Kingdom Atomic Energy Authority
29/07/2013,MATERIALS & SPARES,FUSION,FARNELL ELECTRONIC,5100291828,778.40,United Kingdom Atomic Energy Authority,United Kingdom Atomic Energy Authority
29/07/2013,MATERIALS & SPARES,FUSION,FARNELL ELECTRONIC,5100291892,854.84,United Kingdom Atomic Energy Authority,United Kingdom Atomic Energy Authority
29/07/2013,MATERIALS & SPARES,FUSION,FARNELL ELECTRONIC,5100291832,"1,019.93",United Kingdom Atomic Energy Authority,United Kingdom Atomic Energy Authority
12/08/2013,MATERIALS & SPARES,FUSION,FARNELL ELECTRONIC,5100292464,"1,325.17",United Kingdom Atomic Energy Authority,United Kingdom Atomic Energy Authority
29/07/2013,MATERIALS & SPARES,FUSION,FARNELL ELECTRONIC,5100291940,"1,350.42",United Kingdom Atomic Energy Authority,United Kingdom Atomic Energy Authority
29/07/2013,MATERIALS & SPARES,FUSION,FARNELL ELECTRONIC,5100291844,"1,448.40",United Kingdom Atomic Energy Authority,United Kingdom Atomic Energy Authority
05/08/2013,MATERIALS & SPARES,FUSION,FARNELL ELECTRONIC,5100292034,"1,997.50",United Kingdom Atomic Energy Authority,United Kingdom Atomic Energy Authority
05/08/2013,SOFTWARE,FUSION,FARO UK LTD,5100292121,"41,125.00",United Kingdom Atomic Energy Authority,United Kingdom Atomic Energy Authority
12/08/2013,MATERIALS & SPARES,FUSION,FASTFIX,5100292311,91.63,United Kingdom Atomic Energy Authority,United Kingdom Atomic Energy Authority
19/08/2013,STATIONERY,FUSION,FINE PRINT SERVICES,5100292012,325.00,United Kingdom Atomic Energy Authority,United Kingdom Atomic Energy Authority
12/08/2013,MATERIALS & SPARES,FUSION,FIRE CHECK,5100292245,"8,592.00",United Kingdom Atomic Energy Authority,United Kingdom Atomic Energy Authority
12/08/2013,PLANT & EQUIPMENT,SUPPORT SERVICES,FISHER SCIENTIFIC UK LTD,5100292528,30.73,United Kingdom Atomic Energy Authority,United Kingdom Atomic Energy Authority
19/08/2013,PLANT & EQUIPMENT,FUSION,FISHER SCIENTIFIC UK LTD,5100292632,80.88,United Kingdom Atomic Energy Authority,United Kingdom Atomic Energy Authority
05/08/2013,PLANT & EQUIPMENT,FUSION,FISHER SCIENTIFIC UK LTD,5100292045,88.16,United Kingdom Atomic Energy Authority,United Kingdom Atomic Energy Authority
19/08/2013,PLANT & EQUIPMENT,FUSION,FISHER SCIENTIFIC UK LTD,5100292752,155.66,United Kingdom Atomic Energy Authority,United Kingdom Atomic Energy Authority
12/08/2013,PLANT & EQUIPMENT,FUSION,FISHER SCIENTIFIC UK LTD,5100292531,159.80,United Kingdom Atomic Energy Authority,United Kingdom Atomic Energy Authority
12/08/2013,PLANT & EQUIPMENT,SUPPORT SERVICES,FISHER SCIENTIFIC UK LTD,5100292295,175.93,United Kingdom Atomic Energy Authority,United Kingdom Atomic Energy Authority
12/08/2013,PLANT & EQUIPMENT,FUSION,FISHER SCIENTIFIC UK LTD,5100292297,252.00,United Kingdom Atomic Energy Authority,United Kingdom Atomic Energy Authority
29/07/2013,PLANT & EQUIPMENT,FUSION,FISHER SCIENTIFIC UK LTD,5100291889,268.35,United Kingdom Atomic Energy Authority,United Kingdom Atomic Energy Authority
19/08/2013,PLANT & EQUIPMENT,FUSION,FISHER SCIENTIFIC UK LTD,5100292753,455.00,United Kingdom Atomic Energy Authority,United Kingdom Atomic Energy Authority
12/08/2013,PLANT & EQUIPMENT,FUSION,FISHER SCIENTIFIC UK LTD,5100292532,"1,748.12",United Kingdom Atomic Energy Authority,United Kingdom Atomic Energy Authority
21/08/2013,CONSULTANCY,FUSION,FOOTWORK FISRT LTD,5100292615,325.00,United Kingdom Atomic Energy Authority,United Kingdom Atomic Energy Authority
31/07/2013,EFDA SECONDEE CONTRACT,FUSION,FORSCHUNGSZENTRUM JULICH,5100291511,"28,912.93",United Kingdom Atomic Energy Authority,United Kingdom Atomic Energy Authority
29/07/2013,MATERIALS & SPARES,FUSION,FORWARD 2000 LTD,5100291857,90.46,United Kingdom Atomic Energy Authority,United Kingdom Atomic Energy Authority
12/08/2013,MATERIALS & SPARES,FUSION,FORWARD 2000 LTD,5100292331,364.64,United Kingdom Atomic Energy Authority,United Kingdom Atomic Energy Authority
31/07/2013,RESEARCH & DEVELOPMENT,FUSION,FRAZER NASH CONSULTANCY,5100292008,"30,000.00",United Kingdom Atomic Energy Authority,United Kingdom Atomic Energy Authority
05/08/2013,MATERIALS & SPARES,FUSION,FTI LTD,5100292162,"1,144.45",United Kingdom Atomic Energy Authority,United Kingdom Atomic Energy Authority
12/08/2013,STATIONERY,FUSION,FULTON PAPER,5100292399,"2,200.00",United Kingdom Atomic Energy Authority,United Kingdom Atomic Energy Authority
01/08/2013,PROFESSIONAL SUBSCRIPTION,FUSION,FuseNET Association,1900058589,"2,610.51",United Kingdom Atomic Energy Authority,United Kingdom Atomic Energy Authority
01/08/2013,RAW MATERIALS & CONSUMABLES,FUSION,Future Metals Uk,1900058592,812.52,United Kingdom Atomic Energy Authority,United Kingdom Atomic Energy Authority
06/08/2013,CONFERENCES/MEETINGS,SUPPORT SERVICES,General Atomics,1900058615,"1,073.23",United Kingdom Atomic Energy Authority,United Kingdom Atomic Energy Authority
14/08/2013,PROFESSIONAL SERVICES,FUSION,GLANVILLE CONSULTANTS,5100292608,80.14,United Kingdom Atomic Energy Authority,United Kingdom Atomic Energy Authority
12/08/2013,PROFESSIONAL SERVICES,FUSION,GLANVILLE CONSULTANTS,5100292396,367.79,United Kingdom Atomic Energy Authority,United Kingdom Atomic Energy Authority
14/08/2013,PROFESSIONAL SERVICES,FUSION,GLANVILLE CONSULTANTS,5100292392,368.36,United Kingdom Atomic Energy Authority,United Kingdom Atomic Energy Authority
14/08/2013,PROFESSIONAL SERVICES,FUSION,GLANVILLE CONSULTANTS,5100292395,463.70,United Kingdom Atomic Energy Authority,United Kingdom Atomic Energy Authority
14/08/2013,PLANT & EQUIPMENT,FUSION,GOODFELLOW CAMBRIDGE LTD,5100291816,193.00,United Kingdom Atomic Energy Authority,United Kingdom Atomic Energy Authority
29/07/2013,MATERIALS & SPARES,FUSION,GOODMAND STEEL SERVICES LTD,5100292020,-30.00,United Kingdom Atomic Energy Authority,United Kingdom Atomic Energy Authority
29/07/2013,MATERIALS & SPARES,FUSION,GOODMAND STEEL SERVICES LTD,5100292021,-30.00,United Kingdom Atomic Energy Authority,United Kingdom Atomic Energy Authority
12/08/2013,MATERIALS & SPARES,FUSION,GOODMAND STEEL SERVICES LTD,5100292471,-30.00,United Kingdom Atomic Energy Authority,United Kingdom Atomic Energy Authority
12/08/2013,MATERIALS & SPARES,FUSION,GOODMAND STEEL SERVICES LTD,5100291916,145.00,United Kingdom Atomic Energy Authority,United Kingdom Atomic Energy Authority
29/07/2013,MATERIALS & SPARES,FUSION,GOODMAND STEEL SERVICES LTD,5100289990,187.31,United Kingdom Atomic Energy Authority,United Kingdom Atomic Energy Authority
29/07/2013,MATERIALS & SPARES,FUSION,GOODMAND STEEL SERVICES LTD,5100291487,329.90,United Kingdom Atomic Energy Authority,United Kingdom Atomic Energy Authority
12/08/2013,INSURANCE,SUPPORT SERVICES,GROUPAMA INSURANCE COMPANY LTD,5100292252,"6,468.72",United Kingdom Atomic Energy Authority,United Kingdom Atomic Energy Authority
12/08/2013,PROFESSIONAL SERVICES,PROPERTY,GRUNDON WASTE MANAGEMENT LTD,5100291671,43.96,United Kingdom Atomic Energy Authority,United Kingdom Atomic Energy Authority
12/08/2013,PROFESSIONAL SERVICES,PROPERTY,GRUNDON WASTE MANAGEMENT LTD,5100291672,43.96,United Kingdom Atomic Energy Authority,United Kingdom Atomic Energy Authority
12/08/2013,PROFESSIONAL SERVICES,PROPERTY,GRUNDON WASTE MANAGEMENT LTD,5100291674,77.40,United Kingdom Atomic Energy Authority,United Kingdom Atomic Energy Authority
12/08/2013,PROFESSIONAL SERVICES,PROPERTY,GRUNDON WASTE MANAGEMENT LTD,5100291673,87.92,United Kingdom Atomic Energy Authority,United Kingdom Atomic Energy Authority
21/08/2013,PROFESSIONAL SERVICES,PROPERTY,GRUNDON WASTE MANAGEMENT LTD,5100292638,118.65,United Kingdom Atomic Energy Authority,United Kingdom Atomic Energy Authority
21/08/2013,PROFESSIONAL SERVICES,PROPERTY,GRUNDON WASTE MANAGEMENT LTD,5100292646,118.65,United Kingdom Atomic Energy Authority,United Kingdom Atomic Energy Authority
21/08/2013,PROFESSIONAL SERVICES,PROPERTY,GRUNDON WASTE MANAGEMENT LTD,5100292641,125.00,United Kingdom Atomic Energy Authority,United Kingdom Atomic Energy Authority
21/08/2013,PROFESSIONAL SERVICES,PROPERTY,GRUNDON WASTE MANAGEMENT LTD,5100292642,125.00,United Kingdom Atomic Energy Authority,United Kingdom Atomic Energy Authority
12/08/2013,PROFESSIONAL SERVICES,PROPERTY,GRUNDON WASTE MANAGEMENT LTD,5100291667,175.84,United Kingdom Atomic Energy Authority,United Kingdom Atomic Energy Authority
12/08/2013,PROFESSIONAL SERVICES,PROPERTY,GRUNDON WASTE MANAGEMENT LTD,5100291666,181.24,United Kingdom Atomic Energy Authority,United Kingdom Atomic Energy Authority
21/08/2013,PROFESSIONAL SERVICES,PROPERTY,GRUNDON WASTE MANAGEMENT LTD,5100292645,237.30,United Kingdom Atomic Energy Authority,United Kingdom Atomic Energy Authority
21/08/2013,PROFESSIONAL SERVICES,PROPERTY,GRUNDON WASTE MANAGEMENT LTD,5100292639,267.30,United Kingdom Atomic Energy Authority,United Kingdom Atomic Energy Authority
21/08/2013,PROFESSIONAL SERVICES,PROPERTY,GRUNDON WASTE MANAGEMENT LTD,5100292640,267.30,United Kingdom Atomic Energy Authority,United Kingdom Atomic Energy Authority
12/08/2013,PROFESSIONAL SERVICES,PROPERTY,GRUNDON WASTE MANAGEMENT LTD,5100291663,297.56,United Kingdom Atomic Energy Authority,United Kingdom Atomic Energy Authority
12/08/2013,PROFESSIONAL SERVICES,PROPERTY,GRUNDON WASTE MANAGEMENT LTD,5100292397,297.60,United Kingdom Atomic Energy Authority,United Kingdom Atomic Energy Authority
21/08/2013,PROFESSIONAL SERVICES,PROPERTY,GRUNDON WASTE MANAGEMENT LTD,5100292644,474.60,United Kingdom Atomic Energy Authority,United Kingdom Atomic Energy Authority
12/08/2013,PROFESSIONAL SERVICES,PROPERTY,GRUNDON WASTE MANAGEMENT LTD,5100291665,680.80,United Kingdom Atomic Energy Authority,United Kingdom Atomic Energy Authority
12/08/2013,PROFESSIONAL SERVICES,PROPERTY,GRUNDON WASTE MANAGEMENT LTD,5100291664,803.55,United Kingdom Atomic Energy Authority,United Kingdom Atomic Energy Authority
21/08/2013,PROFESSIONAL SERVICES,PROPERTY,GRUNDON WASTE MANAGEMENT LTD,5100292637,813.90,United Kingdom Atomic Energy Authority,United Kingdom Atomic Energy Authority
29/07/2013,PROFESSIONAL SERVICES,FUSION,Gyrobot Ltd,1900058559,138.27,United Kingdom Atomic Energy Authority,United Kingdom Atomic Energy Authority
07/08/2013,PLANT SPARES,FUSION,HARDMETAL ENG CORNWALL LTD,5100292342,49.27,United Kingdom Atomic Energy Authority,United Kingdom Atomic Energy Authority
07/08/2013,PLANT SPARES,FUSION,HARDMETAL ENG CORNWALL LTD,5100292341,"3,013.65",United Kingdom Atomic Energy Authority,United Kingdom Atomic Energy Authority
05/08/2013,TAXIS,FUSION,HAROLDS CARS,5100292241,"5,593.51",United Kingdom Atomic Energy Authority,United Kingdom Atomic Energy Authority
29/07/2013,PROFESSIONAL SERVICES,SUPPORT SERVICES,HAY GROUP,5100291944,"1,700.00",United Kingdom Atomic Energy Authority,United Kingdom Atomic Energy Authority
19/08/2013,DESIGN & CONSTRUCTION,PROPERTY,HILLMOORE FIRE PROTECTION LIMITED,5100292662,"6,164.98",United Kingdom Atomic Energy Authority,United Kingdom Atomic Energy Authority
29/07/2013,PLANT SPARES,FUSION,HILTI GB LTD,5100291622,-125.00,United Kingdom Atomic Energy Authority,United Kingdom Atomic Energy Authority
29/07/2013,PLANT SPARES,FUSION,HILTI GB LTD,5100291564,22.50,United Kingdom Atomic Energy Authority,United Kingdom Atomic Energy Authority
07/08/2013,PLANT SPARES,FUSION,HILTI GB LTD,5100292159,80.99,United Kingdom Atomic Energy Authority,United Kingdom Atomic Energy Authority
29/07/2013,PLANT SPARES,FUSION,HILTI GB LTD,5100291435,228.00,United Kingdom Atomic Energy Authority,United Kingdom Atomic Energy Authority
14/08/2013,MATERIALS & SPARES,FUSION,HOTCHKISS AIR SUPPLY,5100292307,27.50,United Kingdom Atomic Energy Authority,United Kingdom Atomic Energy Authority
09/08/2013,CONFERENCES/MEETINGS,FUSION,Hotel Madanis,1900058649,"1,296.07",United Kingdom Atomic Energy Authority,United Kingdom Atomic Energy Authority
14/08/2013,PLANT & EQUIPMENT,FUSION,HUBBS MACHINE & MFG INC,5100292105,"1,063.53",United Kingdom Atomic Energy Authority,United Kingdom Atomic Energy Authority
29/07/2013,REPAIRS & MAINTENANCE,FUSION,HV Bushing Services,1900058562,"2,437.20",United Kingdom Atomic Energy Authority,United Kingdom Atomic Energy Authority
31/07/2013,CLEANING,FUSION,HYDROBLAST,5100291749,210.00,United Kingdom Atomic Energy Authority,United Kingdom Atomic Energy Authority
12/08/2013,CLEANING,FUSION,HYDROBLAST,5100292335,"1,135.00",United Kingdom Atomic Energy Authority,United Kingdom Atomic Energy Authority
12/08/2013,PROFESSIONAL SERVICES,FUSION,HYTEC ELECTRONICS LTD,5100292280,591.44,United Kingdom Atomic Energy Authority,United Kingdom Atomic Energy Authority
05/08/2013,PROFESSIONAL SERVICES,SUPPORT SERVICES,IET SERVICES LIMITED,5100292090,"2,000.00",United Kingdom Atomic Energy Authority,United Kingdom Atomic Energy Authority
29/07/2013,SOFTWARE,FUSION,IGE+XAO LTD,5100291898,823.41,United Kingdom Atomic Energy Authority,United Kingdom Atomic Energy Authority
12/08/2013,UNIVERSITY PLACEMENT,FUSION,IMPERIAL COLLEGE,5100292253,"4,094.00",United Kingdom Atomic Energy Authority,United Kingdom Atomic Energy Authority
05/08/2013,SITE SUPPORT SERVICES,PROPERTY,INFOCASH LTD,5100292247,100.00,United Kingdom Atomic Energy Authority,United Kingdom Atomic Energy Authority
19/08/2013,SITE SUPPORT SERVICES,PROPERTY,INFOCASH LTD,5100292581,100.00,United Kingdom Atomic Energy Authority,United Kingdom Atomic Energy Authority
19/08/2013,PLANT & EQUIPMENT,FUSION,INSIGHT DIRECT LTD,5100292548,"1,150.90",United Kingdom Atomic Energy Authority,United Kingdom Atomic Energy Authority
29/07/2013,PLANT & EQUIPMENT,FUSION,INSIGHT DIRECT LTD,5100291802,"2,146.80",United Kingdom Atomic Energy Authority,United Kingdom Atomic Energy Authority
09/08/2013,INTERVIEW EXPENSES,FUSION,INTERVIEW EXPENSES,1900058643,17.70,United Kingdom Atomic Energy Authority,United Kingdom Atomic Energy Authority
09/08/2013,INTERVIEW EXPENSES,FUSION,INTERVIEW EXPENSES,1900058644,23.88,United Kingdom Atomic Energy Authority,United Kingdom Atomic Energy Authority
20/08/2013,INTERVIEW EXPENSES,FUSION,INTERVIEW EXPENSES,1900058684,30.65,United Kingdom Atomic Energy Authority,United Kingdom Atomic Energy Authority
30/07/2013,INTERVIEW EXPENSES,FUSION,INTERVIEW EXPENSES,1900058566,46.40,United Kingdom Atomic Energy Authority,United Kingdom Atomic Energy Authority
30/07/2013,INTERVIEW EXPENSES,FUSION,INTERVIEW EXPENSES,1900058567,51.20,United Kingdom Atomic Energy Authority,United Kingdom Atomic Energy Authority
06/08/2013,INTERVIEW EXPENSES,FUSION,INTERVIEW EXPENSES,1900058605,68.60,United Kingdom Atomic Energy Authority,United Kingdom Atomic Energy Authority
31/07/2013,INTERVIEW EXPENSES,FUSION,INTERVIEW EXPENSES,1900058584,232.30,United Kingdom Atomic Energy Authority,United Kingdom Atomic Energy Authority
12/08/2013,PUBLICATIONS,FUSION,IOP PUBLISHING LTD,5100292305,545.00,United Kingdom Atomic Energy Authority,United Kingdom Atomic Energy Authority
12/08/2013,MATERIALS & SPARES,FUSION,IS RAYFAST LTD,5100292458,83.92,United Kingdom Atomic Energy Authority,United Kingdom Atomic Energy Authority
21/08/2013,MATERIALS & SPARES,FUSION,IS RAYFAST LTD,5100292527,100.45,United Kingdom Atomic Energy Authority,United Kingdom Atomic Energy Authority
21/08/2013,MATERIALS & SPARES,FUSION,IS RAYFAST LTD,5100292668,105.82,United Kingdom Atomic Energy Authority,United Kingdom Atomic Energy Authority
21/08/2013,MATERIALS & SPARES,FUSION,IS RAYFAST LTD,5100292626,995.20,United Kingdom Atomic Energy Authority,United Kingdom Atomic Energy Authority
12/08/2013,TRAINING COSTS,FUSION,ISIS TRAINING SERVICES LTD,5100292358,251.00,United Kingdom Atomic Energy Authority,United Kingdom Atomic Energy Authority
05/08/2013,TRAINING COSTS,FUSION,ISIS TRAINING SERVICES LTD,5100292163,292.00,United Kingdom Atomic Energy Authority,United Kingdom Atomic Energy Authority
31/07/2013,SECONDED STAFF,FUSION,IST,5100291301,"42,155.05",United Kingdom Atomic Energy Authority,United Kingdom Atomic Energy Authority
14/08/2013,MATERIALS & SPARES,FUSION,JAC TOOLS LTD,5100292251,99.34,United Kingdom Atomic Energy Authority,United Kingdom Atomic Energy Authority
19/08/2013,PROFESSIONAL SERVICES,FUSION,KEMP & KEMP,5100292614,390.00,United Kingdom Atomic Energy Authority,United Kingdom Atomic Energy Authority
21/08/2013,PROFESSIONAL SERVICES,PROPERTY,KEMP & KEMP,5100292233,"1,200.00",United Kingdom Atomic Energy Authority,United Kingdom Atomic Energy Authority
19/08/2013,PROFESSIONAL SERVICES,PROPERTY,KEMP & KEMP,5100292619,"4,769.50",United Kingdom Atomic Energy Authority,United Kingdom Atomic Energy Authority
05/08/2013,PLANT & EQUIPMENT,FUSION,KENNAMETAL SINTEC,5100292122,"1,315.15",United Kingdom Atomic Energy Authority,United Kingdom Atomic Energy Authority
12/08/2013,COMPENSATION AND LEGAL FEES,SUPPORT SERVICES,KEOGHS,5100292351,80.00,United Kingdom Atomic Energy Authority,United Kingdom Atomic Energy Authority
29/07/2013,COMPENSATION AND LEGAL FEES,SUPPORT SERVICES,KEOGHS,5100291885,80.00,United Kingdom Atomic Energy Authority,United Kingdom Atomic Energy Authority
29/07/2013,COMPENSATION AND LEGAL FEES,SUPPORT SERVICES,KEOGHS,5100291886,112.00,United Kingdom Atomic Energy Authority,United Kingdom Atomic Energy Authority
29/07/2013,COMPENSATION AND LEGAL FEES,SUPPORT SERVICES,KEOGHS,5100291887,112.00,United Kingdom Atomic Energy Authority,United Kingdom Atomic Energy Authority
19/08/2013,COMPENSATION AND LEGAL FEES,SUPPORT SERVICES,KEOGHS,5100292625,160.00,United Kingdom Atomic Energy Authority,United Kingdom Atomic Energy Authority
29/07/2013,COMPENSATION AND LEGAL FEES,SUPPORT SERVICES,KEOGHS,5100291888,176.00,United Kingdom Atomic Energy Authority,United Kingdom Atomic Energy Authority
12/08/2013,COMPENSATION AND LEGAL FEES,SUPPORT SERVICES,KEOGHS,5100292349,176.00,United Kingdom Atomic Energy Authority,United Kingdom Atomic Energy Authority
12/08/2013,COMPENSATION AND LEGAL FEES,SUPPORT SERVICES,KEOGHS,5100292345,368.00,United Kingdom Atomic Energy Authority,United Kingdom Atomic Energy Authority
19/08/2013,COMPENSATION AND LEGAL FEES,SUPPORT SERVICES,KEOGHS,5100292624,464.00,United Kingdom Atomic Energy Authority,United Kingdom Atomic Energy Authority
12/08/2013,COMPENSATION AND LEGAL FEES,SUPPORT SERVICES,KEOGHS,5100292346,752.00,United Kingdom Atomic Energy Authority,United Kingdom Atomic Energy Authority
12/08/2013,COMPENSATION AND LEGAL FEES,SUPPORT SERVICES,KEOGHS,5100292353,880.00,United Kingdom Atomic Energy Authority,United Kingdom Atomic Energy Authority
12/08/2013,COMPENSATION AND LEGAL FEES,SUPPORT SERVICES,KEOGHS,5100292355,"1,072.00",United Kingdom Atomic Energy Authority,United Kingdom Atomic Energy Authority
29/07/2013,COMPENSATION AND LEGAL FEES,SUPPORT SERVICES,KEOGHS,5100291890,"1,472.00",United Kingdom Atomic Energy Authority,United Kingdom Atomic Energy Authority
19/08/2013,COMPENSATION AND LEGAL FEES,SUPPORT SERVICES,KEOGHS,5100292655,"1,616.00",United Kingdom Atomic Energy Authority,United Kingdom Atomic Energy Authority
21/08/2013,MATERIALS & SPARES,FUSION,KEY INDUSTRIAL EQUIPMENT LTD,5100292750,66.50,United Kingdom Atomic Energy Authority,United Kingdom Atomic Energy Authority
19/08/2013,MATERIALS & SPARES,FUSION,KEY INDUSTRIAL EQUIPMENT LTD,5100292551,76.85,United Kingdom Atomic Energy Authority,United Kingdom Atomic Energy Authority
13/08/2013,TRAINING COSTS,FUSION,KIT,1900058662,344.47,United Kingdom Atomic Energy Authority,United Kingdom Atomic Energy Authority
07/08/2013,PLANT & EQUIPMENT,FUSION,KME GERMANY AG & CO,5100291782,"28,518.49",United Kingdom Atomic Energy Authority,United Kingdom Atomic Energy Authority
29/07/2013,BUILDING REPAIRS,FUSION,KNOWLES & SONS (OXFORD) LTD,5100291957,"-5,183.04",United Kingdom Atomic Energy Authority,United Kingdom Atomic Energy Authority
29/07/2013,BUILDING REPAIRS,PROPERTY,KNOWLES & SONS (OXFORD) LTD,5100291960,"-3,231.67",United Kingdom Atomic Energy Authority,United Kingdom Atomic Energy Authority
21/08/2013,BUILDING REPAIRS,PROPERTY,KNOWLES & SONS (OXFORD) LTD,5100292882,"-2,379.17",United Kingdom Atomic Energy Authority,United Kingdom Atomic Energy Authority
12/08/2013,BUILDING REPAIRS,FUSION,KNOWLES & SONS (OXFORD) LTD,5100292374,25.00,United Kingdom Atomic Energy Authority,United Kingdom Atomic Energy Authority
12/08/2013,BUILDING REPAIRS,FUSION,KNOWLES & SONS (OXFORD) LTD,5100292373,25.00,United Kingdom Atomic Energy Authority,United Kingdom Atomic Energy Authority
12/08/2013,BUILDING REPAIRS,FUSION,KNOWLES & SONS (OXFORD) LTD,5100292376,25.00,United Kingdom Atomic Energy Authority,United Kingdom Atomic Energy Authority
12/08/2013,BUILDING REPAIRS,PROPERTY,KNOWLES & SONS (OXFORD) LTD,5100292382,25.00,United Kingdom Atomic Energy Authority,United Kingdom Atomic Energy Authority
12/08/2013,BUILDING REPAIRS,PROPERTY,KNOWLES & SONS (OXFORD) LTD,5100292372,35.23,United Kingdom Atomic Energy Authority,United Kingdom Atomic Energy Authority
12/08/2013,BUILDING REPAIRS,PROPERTY,KNOWLES & SONS (OXFORD) LTD,5100292379,51.93,United Kingdom Atomic Energy Authority,United Kingdom Atomic Energy Authority
12/08/2013,BUILDING REPAIRS,FUSION,KNOWLES & SONS (OXFORD) LTD,5100292381,52.19,United Kingdom Atomic Energy Authority,United Kingdom Atomic Energy Authority
12/08/2013,BUILDING REPAIRS,PROPERTY,KNOWLES & SONS (OXFORD) LTD,5100292375,58.00,United Kingdom Atomic Energy Authority,United Kingdom Atomic Energy Authority
12/08/2013,BUILDING REPAIRS,PROPERTY,KNOWLES & SONS (OXFORD) LTD,5100292378,80.76,United Kingdom Atomic Energy Authority,United Kingdom Atomic Energy Authority
12/08/2013,BUILDING REPAIRS,PROPERTY,KNOWLES & SONS (OXFORD) LTD,5100292377,96.47,United Kingdom Atomic Energy Authority,United Kingdom Atomic Energy Authority
12/08/2013,BUILDING REPAIRS,FUSION,KNOWLES & SONS (OXFORD) LTD,5100292369,105.95,United Kingdom Atomic Energy Authority,United Kingdom Atomic Energy Authority
21/08/2013,BUILDING REPAIRS,FUSION,KNOWLES & SONS (OXFORD) LTD,5100292018,112.63,United Kingdom Atomic Energy Authority,United Kingdom Atomic Energy Authority
12/08/2013,BUILDING REPAIRS,FUSION,KNOWLES & SONS (OXFORD) LTD,5100292383,122.61,United Kingdom Atomic Energy Authority,United Kingdom Atomic Energy Authority
12/08/2013,BUILDING REPAIRS,FUSION,KNOWLES & SONS (OXFORD) LTD,5100292368,657.80,United Kingdom Atomic Energy Authority,United Kingdom Atomic Energy Authority
12/08/2013,BUILDING REPAIRS,SUPPORT SERVICES,KNOWLES & SONS (OXFORD) LTD,5100292365,"1,296.37",United Kingdom Atomic Energy Authority,United Kingdom Atomic Energy Authority
12/08/2013,BUILDING REPAIRS,PROPERTY,KNOWLES & SONS (OXFORD) LTD,5100292364,"1,925.00",United Kingdom Atomic Energy Authority,United Kingdom Atomic Energy Authority
12/08/2013,BUILDING REPAIRS,PROPERTY,KNOWLES & SONS (OXFORD) LTD,5100292360,"2,712.17",United Kingdom Atomic Energy Authority,United Kingdom Atomic Energy Authority
12/08/2013,BUILDING REPAIRS,PROPERTY,KNOWLES & SONS (OXFORD) LTD,5100292359,"2,843.73",United Kingdom Atomic Energy Authority,United Kingdom Atomic Energy Authority
29/07/2013,BUILDING REPAIRS,PROPERTY,KNOWLES & SONS (OXFORD) LTD,5100291440,"8,883.74",United Kingdom Atomic Energy Authority,United Kingdom Atomic Energy Authority
29/07/2013,BUILDING REPAIRS,PROPERTY,KNOWLES & SONS (OXFORD) LTD,5100291055,"15,714.72",United Kingdom Atomic Energy Authority,United Kingdom Atomic Energy Authority
21/08/2013,BUILDING REPAIRS,PROPERTY,KNOWLES & SONS (OXFORD) LTD,5100292017,"29,285.30",United Kingdom Atomic Energy Authority,United Kingdom Atomic Energy Authority
29/07/2013,MATERIALS & SPARES,FUSION,KURT J LESKER,5100291895,109.50,United Kingdom Atomic Energy Authority,United Kingdom Atomic Energy Authority
07/08/2013,COMPUTER REPAIRS,FUSION,LABCENTRE ELECTRONICS LIMITED,5100292322,900.00,United Kingdom Atomic Energy Authority,United Kingdom Atomic Energy Authority
07/08/2013,CAR HIRE,FUSION,LEASEDRIVE VELO,5100292361,-1.30,United Kingdom Atomic Energy Authority,United Kingdom Atomic Energy Authority
07/08/2013,CAR HIRE,FUSION,LEASEDRIVE VELO,5100292363,-1.30,United Kingdom Atomic Energy Authority,United Kingdom Atomic Energy Authority
14/08/2013,CAR HIRE,PROPERTY,LEASEDRIVE VELO,5100292611,-1.30,United Kingdom Atomic Energy Authority,United Kingdom Atomic Energy Authority
29/07/2013,CAR HIRE,PROPERTY,LEASEDRIVE VELO,5100291927,19.97,United Kingdom Atomic Energy Authority,United Kingdom Atomic Energy Authority
29/07/2013,CAR HIRE,FUSION,LEASEDRIVE VELO,5100291878,30.00,United Kingdom Atomic Energy Authority,United Kingdom Atomic Energy Authority
29/07/2013,CAR HIRE,SUPPORT SERVICES,LEASEDRIVE VELO,5100291925,30.68,United Kingdom Atomic Energy Authority,United Kingdom Atomic Energy Authority
29/07/2013,CAR HIRE,FUSION,LEASEDRIVE VELO,5100291930,32.47,United Kingdom Atomic Energy Authority,United Kingdom Atomic Energy Authority
29/07/2013,CAR HIRE,FUSION,LEASEDRIVE VELO,5100291929,34.39,United Kingdom Atomic Energy Authority,United Kingdom Atomic Energy Authority
29/07/2013,CAR HIRE,FUSION,LEASEDRIVE VELO,5100291926,34.39,United Kingdom Atomic Energy Authority,United Kingdom Atomic Energy Authority
29/07/2013,CAR HIRE,FUSION,LEASEDRIVE VELO,5100291928,36.44,United Kingdom Atomic Energy Authority,United Kingdom Atomic Energy Authority
07/08/2013,CAR HIRE,FUSION,LEASEDRIVE VELO,5100292167,36.44,United Kingdom Atomic Energy Authority,United Kingdom Atomic Energy Authority
12/08/2013,CAR HIRE,SUPPORT SERVICES,LEASEDRIVE VELO,5100292041,36.44,United Kingdom Atomic Energy Authority,United Kingdom Atomic Energy Authority
19/08/2013,CAR HIRE,FUSION,LEASEDRIVE VELO,5100292732,38.81,United Kingdom Atomic Energy Authority,United Kingdom Atomic Energy Authority
29/07/2013,CAR HIRE,FUSION,LEASEDRIVE VELO,5100291931,53.44,United Kingdom Atomic Energy Authority,United Kingdom Atomic Energy Authority
21/08/2013,CAR HIRE,FUSION,LEASEDRIVE VELO,5100292669,54.23,United Kingdom Atomic Energy Authority,United Kingdom Atomic Energy Authority
21/08/2013,CAR HIRE,FUSION,LEASEDRIVE VELO,5100292733,57.72,United Kingdom Atomic Energy Authority,United Kingdom Atomic Energy Authority
21/08/2013,CAR HIRE,FUSION,LEASEDRIVE VELO,5100292459,61.36,United Kingdom Atomic Energy Authority,United Kingdom Atomic Energy Authority
12/08/2013,CAR HIRE,FUSION,LEASEDRIVE VELO,5100292286,62.31,United Kingdom Atomic Energy Authority,United Kingdom Atomic Energy Authority
19/08/2013,CAR HIRE,FUSION,LEASEDRIVE VELO,5100292461,72.88,United Kingdom Atomic Energy Authority,United Kingdom Atomic Energy Authority
12/08/2013,CAR HIRE,FUSION,LEASEDRIVE VELO,5100292462,72.88,United Kingdom Atomic Energy Authority,United Kingdom Atomic Energy Authority
12/08/2013,CAR HIRE,FUSION,LEASEDRIVE VELO,5100292536,72.88,United Kingdom Atomic Energy Authority,United Kingdom Atomic Energy Authority
14/08/2013,CAR HIRE,FUSION,LEASEDRIVE VELO,5100292054,79.51,United Kingdom Atomic Energy Authority,United Kingdom Atomic Energy Authority
07/08/2013,CAR HIRE,FUSION,LEASEDRIVE VELO,5100292165,88.36,United Kingdom Atomic Energy Authority,United Kingdom Atomic Energy Authority
05/08/2013,CAR HIRE,FUSION,LEASEDRIVE VELO,5100292164,96.12,United Kingdom Atomic Energy Authority,United Kingdom Atomic Energy Authority
07/08/2013,CAR HIRE,FUSION,LEASEDRIVE VELO,5100290944,102.87,United Kingdom Atomic Energy Authority,United Kingdom Atomic Energy Authority
12/08/2013,CAR HIRE,FUSION,LEASEDRIVE VELO,5100292460,107.73,United Kingdom Atomic Energy Authority,United Kingdom Atomic Energy Authority
07/08/2013,CAR HIRE,SUPPORT SERVICES,LEASEDRIVE VELO,5100292166,110.82,United Kingdom Atomic Energy Authority,United Kingdom Atomic Energy Authority
07/08/2013,CAR HIRE,FUSION,LEASEDRIVE VELO,5100291932,136.90,United Kingdom Atomic Energy Authority,United Kingdom Atomic Energy Authority
21/08/2013,CAR HIRE,FUSION,LEASEDRIVE VELO,5100290976,141.56,United Kingdom Atomic Energy Authority,United Kingdom Atomic Energy Authority
07/08/2013,CAR HIRE,FUSION,LEASEDRIVE VELO,5100290123,148.91,United Kingdom Atomic Energy Authority,United Kingdom Atomic Energy Authority
05/08/2013,PLANT & EQUIPMENT,FUSION,LEMO UK LTD,5100292043,183.38,United Kingdom Atomic Energy Authority,United Kingdom Atomic Energy Authority
29/07/2013,PLANT & EQUIPMENT,FUSION,LINDAB LTD,5100291442,-44.28,United Kingdom Atomic Energy Authority,United Kingdom Atomic Energy Authority
29/07/2013,PLANT & EQUIPMENT,FUSION,LINDAB LTD,5100291443,38.75,United Kingdom Atomic Energy Authority,United Kingdom Atomic Energy Authority
29/07/2013,PLANT & EQUIPMENT,FUSION,LINDAB LTD,5100290599,61.03,United Kingdom Atomic Energy Authority,United Kingdom Atomic Energy Authority
31/07/2013,MATERIALS & SPARES,FUSION,LINDE KRYOTECHNIK AG,5100291363,496.43,United Kingdom Atomic Energy Authority,United Kingdom Atomic Energy Authority
05/08/2013,PROFESSIONAL SERVICES,SUPPORT SERVICES,LOGICA CMG UK LTD,5100292152,"3,063.42",United Kingdom Atomic Energy Authority,United Kingdom Atomic Energy Authority
14/08/2013,PLANT & EQUIPMENT,FUSION,LONDON FLUID SYSTEM TECHNOLOGIES LT,5100292407,60.52,United Kingdom Atomic Energy Authority,United Kingdom Atomic Energy Authority
19/08/2013,BUILDING REPAIRS,FUSION,LORNE STEWART PLC,5100292679,388.02,United Kingdom Atomic Energy Authority,United Kingdom Atomic Energy Authority
19/08/2013,BUILDING REPAIRS,FUSION,LORNE STEWART PLC,5100292677,823.70,United Kingdom Atomic Energy Authority,United Kingdom Atomic Energy Authority
19/08/2013,BUILDING REPAIRS,FUSION,LORNE STEWART PLC,5100292678,"1,889.46",United Kingdom Atomic Energy Authority,United Kingdom Atomic Energy Authority
19/08/2013,BUILDING REPAIRS,FUSION,LORNE STEWART PLC,5100292684,"2,333.04",United Kingdom Atomic Energy Authority,United Kingdom Atomic Energy Authority
12/08/2013,BUILDING REPAIRS,PROPERTY,LORNE STEWART PLC,5100292525,"3,721.03",United Kingdom Atomic Energy Authority,United Kingdom Atomic Energy Authority
19/08/2013,BUILDING REPAIRS,PROPERTY,LORNE STEWART PLC,5100292686,"4,338.47",United Kingdom Atomic Energy Authority,United Kingdom Atomic Energy Authority
19/08/2013,BUILDING REPAIRS,PROPERTY,LORNE STEWART PLC,5100292683,"10,340.17",United Kingdom Atomic Energy Authority,United Kingdom Atomic Energy Authority
19/08/2013,BUILDING REPAIRS,PROPERTY,LORNE STEWART PLC,5100292687,"11,518.42",United Kingdom Atomic Energy Authority,United Kingdom Atomic Energy Authority
12/08/2013,BUILDING REPAIRS,PROPERTY,LORNE STEWART PLC,5100292524,"13,939.81",United Kingdom Atomic Energy Authority,United Kingdom Atomic Energy Authority
19/08/2013,BUILDING REPAIRS,FUSION,LORNE STEWART PLC,5100292685,"17,233.51",United Kingdom Atomic Energy Authority,United Kingdom Atomic Energy Authority
19/08/2013,BUILDING REPAIRS,FUSION,LORNE STEWART PLC,5100292676,"19,454.18",United Kingdom Atomic Energy Authority,United Kingdom Atomic Energy Authority
19/08/2013,BUILDING REPAIRS,FUSION,LORNE STEWART PLC,5100292688,"29,943.43",United Kingdom Atomic Energy Authority,United Kingdom Atomic Energy Authority
05/08/2013,STATIONERY,SUPPORT SERVICES,LYRECO UK LIMITED,5100292175,0.72,United Kingdom Atomic Energy Authority,United Kingdom Atomic Energy Authority
05/08/2013,STATIONERY,FUSION,LYRECO UK LIMITED,5100292173,2.00,United Kingdom Atomic Energy Authority,United Kingdom Atomic Energy Authority
29/07/2013,STATIONERY,FUSION,LYRECO UK LIMITED,5100291935,20.40,United Kingdom Atomic Energy Authority,United Kingdom Atomic Energy Authority
29/07/2013,STATIONERY,FUSION,LYRECO UK LIMITED,5100291936,28.18,United Kingdom Atomic Energy Authority,United Kingdom Atomic Energy Authority
29/07/2013,STATIONERY,FUSION,LYRECO UK LIMITED,5100291937,31.08,United Kingdom Atomic Energy Authority,United Kingdom Atomic Energy Authority
29/07/2013,STATIONERY,FUSION,LYRECO UK LIMITED,5100291938,72.98,United Kingdom Atomic Energy Authority,United Kingdom Atomic Energy Authority
05/08/2013,STATIONERY,SUPPORT SERVICES,LYRECO UK LIMITED,5100292174,106.23,United Kingdom Atomic Energy Authority,United Kingdom Atomic Energy Authority
19/08/2013,STATIONERY,FUSION,LYRECO UK LIMITED,5100292636,112.70,United Kingdom Atomic Energy Authority,United Kingdom Atomic Energy Authority
05/08/2013,STATIONERY,FUSION,LYRECO UK LIMITED,5100292168,123.30,United Kingdom Atomic Energy Authority,United Kingdom Atomic Energy Authority
19/08/2013,STATIONERY,FUSION,LYRECO UK LIMITED,5100292547,171.99,United Kingdom Atomic Energy Authority,United Kingdom Atomic Energy Authority
19/08/2013,STATIONERY,FUSION,LYRECO UK LIMITED,5100292635,224.00,United Kingdom Atomic Energy Authority,United Kingdom Atomic Energy Authority
07/08/2013,STATIONERY,FUSION,LYRECO UK LIMITED,5100292169,420.72,United Kingdom Atomic Energy Authority,United Kingdom Atomic Energy Authority
29/07/2013,STATIONERY,FUSION,LYRECO UK LIMITED,5100291934,474.81,United Kingdom Atomic Energy Authority,United Kingdom Atomic Energy Authority
29/07/2013,STATIONERY,FUSION,LYRECO UK LIMITED,5100291933,476.50,United Kingdom Atomic Energy Authority,United Kingdom Atomic Energy Authority
19/08/2013,STATIONERY,FUSION,LYRECO UK LIMITED,5100292634,691.55,United Kingdom Atomic Energy Authority,United Kingdom Atomic Energy Authority
12/08/2013,RENT OF VEHICLE & EQUIPMENT,FUSION,M.J.C SERVICES,5100292312,346.66,United Kingdom Atomic Energy Authority,United Kingdom Atomic Energy Authority
12/08/2013,IT EQUIPMENT NON CAPITAL,FUSION,MAAINTECH,5100292347,385.00,United Kingdom Atomic Energy Authority,United Kingdom Atomic Energy Authority
19/08/2013,IT EQUIPMENT NON CAPITAL,FUSION,MAAINTECH,5100292692,834.00,United Kingdom Atomic Energy Authority,United Kingdom Atomic Energy Authority
29/07/2013,IT EQUIPMENT NON CAPITAL,FUSION,MAAINTECH,5100291899,"2,680.00",United Kingdom Atomic Energy Authority,United Kingdom Atomic Energy Authority
19/08/2013,PROFESSIONAL SERVICES,FUSION,MACHINING TECHNOLOGY (MACH-TECH),5100292690,511.00,United Kingdom Atomic Energy Authority,United Kingdom Atomic Energy Authority
12/08/2013,PROFESSIONAL SERVICES,FUSION,MACHINING TECHNOLOGY (MACH-TECH),5100292334,"2,279.77",United Kingdom Atomic Energy Authority,United Kingdom Atomic Energy Authority
29/07/2013,PROFESSIONAL SERVICES,FUSION,MARCHAM SCIENTIFIC LTD,5100291956,"3,000.00",United Kingdom Atomic Energy Authority,United Kingdom Atomic Energy Authority
12/08/2013,MATERIALS & SPARES,FUSION,MARK 5,5100292417,165.99,United Kingdom Atomic Energy Authority,United Kingdom Atomic Energy Authority
19/08/2013,MATERIALS & SPARES,FUSION,MARK 5,5100292589,180.81,United Kingdom Atomic Energy Authority,United Kingdom Atomic Energy Authority
29/07/2013,PROFESSIONAL SERVICES,FUSION,MATERIAL MEASUREMENTS LTD.,5100291584,56.65,United Kingdom Atomic Energy Authority,United Kingdom Atomic Energy Authority
29/07/2013,PROFESSIONAL SERVICES,FUSION,MATERIAL MEASUREMENTS LTD.,5100291581,98.27,United Kingdom Atomic Energy Authority,United Kingdom Atomic Energy Authority
29/07/2013,PROFESSIONAL SERVICES,FUSION,MATERIAL MEASUREMENTS LTD.,5100291582,181.30,United Kingdom Atomic Energy Authority,United Kingdom Atomic Energy Authority
12/08/2013,PROFESSIONAL SERVICES,FUSION,MATERIAL MEASUREMENTS LTD.,5100292290,200.85,United Kingdom Atomic Energy Authority,United Kingdom Atomic Energy Authority
05/08/2013,DESIGN & CONSTRUCTION,FUSION,MAYFLEX UK LTD,5100292094,61.80,United Kingdom Atomic Energy Authority,United Kingdom Atomic Energy Authority
14/08/2013,REPAIRS & MAINTENANCE,FUSION,MC Air Filtration,1900058667,"7,836.00",United Kingdom Atomic Energy Authority,United Kingdom Atomic Energy Authority
21/08/2013,PLANT & EQUIPMENT,FUSION,MCDC VACCUUM LTD,5100292704,25.32,United Kingdom Atomic Energy Authority,United Kingdom Atomic Energy Authority
05/08/2013,PLANT & EQUIPMENT,FUSION,MCDC VACCUUM LTD,5100292113,278.76,United Kingdom Atomic Energy Authority,United Kingdom Atomic Energy Authority
05/08/2013,MATERIALS & SPARES,FUSION,MECHANICAL CLEANSING SERVICES LIMITED,5100292119,410.49,United Kingdom Atomic Energy Authority,United Kingdom Atomic Energy Authority
07/08/2013,TRAINING COURSE FEES,SUPPORT SERVICES,MENTOR FLT TRAINING LTD,5100291381,547.50,United Kingdom Atomic Energy Authority,United Kingdom Atomic Energy Authority
07/08/2013,TRAINING COURSE FEES,SUPPORT SERVICES,MENTOR FLT TRAINING LTD,5100291220,580.00,United Kingdom Atomic Energy Authority,United Kingdom Atomic Energy Authority
31/07/2013,MATERIALS & SPARES,FUSION,METALFAST (A DIVISION OF,5100291781,491.50,United Kingdom Atomic Energy Authority,United Kingdom Atomic Energy Authority
05/08/2013,MATERIALS & SPARES,FUSION,METALWEB,5100291959,"1,335.00",United Kingdom Atomic Energy Authority,United Kingdom Atomic Energy Authority
12/08/2013,PROFESSIONAL SERVICES,FUSION,METRO ENGINEERING AND PLATING WORKS,5100292439,250.00,United Kingdom Atomic Energy Authority,United Kingdom Atomic Energy Authority
19/08/2013,MATERIALS & SPARES,FUSION,METSPIN LTD,5100292681,291.50,United Kingdom Atomic Energy Authority,United Kingdom Atomic Energy Authority
12/08/2013,MATERIALS & SPARES,FUSION,METSPIN LTD,5100292348,521.50,United Kingdom Atomic Energy Authority,United Kingdom Atomic Energy Authority
19/08/2013,PLANT & EQUIPMENT,FUSION,MILLHILL TOOLS LTD,5100292591,17.91,United Kingdom Atomic Energy Authority,United Kingdom Atomic Energy Authority
19/08/2013,PLANT & EQUIPMENT,FUSION,MILLHILL TOOLS LTD,5100292658,22.76,United Kingdom Atomic Energy Authority,United Kingdom Atomic Energy Authority
19/08/2013,PLANT & EQUIPMENT,FUSION,MILLHILL TOOLS LTD,5100292592,34.64,United Kingdom Atomic Energy Authority,United Kingdom Atomic Energy Authority
19/08/2013,PLANT & EQUIPMENT,FUSION,MILLHILL TOOLS LTD,5100292594,42.72,United Kingdom Atomic Energy Authority,United Kingdom Atomic Energy Authority
19/08/2013,PLANT & EQUIPMENT,FUSION,MILLHILL TOOLS LTD,5100292657,43.27,United Kingdom Atomic Energy Authority,United Kingdom Atomic Energy Authority
19/08/2013,PLANT & EQUIPMENT,FUSION,MILLHILL TOOLS LTD,5100292593,92.14,United Kingdom Atomic Energy Authority,United Kingdom Atomic Energy Authority
05/08/2013,PLANT & EQUIPMENT,FUSION,MISCO,5100292085,269.16,United Kingdom Atomic Energy Authority,United Kingdom Atomic Energy Authority
05/08/2013,PROFESSIONAL SERVICES,FUSION,MKS INSTRUMENT UK LIMITED,5100292131,882.00,United Kingdom Atomic Energy Authority,United Kingdom Atomic Energy Authority
19/08/2013,LEGAL FEES,PROPERTY,MORGAN COLE,5100292734,32.00,United Kingdom Atomic Energy Authority,United Kingdom Atomic Energy Authority
19/08/2013,LEGAL FEES,PROPERTY,MORGAN COLE,5100292735,"8,249.40",United Kingdom Atomic Energy Authority,United Kingdom Atomic Energy Authority
12/08/2013,HIRED STAFF,FUSION,MORSON INTERNATIONAL,5100292406,"321,513.73",United Kingdom Atomic Energy Authority,United Kingdom Atomic Energy Authority
29/07/2013,MATERIALS & SPARES,FUSION,MOUSER ELECTRONICS,5100291884,75.05,United Kingdom Atomic Energy Authority,United Kingdom Atomic Energy Authority
05/08/2013,STATIONERY,FUSION,MPS SERVICES LTD,5100292112,353.00,United Kingdom Atomic Energy Authority,United Kingdom Atomic Energy Authority
05/08/2013,AUDIT FEES,SUPPORT SERVICES,NATIONAL AUDIT OFFICE,5100292153,"22,500.00",United Kingdom Atomic Energy Authority,United Kingdom Atomic Energy Authority
05/08/2013,ELECTRICITY,FUSION,NATIONAL GRID TRANSCO,5100292101,"3,298.73",United Kingdom Atomic Energy Authority,United Kingdom Atomic Energy Authority
05/08/2013,PROFESSIONAL SERVICES,FUSION,NATIONAL PHYSICAL LABORATORY MGT LT,5100292102,"4,080.00",United Kingdom Atomic Energy Authority,United Kingdom Atomic Energy Authority
07/08/2013,PROFESSIONAL SERVICES,FUSION,NATIONAL PHYSICAL LABORATORY MGT LT,5100292126,"11,004.00",United Kingdom Atomic Energy Authority,United Kingdom Atomic Energy Authority
20/08/2013,SOFTWARE - NON-CAP,SUPPORT SERVICES,NCC Services Ltd,1900058683,"1,125.00",United Kingdom Atomic Energy Authority,United Kingdom Atomic Energy Authority
05/08/2013,PLANT & EQUIPMENT,FUSION,NEW PIG LTD,5100292125,74.04,United Kingdom Atomic Energy Authority,United Kingdom Atomic Energy Authority
12/08/2013,PLANT & EQUIPMENT,FUSION,NEW PIG LTD,5100292200,657.87,United Kingdom Atomic Energy Authority,United Kingdom Atomic Energy Authority
07/08/2013,PLANT & EQUIPMENT,FUSION,NEW PIG LTD,5100292199,946.48,United Kingdom Atomic Energy Authority,United Kingdom Atomic Energy Authority
12/08/2013,PLANT & EQUIPMENT,FUSION,NEW PIG LTD,5100292400,"1,351.14",United Kingdom Atomic Energy Authority,United Kingdom Atomic Energy Authority
05/08/2013,MATERIALS & SPARES,FUSION,NEWBURY ELECTRONICS,5100292047,92.70,United Kingdom Atomic Energy Authority,United Kingdom Atomic Energy Authority
21/08/2013,MATERIALS & SPARES,FUSION,NEWCASTLE OPTICAL ENGINEERING LTD,5100292670,446.95,United Kingdom Atomic Energy Authority,United Kingdom Atomic Energy Authority
29/07/2013,PLANT & EQUIPMENT,FUSION,NEWPORT SPECTRA-PHYSICS LTD,5100291896,54.90,United Kingdom Atomic Energy Authority,United Kingdom Atomic Energy Authority
31/07/2013,PLANT & EQUIPMENT,FUSION,NU START ELECTONICS,5100292117,103.90,United Kingdom Atomic Energy Authority,United Kingdom Atomic Energy Authority
07/08/2013,PROFESSIONAL SERVICES,FUSION,NUCLEAR MANAGEMENT CONSULTANCE LTD,5100292104,400.00,United Kingdom Atomic Energy Authority,United Kingdom Atomic Energy Authority
12/08/2013,HEALTH PHYSICS,FUSION,NUVIA LIMITED,5100292160,"19,552.47",United Kingdom Atomic Energy Authority,United Kingdom Atomic Energy Authority
05/08/2013,STATIONERY,FUSION,OCE UK,5100292115,49.25,United Kingdom Atomic Energy Authority,United Kingdom Atomic Energy Authority
14/08/2013,STATIONERY,FUSION,OCE UK,5100292320,91.70,United Kingdom Atomic Energy Authority,United Kingdom Atomic Energy Authority
05/08/2013,CLEANING,PROPERTY,OCS CLEANING & SUPPORT SERVICES,5100292056,"3,843.70",United Kingdom Atomic Energy Authority,United Kingdom Atomic Energy Authority
12/08/2013,CLEANING,PROPERTY,OCS CLEANING & SUPPORT SERVICES,5100292422,"27,785.25",United Kingdom Atomic Energy Authority,United Kingdom Atomic Energy Authority
14/08/2013,MATERIALS & SPARES,FUSION,OERLIKON LEYBOLD VACUUM UK LTD,5100292388,323.40,United Kingdom Atomic Energy Authority,United Kingdom Atomic Energy Authority
05/08/2013,MATERIALS & SPARES,FUSION,OERLIKON LEYBOLD VACUUM UK LTD,5100292019,660.44,United Kingdom Atomic Energy Authority,United Kingdom Atomic Energy Authority
29/07/2013,REGULATORY COSTS,FUSION,OFCOM,5100291923,100.00,United Kingdom Atomic Energy Authority,United Kingdom Atomic Energy Authority
19/08/2013,PROFESSIONAL SERVICES,FUSION,ONE FIX RECRUITMENT,5100292555,299.00,United Kingdom Atomic Energy Authority,United Kingdom Atomic Energy Authority
29/07/2013,MATERIALS & SPARES,FUSION,OXFORD BOLTS & BEARINGS,5100292013,46.50,United Kingdom Atomic Energy Authority,United Kingdom Atomic Energy Authority
29/07/2013,MATERIALS & SPARES,FUSION,OXFORD BOLTS & BEARINGS,5100292016,69.00,United Kingdom Atomic Energy Authority,United Kingdom Atomic Energy Authority
07/08/2013,MATERIALS & SPARES,FUSION,OXFORD BOLTS & BEARINGS,5100292015,81.50,United Kingdom Atomic Energy Authority,United Kingdom Atomic Energy Authority
19/08/2013,MATERIALS & SPARES,FUSION,OXFORD BOLTS & BEARINGS,5100292740,100.28,United Kingdom Atomic Energy Authority,United Kingdom Atomic Energy Authority
29/07/2013,MATERIALS & SPARES,FUSION,OXFORD BOLTS & BEARINGS,5100292014,103.48,United Kingdom Atomic Energy Authority,United Kingdom Atomic Energy Authority
05/08/2013,MATERIALS & SPARES,FUSION,OXFORD BOLTS & BEARINGS,5100292161,229.47,United Kingdom Atomic Energy Authority,United Kingdom Atomic Energy Authority
29/07/2013,MATERIALS & SPARES,FUSION,OXFORD BOLTS & BEARINGS,5100291818,351.30,United Kingdom Atomic Energy Authority,United Kingdom Atomic Energy Authority
12/08/2013,MATERIALS & SPARES,FUSION,OXFORD BOLTS & BEARINGS,5100292287,475.06,United Kingdom Atomic Energy Authority,United Kingdom Atomic Energy Authority
29/07/2013,COMPUTER REPAIRS,FUSION,OXFORD FILTRATION LIMITED,5100291854,325.00,United Kingdom Atomic Energy Authority,United Kingdom Atomic Energy Authority
29/07/2013,COMPUTER REPAIRS,FUSION,OXFORD FILTRATION LIMITED,5100291856,572.00,United Kingdom Atomic Energy Authority,United Kingdom Atomic Energy Authority
12/08/2013,TRAINING COURSE FEES,FUSION,OXFORD UNIVERSITY,5100291852,"3,826.03",United Kingdom Atomic Energy Authority,United Kingdom Atomic Energy Authority
14/08/2013,CLEANING,FUSION,PARKER MERCHANTING LTD,5100292526,133.10,United Kingdom Atomic Energy Authority,United Kingdom Atomic Energy Authority
01/08/2013,TRAINING COURSE FEES,FUSION,PBSI Ltd,1900058588,"1,728.00",United Kingdom Atomic Energy Authority,United Kingdom Atomic Energy Authority
29/07/2013,TRAINING COURSE FEES,FUSION,PEARCEMAYFIELD ASSOCIATED LTD,5100291608,"3,000.00",United Kingdom Atomic Energy Authority,United Kingdom Atomic Energy Authority
07/08/2013,HIRED STAFF,FUSION,PELICAN SOFTWARE LTD,5100292130,"4,508.77",United Kingdom Atomic Energy Authority,United Kingdom Atomic Energy Authority
07/08/2013,HIRED STAFF,FUSION,PELICAN SOFTWARE LTD,5100292132,"6,152.85",United Kingdom Atomic Energy Authority,United Kingdom Atomic Energy Authority
07/08/2013,HIRED STAFF,FUSION,PELICAN SOFTWARE LTD,5100292135,"6,411.20",United Kingdom Atomic Energy Authority,United Kingdom Atomic Energy Authority
19/08/2013,HIRED STAFF,FUSION,PELICAN SOFTWARE LTD,5100292728,"8,684.45",United Kingdom Atomic Energy Authority,United Kingdom Atomic Energy Authority
14/08/2013,REPAIRS & MAINTENANCE,FUSION,PENLIN LLC,5100290844,"18,658.20",United Kingdom Atomic Energy Authority,United Kingdom Atomic Energy Authority
29/07/2013,STATIONERY,FUSION,PERFECT COLOURS LIMITED,5100291765,630.00,United Kingdom Atomic Energy Authority,United Kingdom Atomic Energy Authority
12/08/2013,PROFESSIONAL SERVICES,FUSION,PERKIN ELMER LAS UK LTD,5100292398,485.16,United Kingdom Atomic Energy Authority,United Kingdom Atomic Energy Authority
29/07/2013,PLANT & EQUIPMENT,FUSION,PFEIFFER VACUUM UK,5100292009,"1,343.75",United Kingdom Atomic Energy Authority,United Kingdom Atomic Energy Authority
05/08/2013,PLANT & EQUIPMENT,FUSION,PFEIFFER VACUUM UK,5100292139,"1,670.40",United Kingdom Atomic Energy Authority,United Kingdom Atomic Energy Authority
05/08/2013,PLANT & EQUIPMENT,FUSION,PFEIFFER VACUUM UK,5100292142,"3,284.20",United Kingdom Atomic Energy Authority,United Kingdom Atomic Energy Authority
12/08/2013,MATERIALS & SPARES,FUSION,PHILIP CORNES & COMPANY LTD,5100292310,323.00,United Kingdom Atomic Energy Authority,United Kingdom Atomic Energy Authority
05/08/2013,PLANT & EQUIPMENT,FUSION,PHS GROUP PLC,5100292138,34.13,United Kingdom Atomic Energy Authority,United Kingdom Atomic Energy Authority
19/08/2013,CONFERENCES/MEETINGS,FUSION,Piero Caldirola International Centre,1900058681,383.99,United Kingdom Atomic Energy Authority,United Kingdom Atomic Energy Authority
29/07/2013,CONFERENCES/MEETINGS,FUSION,Piero Caldirola International Centre,1900058561,388.37,United Kingdom Atomic Energy Authority,United Kingdom Atomic Energy Authority
08/08/2013,CONFERENCES/MEETINGS,FUSION,Piero Caldirola International Centre,1900058642,390.12,United Kingdom Atomic Energy Authority,United Kingdom Atomic Energy Authority
29/07/2013,MATERIALS & SPARES,FUSION,PI-KEM LTD,5100291755,"2,227.50",United Kingdom Atomic Energy Authority,United Kingdom Atomic Energy Authority
21/08/2013,MATERIALS & SPARES,FUSION,PIRTEK OXFORD,5100292672,52.44,United Kingdom Atomic Energy Authority,United Kingdom Atomic Energy Authority
19/08/2013,PROFESSIONAL SERVICES,PROPERTY,POLAR RECRUITMENT,5100292702,"3,004.50",United Kingdom Atomic Energy Authority,United Kingdom Atomic Energy Authority
29/07/2013,PLANT & EQUIPMENT,FUSION,POLLUTION MONITORS,5100291891,235.00,United Kingdom Atomic Energy Authority,United Kingdom Atomic Energy Authority
05/08/2013,PLANT & EQUIPMENT,FUSION,PRECISION TOOLS,5100292049,41.04,United Kingdom Atomic Energy Authority,United Kingdom Atomic Energy Authority
29/07/2013,CONSUMABLES,FUSION,PRITCHARD SHEET METAL,5100291809,77.88,United Kingdom Atomic Energy Authority,United Kingdom Atomic Energy Authority
29/07/2013,CONSUMABLES,FUSION,PRITCHARD SHEET METAL,5100291808,176.80,United Kingdom Atomic Energy Authority,United Kingdom Atomic Energy Authority
19/08/2013,CONSUMABLES,FUSION,PRITCHARD SHEET METAL,5100292559,252.84,United Kingdom Atomic Energy Authority,United Kingdom Atomic Energy Authority
07/08/2013,TRAINING COURSE FEES,PROPERTY,Project Skills Soloutions Ltd,1900058622,685.00,United Kingdom Atomic Energy Authority,United Kingdom Atomic Energy Authority
11/08/2013,STATIONERY,FUSION,PURCHASE CARD,100694241,530.40,United Kingdom Atomic Energy Authority,United Kingdom Atomic Energy Authority
11/08/2013,STATIONERY,FUSION,PURCHASE CARD,100694241,546.00,United Kingdom Atomic Energy Authority,United Kingdom Atomic Energy Authority
11/08/2013,PLANT SPARES,FUSION,PURCHASE CARD,100694231,568.27,United Kingdom Atomic Energy Authority,United Kingdom Atomic Energy Authority
11/08/2013,IT EQUIPMENT: NON CAPITAL,FUSION,PURCHASE CARD,100694243,594.67,United Kingdom Atomic Energy Authority,United Kingdom Atomic Energy Authority
11/08/2013,MATERIALS & SPARES,FUSION,PURCHASE CARD,100694247,657.78,United Kingdom Atomic Energy Authority,United Kingdom Atomic Energy Authority
11/08/2013,CONFERENCES/MEETINGS,FUSION,PURCHASE CARD,100694230,690.26,United Kingdom Atomic Energy Authority,United Kingdom Atomic Energy Authority
11/08/2013,SAFETY STORES,FUSION,PURCHASE CARD,100694236,756.00,United Kingdom Atomic Energy Authority,United Kingdom Atomic Energy Authority
11/08/2013,PLANT & EQUIPMENT,FUSION,PURCHASE CARD,100694253,803.20,United Kingdom Atomic Energy Authority,United Kingdom Atomic Energy Authority
19/08/2013,SOFTWARE,FUSION,Q ASSOCIATES LTD,5100292546,165.60,United Kingdom Atomic Energy Authority,United Kingdom Atomic Energy Authority
14/08/2013,SOFTWARE,FUSION,Q ASSOCIATES LTD,5100292011,"1,536.00",United Kingdom Atomic Energy Authority,United Kingdom Atomic Energy Authority
12/08/2013,PROFESSIONAL SERVICES,FUSION,RADIOCARBON DATING,5100292332,"2,000.60",United Kingdom Atomic Energy Authority,United Kingdom Atomic Energy Authority
12/08/2013,PROFESSIONAL SERVICES,FUSION,RADIOCARBON DATING,5100292333,"16,923.56",United Kingdom Atomic Energy Authority,United Kingdom Atomic Energy Authority
19/08/2013,MATERIALS & SPARES,FUSION,REBOUND ELECTRONICS (UK) LTD,5100292689,"1,360.00",United Kingdom Atomic Energy Authority,United Kingdom Atomic Energy Authority
19/08/2013,SECURITY & EMERGENCY,PROPERTY,RELIANCE SECURITY GROUP PLC,5100292569,"1,250.00",United Kingdom Atomic Energy Authority,United Kingdom Atomic Energy Authority
19/08/2013,SECURITY & EMERGENCY,PROPERTY,RELIANCE SECURITY GROUP PLC,5100292570,"1,250.00",United Kingdom Atomic Energy Authority,United Kingdom Atomic Energy Authority
19/08/2013,MATERIALS & SPARES,FUSION,RITTAL,5100292616,987.24,United Kingdom Atomic Energy Authority,United Kingdom Atomic Energy Authority
01/08/2013,PLANT & EQUIPMENT,FUSION,RK International Machine Tools Ltd,1900058593,"6,565.20",United Kingdom Atomic Energy Authority,United Kingdom Atomic Energy Authority
19/08/2013, COMPENSATION & LEGAL FEES,SUPPORT SERVICES,Roberts Jackson Solicitors,1900058679,"6,421.80",United Kingdom Atomic Energy Authority,United Kingdom Atomic Energy Authority
12/08/2013,COMPENSATION & LEGAL FEES,SUPPORT SERVICES,Roberts Jackson Solicitors,1900058650,"6,637.50",United Kingdom Atomic Energy Authority,United Kingdom Atomic Energy Authority
19/08/2013,PLANT & EQUIPMENT,FUSION,ROUTECO,5100292553,341.54,United Kingdom Atomic Energy Authority,United Kingdom Atomic Energy Authority
12/08/2013,MATERIALS & SPARES,FUSION,RS COMPONENTS LTD,5100292507,1.42,United Kingdom Atomic Energy Authority,United Kingdom Atomic Energy Authority
31/07/2013,MATERIALS & SPARES,FUSION,RS COMPONENTS LTD,5100291967,1.45,United Kingdom Atomic Energy Authority,United Kingdom Atomic Energy Authority
29/07/2013,MATERIALS & SPARES,FUSION,RS COMPONENTS LTD,5100289623,2.03,United Kingdom Atomic Energy Authority,United Kingdom Atomic Energy Authority
05/08/2013,MATERIALS & SPARES,FUSION,RS COMPONENTS LTD,5100292216,3.99,United Kingdom Atomic Energy Authority,United Kingdom Atomic Energy Authority
05/08/2013,MATERIALS & SPARES,FUSION,RS COMPONENTS LTD,5100292211,4.32,United Kingdom Atomic Energy Authority,United Kingdom Atomic Energy Authority
12/08/2013,MATERIALS & SPARES,FUSION,RS COMPONENTS LTD,5100292515,5.21,United Kingdom Atomic Energy Authority,United Kingdom Atomic Energy Authority
29/07/2013,MATERIALS & SPARES,FUSION,RS COMPONENTS LTD,5100292004,7.22,United Kingdom Atomic Energy Authority,United Kingdom Atomic Energy Authority
29/07/2013,MATERIALS & SPARES,FUSION,RS COMPONENTS LTD,5100292000,9.10,United Kingdom Atomic Energy Authority,United Kingdom Atomic Energy Authority
12/08/2013,MATERIALS & SPARES,FUSION,RS COMPONENTS LTD,5100292181,9.52,United Kingdom Atomic Energy Authority,United Kingdom Atomic Energy Authority
05/08/2013,MATERIALS & SPARES,FUSION,RS COMPONENTS LTD,5100292219,14.61,United Kingdom Atomic Energy Authority,United Kingdom Atomic Energy Authority
19/08/2013,MATERIALS & SPARES,FUSION,RS COMPONENTS LTD,5100292708,17.24,United Kingdom Atomic Energy Authority,United Kingdom Atomic Energy Authority
29/07/2013,MATERIALS & SPARES,FUSION,RS COMPONENTS LTD,5100291983,17.33,United Kingdom Atomic Energy Authority,United Kingdom Atomic Energy Authority
14/08/2013,MATERIALS & SPARES,FUSION,RS COMPONENTS LTD,5100292051,20.09,United Kingdom Atomic Energy Authority,United Kingdom Atomic Energy Authority
29/07/2013,MATERIALS & SPARES,FUSION,RS COMPONENTS LTD,5100291993,20.72,United Kingdom Atomic Energy Authority,United Kingdom Atomic Energy Authority
29/07/2013,MATERIALS & SPARES,FUSION,RS COMPONENTS LTD,5100291980,21.17,United Kingdom Atomic Energy Authority,United Kingdom Atomic Energy Authority
12/08/2013,MATERIALS & SPARES,FUSION,RS COMPONENTS LTD,5100292484,22.35,United Kingdom Atomic Energy Authority,United Kingdom Atomic Energy Authority
29/07/2013,MATERIALS & SPARES,PROPERTY,RS COMPONENTS LTD,5100291985,24.64,United Kingdom Atomic Energy Authority,United Kingdom Atomic Energy Authority
31/07/2013,MATERIALS & SPARES,FUSION,RS COMPONENTS LTD,5100292001,26.23,United Kingdom Atomic Energy Authority,United Kingdom Atomic Energy Authority
05/08/2013,MATERIALS & SPARES,FUSION,RS COMPONENTS LTD,5100292206,27.30,United Kingdom Atomic Energy Authority,United Kingdom Atomic Energy Authority
29/07/2013,MATERIALS & SPARES,FUSION,RS COMPONENTS LTD,5100291990,28.61,United Kingdom Atomic Energy Authority,United Kingdom Atomic Energy Authority
07/08/2013,MATERIALS & SPARES,FUSION,RS COMPONENTS LTD,5100292177,31.64,United Kingdom Atomic Energy Authority,United Kingdom Atomic Energy Authority
05/08/2013,MATERIALS & SPARES,FUSION,RS COMPONENTS LTD,5100292185,32.89,United Kingdom Atomic Energy Authority,United Kingdom Atomic Energy Authority
29/07/2013,MATERIALS & SPARES,FUSION,RS COMPONENTS LTD,5100292003,35.09,United Kingdom Atomic Energy Authority,United Kingdom Atomic Energy Authority
12/08/2013,MATERIALS & SPARES,FUSION,RS COMPONENTS LTD,5100292487,35.31,United Kingdom Atomic Energy Authority,United Kingdom Atomic Energy Authority
12/08/2013,MATERIALS & SPARES,FUSION,RS COMPONENTS LTD,5100292534,35.31,United Kingdom Atomic Energy Authority,United Kingdom Atomic Energy Authority
19/08/2013,MATERIALS & SPARES,FUSION,RS COMPONENTS LTD,5100292719,37.38,United Kingdom Atomic Energy Authority,United Kingdom Atomic Energy Authority
29/07/2013,MATERIALS & SPARES,FUSION,RS COMPONENTS LTD,5100291968,42.61,United Kingdom Atomic Energy Authority,United Kingdom Atomic Energy Authority
12/08/2013,MATERIALS & SPARES,FUSION,RS COMPONENTS LTD,5100292189,43.23,United Kingdom Atomic Energy Authority,United Kingdom Atomic Energy Authority
05/08/2013,MATERIALS & SPARES,FUSION,RS COMPONENTS LTD,5100292210,43.74,United Kingdom Atomic Energy Authority,United Kingdom Atomic Energy Authority
12/08/2013,MATERIALS & SPARES,FUSION,RS COMPONENTS LTD,5100292523,44.00,United Kingdom Atomic Energy Authority,United Kingdom Atomic Energy Authority
14/08/2013,MATERIALS & SPARES,FUSION,RS COMPONENTS LTD,5100292517,47.66,United Kingdom Atomic Energy Authority,United Kingdom Atomic Energy Authority
29/07/2013,MATERIALS & SPARES,FUSION,RS COMPONENTS LTD,5100291984,48.33,United Kingdom Atomic Energy Authority,United Kingdom Atomic Energy Authority
19/08/2013,MATERIALS & SPARES,FUSION,RS COMPONENTS LTD,5100292512,49.55,United Kingdom Atomic Energy Authority,United Kingdom Atomic Energy Authority
07/08/2013,MATERIALS & SPARES,FUSION,RS COMPONENTS LTD,5100292188,49.78,United Kingdom Atomic Energy Authority,United Kingdom Atomic Energy Authority
29/07/2013,MATERIALS & SPARES,FUSION,RS COMPONENTS LTD,5100291997,51.61,United Kingdom Atomic Energy Authority,United Kingdom Atomic Energy Authority
29/07/2013,MATERIALS & SPARES,FUSION,RS COMPONENTS LTD,5100291724,52.05,United Kingdom Atomic Energy Authority,United Kingdom Atomic Energy Authority
05/08/2013,MATERIALS & SPARES,FUSION,RS COMPONENTS LTD,5100292192,53.55,United Kingdom Atomic Energy Authority,United Kingdom Atomic Energy Authority
29/07/2013,MATERIALS & SPARES,FUSION,RS COMPONENTS LTD,5100291991,54.24,United Kingdom Atomic Energy Authority,United Kingdom Atomic Energy Authority
05/08/2013,MATERIALS & SPARES,FUSION,RS COMPONENTS LTD,5100292184,54.38,United Kingdom Atomic Energy Authority,United Kingdom Atomic Energy Authority
07/08/2013,MATERIALS & SPARES,FUSION,RS COMPONENTS LTD,5100292218,54.38,United Kingdom Atomic Energy Authority,United Kingdom Atomic Energy Authority
07/08/2013,MATERIALS & SPARES,FUSION,RS COMPONENTS LTD,5100292186,58.35,United Kingdom Atomic Energy Authority,United Kingdom Atomic Energy Authority
12/08/2013,MATERIALS & SPARES,FUSION,RS COMPONENTS LTD,5100292522,58.54,United Kingdom Atomic Energy Authority,United Kingdom Atomic Energy Authority
19/08/2013,MATERIALS & SPARES,FUSION,RS COMPONENTS LTD,5100292715,59.76,United Kingdom Atomic Energy Authority,United Kingdom Atomic Energy Authority
05/08/2013,MATERIALS & SPARES,FUSION,RS COMPONENTS LTD,5100292203,59.82,United Kingdom Atomic Energy Authority,United Kingdom Atomic Energy Authority
05/08/2013,MATERIALS & SPARES,FUSION,RS COMPONENTS LTD,5100292187,65.45,United Kingdom Atomic Energy Authority,United Kingdom Atomic Energy Authority
12/08/2013,MATERIALS & SPARES,FUSION,RS COMPONENTS LTD,5100292485,65.58,United Kingdom Atomic Energy Authority,United Kingdom Atomic Energy Authority
19/08/2013,MATERIALS & SPARES,FUSION,RS COMPONENTS LTD,5100292710,67.94,United Kingdom Atomic Energy Authority,United Kingdom Atomic Energy Authority
05/08/2013,MATERIALS & SPARES,FUSION,RS COMPONENTS LTD,5100292215,69.25,United Kingdom Atomic Energy Authority,United Kingdom Atomic Energy Authority
29/07/2013,MATERIALS & SPARES,FUSION,RS COMPONENTS LTD,5100291992,71.40,United Kingdom Atomic Energy Authority,United Kingdom Atomic Energy Authority
29/07/2013,MATERIALS & SPARES,FUSION,RS COMPONENTS LTD,5100292005,79.75,United Kingdom Atomic Energy Authority,United Kingdom Atomic Energy Authority
14/08/2013,MATERIALS & SPARES,FUSION,RS COMPONENTS LTD,5100292519,82.44,United Kingdom Atomic Energy Authority,United Kingdom Atomic Energy Authority
07/08/2013,MATERIALS & SPARES,FUSION,RS COMPONENTS LTD,5100292190,85.71,United Kingdom Atomic Energy Authority,United Kingdom Atomic Energy Authority
19/08/2013,MATERIALS & SPARES,FUSION,RS COMPONENTS LTD,5100291720,89.88,United Kingdom Atomic Energy Authority,United Kingdom Atomic Energy Authority
05/08/2013,MATERIALS & SPARES,FUSION,RS COMPONENTS LTD,5100292205,93.63,United Kingdom Atomic Energy Authority,United Kingdom Atomic Energy Authority
05/08/2013,MATERIALS & SPARES,FUSION,RS COMPONENTS LTD,5100292178,96.70,United Kingdom Atomic Energy Authority,United Kingdom Atomic Energy Authority
05/08/2013,MATERIALS & SPARES,FUSION,RS COMPONENTS LTD,5100292180,101.57,United Kingdom Atomic Energy Authority,United Kingdom Atomic Energy Authority
29/07/2013,MATERIALS & SPARES,FUSION,RS COMPONENTS LTD,5100291295,106.24,United Kingdom Atomic Energy Authority,United Kingdom Atomic Energy Authority
12/08/2013,MATERIALS & SPARES,FUSION,RS COMPONENTS LTD,5100292510,116.54,United Kingdom Atomic Energy Authority,United Kingdom Atomic Energy Authority
29/07/2013,MATERIALS & SPARES,FUSION,RS COMPONENTS LTD,5100291986,117.38,United Kingdom Atomic Energy Authority,United Kingdom Atomic Energy Authority
29/07/2013,MATERIALS & SPARES,FUSION,RS COMPONENTS LTD,5100291742,120.74,United Kingdom Atomic Energy Authority,United Kingdom Atomic Energy Authority
14/08/2013,MATERIALS & SPARES,FUSION,RS COMPONENTS LTD,5100292516,123.37,United Kingdom Atomic Energy Authority,United Kingdom Atomic Energy Authority
29/07/2013,MATERIALS & SPARES,FUSION,RS COMPONENTS LTD,5100291988,128.35,United Kingdom Atomic Energy Authority,United Kingdom Atomic Energy Authority
12/08/2013,MATERIALS & SPARES,FUSION,RS COMPONENTS LTD,5100292520,139.25,United Kingdom Atomic Energy Authority,United Kingdom Atomic Energy Authority
29/07/2013,MATERIALS & SPARES,FUSION,RS COMPONENTS LTD,5100291971,140.54,United Kingdom Atomic Energy Authority,United Kingdom Atomic Energy Authority
19/08/2013,MATERIALS & SPARES,FUSION,RS COMPONENTS LTD,5100292712,145.00,United Kingdom Atomic Energy Authority,United Kingdom Atomic Energy Authority
05/08/2013,MATERIALS & SPARES,FUSION,RS COMPONENTS LTD,5100292214,152.24,United Kingdom Atomic Energy Authority,United Kingdom Atomic Energy Authority
07/08/2013,MATERIALS & SPARES,FUSION,RS COMPONENTS LTD,5100292209,154.44,United Kingdom Atomic Energy Authority,United Kingdom Atomic Energy Authority
19/08/2013,MATERIALS & SPARES,FUSION,RS COMPONENTS LTD,5100292698,159.06,United Kingdom Atomic Energy Authority,United Kingdom Atomic Energy Authority
12/08/2013,MATERIALS & SPARES,FUSION,RS COMPONENTS LTD,5100292488,159.43,United Kingdom Atomic Energy Authority,United Kingdom Atomic Energy Authority
05/08/2013,MATERIALS & SPARES,FUSION,RS COMPONENTS LTD,5100292204,174.25,United Kingdom Atomic Energy Authority,United Kingdom Atomic Energy Authority
19/08/2013,MATERIALS & SPARES,FUSION,RS COMPONENTS LTD,5100292179,190.40,United Kingdom Atomic Energy Authority,United Kingdom Atomic Energy Authority
14/08/2013,MATERIALS & SPARES,FUSION,RS COMPONENTS LTD,5100292514,202.12,United Kingdom Atomic Energy Authority,United Kingdom Atomic Energy Authority
05/08/2013,MATERIALS & SPARES,FUSION,RS COMPONENTS LTD,5100292217,211.50,United Kingdom Atomic Energy Authority,United Kingdom Atomic Energy Authority
29/07/2013,MATERIALS & SPARES,FUSION,RS COMPONENTS LTD,5100291999,217.00,United Kingdom Atomic Energy Authority,United Kingdom Atomic Energy Authority
12/08/2013,MATERIALS & SPARES,FUSION,RS COMPONENTS LTD,5100292521,217.50,United Kingdom Atomic Energy Authority,United Kingdom Atomic Energy Authority
19/08/2013,MATERIALS & SPARES,FUSION,RS COMPONENTS LTD,5100292716,222.22,United Kingdom Atomic Energy Authority,United Kingdom Atomic Energy Authority
29/07/2013,MATERIALS & SPARES,FUSION,RS COMPONENTS LTD,5100291987,236.70,United Kingdom Atomic Energy Authority,United Kingdom Atomic Energy Authority
05/08/2013,MATERIALS & SPARES,FUSION,RS COMPONENTS LTD,5100292183,273.82,United Kingdom Atomic Energy Authority,United Kingdom Atomic Energy Authority
29/07/2013,MATERIALS & SPARES,FUSION,RS COMPONENTS LTD,5100291746,282.46,United Kingdom Atomic Energy Authority,United Kingdom Atomic Energy Authority
31/07/2013,MATERIALS & SPARES,FUSION,RS COMPONENTS LTD,5100291978,284.20,United Kingdom Atomic Energy Authority,United Kingdom Atomic Energy Authority
29/07/2013,MATERIALS & SPARES,FUSION,RS COMPONENTS LTD,5100291969,350.51,United Kingdom Atomic Energy Authority,United Kingdom Atomic Energy Authority
19/08/2013,MATERIALS & SPARES,FUSION,RS COMPONENTS LTD,5100292533,353.19,United Kingdom Atomic Energy Authority,United Kingdom Atomic Energy Authority
29/07/2013,MATERIALS & SPARES,FUSION,RS COMPONENTS LTD,5100291975,389.98,United Kingdom Atomic Energy Authority,United Kingdom Atomic Energy Authority
29/07/2013,MATERIALS & SPARES,FUSION,RS COMPONENTS LTD,5100292006,402.24,United Kingdom Atomic Energy Authority,United Kingdom Atomic Energy Authority
29/07/2013,MATERIALS & SPARES,FUSION,RS COMPONENTS LTD,5100291970,403.62,United Kingdom Atomic Energy Authority,United Kingdom Atomic Energy Authority
05/08/2013,MATERIALS & SPARES,FUSION,RS COMPONENTS LTD,5100292176,447.38,United Kingdom Atomic Energy Authority,United Kingdom Atomic Energy Authority
19/08/2013,MATERIALS & SPARES,FUSION,RS COMPONENTS LTD,5100292699,449.39,United Kingdom Atomic Energy Authority,United Kingdom Atomic Energy Authority
29/07/2013,MATERIALS & SPARES,FUSION,RS COMPONENTS LTD,5100291995,458.46,United Kingdom Atomic Energy Authority,United Kingdom Atomic Energy Authority
14/08/2013,MATERIALS & SPARES,FUSION,RS COMPONENTS LTD,5100292513,520.07,United Kingdom Atomic Energy Authority,United Kingdom Atomic Energy Authority
12/08/2013,MATERIALS & SPARES,FUSION,RS COMPONENTS LTD,5100292509,635.07,United Kingdom Atomic Energy Authority,United Kingdom Atomic Energy Authority
29/07/2013,MATERIALS & SPARES,FUSION,RS COMPONENTS LTD,5100291996,640.50,United Kingdom Atomic Energy Authority,United Kingdom Atomic Energy Authority
19/08/2013,MATERIALS & SPARES,FUSION,RS COMPONENTS LTD,5100292494,660.46,United Kingdom Atomic Energy Authority,United Kingdom Atomic Energy Authority
29/07/2013,MATERIALS & SPARES,FUSION,RS COMPONENTS LTD,5100291976,768.60,United Kingdom Atomic Energy Authority,United Kingdom Atomic Energy Authority
29/07/2013,MATERIALS & SPARES,FUSION,RS COMPONENTS LTD,5100291760,"1,297.77",United Kingdom Atomic Energy Authority,United Kingdom Atomic Energy Authority
29/07/2013,MATERIALS & SPARES,FUSION,RS COMPONENTS LTD,5100291161,"1,874.70",United Kingdom Atomic Energy Authority,United Kingdom Atomic Energy Authority
12/08/2013,HIRED STAFF,FUSION,RULLION ENGINEERING PERSONNEL LTD,5100292455,"2,904.13",United Kingdom Atomic Energy Authority,United Kingdom Atomic Energy Authority
29/07/2013,CONSUMABLES,PROPERTY,SALT UNION LTD,5100291880,"1,365.54",United Kingdom Atomic Energy Authority,United Kingdom Atomic Energy Authority
07/08/2013,IT EQUIPMENT NON CAPITAL,FUSION,SCAN COMPUTERS INTERNATIONAL LTD,5100292133,125.46,United Kingdom Atomic Energy Authority,United Kingdom Atomic Energy Authority
29/07/2013,IT EQUIPMENT NON CAPITAL,FUSION,SCAN COMPUTERS INTERNATIONAL LTD,5100291913,"3,922.34",United Kingdom Atomic Energy Authority,United Kingdom Atomic Energy Authority
19/08/2013,IT EQUIPMENT NON CAPITAL,FUSION,SCAN COMPUTERS INTERNATIONAL LTD,5100292707,"4,621.66",United Kingdom Atomic Energy Authority,United Kingdom Atomic Energy Authority
12/08/2013,PLANT & EQUIPMENT,FUSION,SCHMERSAL LTD,5100292299,197.84,United Kingdom Atomic Energy Authority,United Kingdom Atomic Energy Authority
19/08/2013,MATERIALS & SPARES,FUSION,SCHNEIDER ELECTRIC LIMITED,5100292736,307.68,United Kingdom Atomic Energy Authority,United Kingdom Atomic Energy Authority
12/08/2013,MATERIALS & SPARES,FUSION,SCHNEIDER ELECTRIC LIMITED,5100292435,"8,060.00",United Kingdom Atomic Energy Authority,United Kingdom Atomic Energy Authority
29/07/2013,MATERIALS & SPARES,FUSION,SCHROFF UK LTD,5100291961,28.32,United Kingdom Atomic Energy Authority,United Kingdom Atomic Energy Authority
19/08/2013,MATERIALS & SPARES,FUSION,SCHROFF UK LTD,5100292554,88.54,United Kingdom Atomic Energy Authority,United Kingdom Atomic Energy Authority
31/07/2013,MATERIALS & SPARES,FUSION,SCHROFF UK LTD,5100291756,648.24,United Kingdom Atomic Energy Authority,United Kingdom Atomic Energy Authority
29/07/2013,PROFESSIONAL SERVICES,FUSION,SCIENTIFICS LTD,5100291873,75.00,United Kingdom Atomic Energy Authority,United Kingdom Atomic Energy Authority
07/08/2013,PROFESSIONAL SERVICES,FUSION,SCIENTIFICS LTD,5100291862,115.00,United Kingdom Atomic Energy Authority,United Kingdom Atomic Energy Authority
07/08/2013,PROFESSIONAL SERVICES,FUSION,SCIENTIFICS LTD,5100291861,235.00,United Kingdom Atomic Energy Authority,United Kingdom Atomic Energy Authority
07/08/2013,PROFESSIONAL SERVICES,FUSION,SCIENTIFICS LTD,5100292110,235.00,United Kingdom Atomic Energy Authority,United Kingdom Atomic Energy Authority
21/08/2013,PROFESSIONAL SERVICES,FUSION,SCIENTIFICS LTD,5100292618,235.00,United Kingdom Atomic Energy Authority,United Kingdom Atomic Energy Authority
19/08/2013,PROFESSIONAL SERVICES,FUSION,SCIENTIFICS LTD,5100292489,275.00,United Kingdom Atomic Energy Authority,United Kingdom Atomic Energy Authority
07/08/2013,PROFESSIONAL SERVICES,FUSION,SCIENTIFICS LTD,5100292118,900.00,United Kingdom Atomic Energy Authority,United Kingdom Atomic Energy Authority
05/08/2013,PROFESSIONAL SERVICES,FUSION,SCIENTIFICS LTD,5100292109,"1,755.00",United Kingdom Atomic Energy Authority,United Kingdom Atomic Energy Authority
12/08/2013,PROFESSIONAL SERVICES,FUSION,SCIENTIFICS LTD,5100292483,"2,160.00",United Kingdom Atomic Energy Authority,United Kingdom Atomic Energy Authority
12/08/2013,PROFESSIONAL SERVICES,FUSION,SCIENTIFICS LTD,5100292486,"2,160.00",United Kingdom Atomic Energy Authority,United Kingdom Atomic Energy Authority
19/08/2013,SITE SUPPORT SERVICES,PROPERTY,SCION ESTATES,5100292562,"1,310.00",United Kingdom Atomic Energy Authority,United Kingdom Atomic Energy Authority
19/08/2013,SITE SUPPORT SERVICES,PROPERTY,SCION ESTATES,5100292566,"2,645.00",United Kingdom Atomic Energy Authority,United Kingdom Atomic Energy Authority
12/08/2013,SITE SUPPORT SERVICES,PROPERTY,SCION ESTATES,5100292424,"10,462.67",United Kingdom Atomic Energy Authority,United Kingdom Atomic Energy Authority
19/08/2013,MATERIALS & SPARES,FUSION,SCREWFIX DIRECT LTD,5100292737,20.80,United Kingdom Atomic Energy Authority,United Kingdom Atomic Energy Authority
19/08/2013,MATERIALS & SPARES,FUSION,SCREWFIX DIRECT LTD,5100292738,20.80,United Kingdom Atomic Energy Authority,United Kingdom Atomic Energy Authority
05/08/2013,MATERIALS & SPARES,FUSION,SCREWFIX DIRECT LTD,5100291801,26.02,United Kingdom Atomic Energy Authority,United Kingdom Atomic Energy Authority
05/08/2013,MATERIALS & SPARES,FUSION,SCREWFIX DIRECT LTD,5100292202,94.52,United Kingdom Atomic Energy Authority,United Kingdom Atomic Energy Authority
05/08/2013,CONSUMABLES,FUSION,SEAWARD ELECTRONIC LTD,5100291531,910.00,United Kingdom Atomic Energy Authority,United Kingdom Atomic Energy Authority
12/08/2013,SECURITY & EMERGENCY,PROPERTY,SHRED-IT,5100292423,325.00,United Kingdom Atomic Energy Authority,United Kingdom Atomic Energy Authority
29/07/2013,MATERIALS & SPARES,FUSION,SILGO LUBRICANTS,5100291810,"4,920.00",United Kingdom Atomic Energy Authority,United Kingdom Atomic Energy Authority
29/07/2013,PLANT & EQUIPMENT,FUSION,SM GAUGE COMPANY LIMITED,5100291803,126.00,United Kingdom Atomic Energy Authority,United Kingdom Atomic Energy Authority
13/08/2013,REGULATORY COSTS,FUSION,South Oxfordshire District Council,1900058663,770.00,United Kingdom Atomic Energy Authority,United Kingdom Atomic Energy Authority
14/08/2013,RATES,PROPERTY,SOUTH OXFORDSHIRE DISTRICT COUNCIL,5100292605,"68,766.00",United Kingdom Atomic Energy Authority,United Kingdom Atomic Energy Authority
14/08/2013,RATES,PROPERTY,SOUTH OXFORDSHIRE DISTRICT COUNCIL,5100292606,"125,286.00",United Kingdom Atomic Energy Authority,United Kingdom Atomic Energy Authority
05/08/2013,MATERIALS & SPARES,FUSION,SP SERVICES UK LTD,5100292033,11.00,United Kingdom Atomic Energy Authority,United Kingdom Atomic Energy Authority
31/07/2013,MATERIALS & SPARES,FUSION,SP SERVICES UK LTD,5100291903,50.36,United Kingdom Atomic Energy Authority,United Kingdom Atomic Energy Authority
29/07/2013,MATERIALS & SPARES,FUSION,SP SERVICES UK LTD,5100291763,96.05,United Kingdom Atomic Energy Authority,United Kingdom Atomic Energy Authority
19/08/2013,PLANT & EQUIPMENT,FUSION,SPANOPTIC LTD,5100292582,571.00,United Kingdom Atomic Energy Authority,United Kingdom Atomic Energy Authority
12/08/2013,PLANT & EQUIPMENT,FUSION,SPANOPTIC LTD,5100292279,"1,187.00",United Kingdom Atomic Energy Authority,United Kingdom Atomic Energy Authority
19/08/2013,PROFESSIONAL SERVICES,FUSION,SPECIALIST WELDING SERVICES,5100292575,180.00,United Kingdom Atomic Energy Authority,United Kingdom Atomic Energy Authority
29/07/2013,SOFTWARE,FUSION,SPIDEX SOFTWARE LTD,5100291979,"2,700.00",United Kingdom Atomic Energy Authority,United Kingdom Atomic Energy Authority
06/08/2013,TRAINING COURSE FEES,FUSION,Sprachenschule Doppelpunkt,1900058619,738.73,United Kingdom Atomic Energy Authority,United Kingdom Atomic Energy Authority
21/08/2013,CONFERENCES/MEETINGS,FUSION,St Anne's College Services Co Ltd,1900058694,900.00,United Kingdom Atomic Energy Authority,United Kingdom Atomic Energy Authority
05/08/2013,CONFERENCES ,FUSION,ST EDMUND HALL,5100292111,"2,989.79",United Kingdom Atomic Energy Authority,United Kingdom Atomic Energy Authority
19/08/2013,CONFERENCES ,FUSION,ST EDMUND HALL,5100292691,"26,631.08",United Kingdom Atomic Energy Authority,United Kingdom Atomic Energy Authority
19/08/2013,CONSUMABLES,FUSION,STRUERS LTD,5100292371,"-1,000.00",United Kingdom Atomic Energy Authority,United Kingdom Atomic Energy Authority
19/08/2013,CONSUMABLES,FUSION,STRUERS LTD,5100289891,78.00,United Kingdom Atomic Energy Authority,United Kingdom Atomic Energy Authority
19/08/2013,CONSUMABLES,FUSION,STRUERS LTD,5100289597,277.00,United Kingdom Atomic Energy Authority,United Kingdom Atomic Energy Authority
19/08/2013,CONSUMABLES,FUSION,STRUERS LTD,5100289889,"3,235.00",United Kingdom Atomic Energy Authority,United Kingdom Atomic Energy Authority
14/08/2013,VEHICLE REPAIRS,FUSION,SUTTON COURTENAY TYRES,5100292227,359.00,United Kingdom Atomic Energy Authority,United Kingdom Atomic Energy Authority
14/08/2013,PROFESSIONAL SERVICES,FUSION,SWAGELOK LONDON,5100291571,92.71,United Kingdom Atomic Energy Authority,United Kingdom Atomic Energy Authority
14/08/2013,PROFESSIONAL SERVICES,FUSION,SWAGELOK LONDON,5100292073,109.25,United Kingdom Atomic Energy Authority,United Kingdom Atomic Energy Authority
14/08/2013,PROFESSIONAL SERVICES,FUSION,SWAGELOK LONDON,5100292023,122.21,United Kingdom Atomic Energy Authority,United Kingdom Atomic Energy Authority
05/08/2013,PROFESSIONAL SERVICES,FUSION,SWAGELOK LONDON,5100292074,211.00,United Kingdom Atomic Energy Authority,United Kingdom Atomic Energy Authority
12/08/2013,PROFESSIONAL SERVICES,FUSION,SWAGELOK LONDON,5100292075,211.73,United Kingdom Atomic Energy Authority,United Kingdom Atomic Energy Authority
21/08/2013,PROFESSIONAL SERVICES,FUSION,SWAGELOK LONDON,5100292560,368.87,United Kingdom Atomic Energy Authority,United Kingdom Atomic Energy Authority
14/08/2013,PROFESSIONAL SERVICES,FUSION,SWAGELOK LONDON,5100292151,377.19,United Kingdom Atomic Energy Authority,United Kingdom Atomic Energy Authority
14/08/2013,PROFESSIONAL SERVICES,FUSION,SWAGELOK LONDON,5100292072,504.90,United Kingdom Atomic Energy Authority,United Kingdom Atomic Energy Authority
29/07/2013,PROFESSIONAL SERVICES,FUSION,SWAGELOK LONDON,5100291835,539.22,United Kingdom Atomic Energy Authority,United Kingdom Atomic Energy Authority
14/08/2013,PROFESSIONAL SERVICES,FUSION,SWAGELOK LONDON,5100292107,"1,508.76",United Kingdom Atomic Energy Authority,United Kingdom Atomic Energy Authority
21/08/2013,PROFESSIONAL SERVICES,FUSION,SWAGELOK LONDON,5100292572,"1,718.53",United Kingdom Atomic Energy Authority,United Kingdom Atomic Energy Authority
14/08/2013,PROFESSIONAL SERVICES,FUSION,SWAGELOK LONDON,5100291577,"2,331.50",United Kingdom Atomic Energy Authority,United Kingdom Atomic Energy Authority
05/08/2013,TRAINING COSTS,SUPPORT SERVICES,SWETS INFORMATION SERVICES LTD,5100292106,"3,487.85",United Kingdom Atomic Energy Authority,United Kingdom Atomic Energy Authority
29/07/2013,CONSUMABLES,SUPPORT SERVICES,SYNERGY HEALTH LABORATORY SERVICES,5100291949,87.50,United Kingdom Atomic Energy Authority,United Kingdom Atomic Energy Authority
12/08/2013,HIRED STAFF,FUSION,TESSELLA PLC,5100292357,"9,552.73",United Kingdom Atomic Energy Authority,United Kingdom Atomic Energy Authority
12/08/2013,HIRED STAFF,FUSION,TESSELLA PLC,5100292356,"12,035.70",United Kingdom Atomic Energy Authority,United Kingdom Atomic Energy Authority
12/08/2013,HIRED STAFF,FUSION,TESSELLA PLC,5100292354,"12,306.15",United Kingdom Atomic Energy Authority,United Kingdom Atomic Energy Authority
19/08/2013,PLANT SPARES,FUSION,TEWKESBURY (DIAMOND CHROMS) PLATING,5100287695,640.00,United Kingdom Atomic Energy Authority,United Kingdom Atomic Energy Authority
14/08/2013,PLANT SPARES,FUSION,THAMES RESTEK UK LIMITED ,5100292171,84.67,United Kingdom Atomic Energy Authority,United Kingdom Atomic Energy Authority
07/08/2013,PLANT & EQUIPMENT,FUSION,THAMES VALLEY SAW SERVICE LTD,5100292228,669.20,United Kingdom Atomic Energy Authority,United Kingdom Atomic Energy Authority
05/08/2013,UTILITIES/WATER,PROPERTY,THAMES WATER UTILITIES,5100292154,"5,048.07",United Kingdom Atomic Energy Authority,United Kingdom Atomic Energy Authority
12/08/2013,UTILITIES/WATER,PROPERTY,THAMES WATER UTILITIES,5100292440,"33,838.81",United Kingdom Atomic Energy Authority,United Kingdom Atomic Energy Authority
29/07/2013,MATERIALS & SPARES,FUSION,THE BARCODE WAREHOUSE LTD,5100291867,260.59,United Kingdom Atomic Energy Authority,United Kingdom Atomic Energy Authority
12/08/2013,BOOKS & PUBLICATIONS,SUPPORT SERVICES,THE BRITISH LIBRARY,5100292281,12.00,United Kingdom Atomic Energy Authority,United Kingdom Atomic Energy Authority
12/08/2013,BOOKS & PUBLICATIONS,SUPPORT SERVICES,THE BRITISH LIBRARY,5100292282,136.00,United Kingdom Atomic Energy Authority,United Kingdom Atomic Energy Authority
12/08/2013,PROFESSIONAL SERVICES,SUPPORT SERVICES,THE COPYRIGHT LICENSING AGENCY LIMI,5100292225,"7,854.80",United Kingdom Atomic Energy Authority,United Kingdom Atomic Energy Authority
01/08/2013,TRAINING COURSE FEES,FUSION,The IET,1900058595,"2,640.00",United Kingdom Atomic Energy Authority,United Kingdom Atomic Energy Authority
05/08/2013,PLANT & EQUIPMENT,FUSION,THE RALIN GROUP LTD,5100290864,539.20,United Kingdom Atomic Energy Authority,United Kingdom Atomic Energy Authority
05/08/2013,PLANT & EQUIPMENT,FUSION,THE RALIN GROUP LTD,5100290863,"12,552.10",United Kingdom Atomic Energy Authority,United Kingdom Atomic Energy Authority
12/08/2013,BOOKS & PUBLICATIONS,SUPPORT SERVICES,THE STATIONERY OFFICE,5100292438,"2,342.65",United Kingdom Atomic Energy Authority,United Kingdom Atomic Energy Authority
05/08/2013,PLANT & EQUIPMENT,PROPERTY,THERMAC (HIRE) LTD,5100292198,74.04,United Kingdom Atomic Energy Authority,United Kingdom Atomic Energy Authority
12/08/2013,MATERIALS & SPARES,FUSION,THORLABS LTD,5100292303,24.80,United Kingdom Atomic Energy Authority,United Kingdom Atomic Energy Authority
29/07/2013,MATERIALS & SPARES,FUSION,THORLABS LTD,5100291874,121.70,United Kingdom Atomic Energy Authority,United Kingdom Atomic Energy Authority
12/08/2013,MATERIALS & SPARES,FUSION,THORLABS LTD,5100292224,646.73,United Kingdom Atomic Energy Authority,United Kingdom Atomic Energy Authority
19/08/2013,MATERIALS & SPARES,FUSION,THORLABS LTD,5100292597,726.64,United Kingdom Atomic Energy Authority,United Kingdom Atomic Energy Authority
12/08/2013,BUILDING REPAIRS,FUSION,TILL & WHITEHEAD LTD,5100292338,6.38,United Kingdom Atomic Energy Authority,United Kingdom Atomic Energy Authority
12/08/2013,BUILDING REPAIRS,FUSION,TILL & WHITEHEAD LTD,5100292340,41.58,United Kingdom Atomic Energy Authority,United Kingdom Atomic Energy Authority
12/08/2013,BUILDING REPAIRS,FUSION,TILL & WHITEHEAD LTD,5100292336,203.76,United Kingdom Atomic Energy Authority,United Kingdom Atomic Energy Authority
12/08/2013,BUILDING REPAIRS,FUSION,TILL & WHITEHEAD LTD,5100292339,204.84,United Kingdom Atomic Energy Authority,United Kingdom Atomic Energy Authority
12/08/2013,BUILDING REPAIRS,FUSION,TILL & WHITEHEAD LTD,5100292337,220.40,United Kingdom Atomic Energy Authority,United Kingdom Atomic Energy Authority
30/07/2013,MATERIALS & SPARES,FUSION,Tiverton Fabrications Ltd,1900058569,142.51,United Kingdom Atomic Energy Authority,United Kingdom Atomic Energy Authority
12/08/2013,MATERIALS & SPARES,FUSION,TLC DIRECT,5100292473,482.50,United Kingdom Atomic Energy Authority,United Kingdom Atomic Energy Authority
14/08/2013,RECRUITMENT COSTS,FUSION,TMP (UK) LTD,5100290723,609.10,United Kingdom Atomic Energy Authority,United Kingdom Atomic Energy Authority
29/07/2013,SOFTWARE,FUSION,TRANSCENDATA EUROPE LIMITED,5100291366,"2,365.00",United Kingdom Atomic Energy Authority,United Kingdom Atomic Energy Authority
14/08/2013,HIRED STAFF,FUSION,TRASYS,5100291955,"7,004.85",United Kingdom Atomic Energy Authority,United Kingdom Atomic Energy Authority
31/07/2013,HIRED STAFF,FUSION,TRASYS,5100291954,"7,794.75",United Kingdom Atomic Energy Authority,United Kingdom Atomic Energy Authority
14/08/2013,HIRED STAFF,FUSION,TRASYS,5100291952,"9,082.61",United Kingdom Atomic Energy Authority,United Kingdom Atomic Energy Authority
31/07/2013,HIRED STAFF,FUSION,TRASYS,5100291953,"10,815.00",United Kingdom Atomic Energy Authority,United Kingdom Atomic Energy Authority
14/08/2013,SECURITY & EMERGENCY,PROPERTY,TRINITY PROTETION SYSTEMS,5100292426,40.86,United Kingdom Atomic Energy Authority,United Kingdom Atomic Energy Authority
05/08/2013,SECURITY & EMERGENCY,PROPERTY,TRINITY PROTETION SYSTEMS,5100291974,"2,701.47",United Kingdom Atomic Energy Authority,United Kingdom Atomic Energy Authority
29/07/2013,MATERIALS & SPARES,FUSION,TVH,5100291779,116.40,United Kingdom Atomic Energy Authority,United Kingdom Atomic Energy Authority
19/08/2013,MATERIALS & SPARES,FUSION,TVH,5100292238,242.26,United Kingdom Atomic Energy Authority,United Kingdom Atomic Energy Authority
29/07/2013,MATERIALS & SPARES,FUSION,TVH,5100291780,286.60,United Kingdom Atomic Energy Authority,United Kingdom Atomic Energy Authority
12/08/2013,REPAIRS & MAINTENANCE,FUSION,UK Drive Systems Ltd,1900058651,322.20,United Kingdom Atomic Energy Authority,United Kingdom Atomic Energy Authority
12/08/2013,MATERIALS & SPARES,FUSION,UNDERWOODS ELECTRICAL DISTRIBUTORS,5100292328,262.52,United Kingdom Atomic Energy Authority,United Kingdom Atomic Energy Authority
29/07/2013,MATERIALS & SPARES,FUSION,UNDERWOODS ELECTRICAL DISTRIBUTORS,5100291817,391.00,United Kingdom Atomic Energy Authority,United Kingdom Atomic Energy Authority
19/08/2013,UNIVERSITY PLACEMENT,FUSION,UNIVERSITY OF DURHAM,5100292048,"3,951.01",United Kingdom Atomic Energy Authority,United Kingdom Atomic Energy Authority
29/07/2013,UNIVERSITY PLACEMENT,FUSION,UNIVERSITY OF LIVERPOOL,5100291981,570.00,United Kingdom Atomic Energy Authority,United Kingdom Atomic Energy Authority
12/08/2013,UNIVERSITY PLACEMENT,FUSION,UNIVERSITY OF YORK,5100292318,"1,431.43",United Kingdom Atomic Energy Authority,United Kingdom Atomic Energy Authority
12/08/2013,UNIVERSITY PLACEMENT,FUSION,UNIVERSITY OF YORK,5100292319,"1,431.43",United Kingdom Atomic Energy Authority,United Kingdom Atomic Energy Authority
12/08/2013,UNIVERSITY PLACEMENT,FUSION,UNIVERSITY OF YORK,5100292313,"1,945.45",United Kingdom Atomic Energy Authority,United Kingdom Atomic Energy Authority
12/08/2013,UNIVERSITY PLACEMENT,FUSION,UNIVERSITY OF YORK,5100292315,"2,067.25",United Kingdom Atomic Energy Authority,United Kingdom Atomic Energy Authority
12/08/2013,UNIVERSITY PLACEMENT,FUSION,UNIVERSITY OF YORK,5100292314,"2,072.66",United Kingdom Atomic Energy Authority,United Kingdom Atomic Energy Authority
12/08/2013,UNIVERSITY PLACEMENT,FUSION,UNIVERSITY OF YORK,5100292317,"2,985.16",United Kingdom Atomic Energy Authority,United Kingdom Atomic Energy Authority
19/08/2013,UNIVERSITY PLACEMENT,FUSION,UNIVERSITY OF YORK,5100292613,"5,848.09",United Kingdom Atomic Energy Authority,United Kingdom Atomic Energy Authority
31/07/2013,MATERIALS & SPARES,FUSION,VACOM VAKUUM KOMPONENTEN,5100291380,161.53,United Kingdom Atomic Energy Authority,United Kingdom Atomic Energy Authority
12/08/2013,IT EQUIPMENT NON CAPITAL,FUSION,VIDEK LTD,5100292277,737.95,United Kingdom Atomic Energy Authority,United Kingdom Atomic Energy Authority
03/08/2013,EFDA TRAVEL EXPENSES,FUSION,VISITOR EXPENSES,100694170,4.50,United Kingdom Atomic Energy Authority,United Kingdom Atomic Energy Authority
07/08/2013,VISITOR EXPENSES,SUPPORT SERVICES,VISITOR EXPENSES,1900058634,24.30,United Kingdom Atomic Energy Authority,United Kingdom Atomic Energy Authority
06/08/2013,VISITOR EXPENSES,FUSION,VISITOR EXPENSES,1900058608,120.00,United Kingdom Atomic Energy Authority,United Kingdom Atomic Energy Authority
06/08/2013,VISITOR EXPENSES,FUSION,VISITOR EXPENSES,1900058609,120.00,United Kingdom Atomic Energy Authority,United Kingdom Atomic Energy Authority
06/08/2013,VISITOR EXPENSES,FUSION,VISITOR EXPENSES,1900058612,153.10,United Kingdom Atomic Energy Authority,United Kingdom Atomic Energy Authority
03/08/2013,EFDA TRAVEL EXPENSES,FUSION,VISITOR EXPENSES,100694163,187.14,United Kingdom Atomic Energy Authority,United Kingdom Atomic Energy Authority
03/08/2013,EFDA TRAVEL EXPENSES,FUSION,VISITOR EXPENSES,100694162,203.55,United Kingdom Atomic Energy Authority,United Kingdom Atomic Energy Authority
06/08/2013,VISITOR EXPENSES,FUSION,VISITOR EXPENSES,1900058607,248.00,United Kingdom Atomic Energy Authority,United Kingdom Atomic Energy Authority
06/08/2013,VISITOR EXPENSES,FUSION,VISITOR EXPENSES,1900058611,259.80,United Kingdom Atomic Energy Authority,United Kingdom Atomic Energy Authority
06/08/2013,VISITOR EXPENSES,FUSION,VISITOR EXPENSES,1900058613,262.97,United Kingdom Atomic Energy Authority,United Kingdom Atomic Energy Authority
06/08/2013,VISITOR EXPENSES,FUSION,VISITOR EXPENSES,1900058610,274.96,United Kingdom Atomic Energy Authority,United Kingdom Atomic Energy Authority
06/08/2013,VISITOR EXPENSES,FUSION,VISITOR EXPENSES,1900058614,280.00,United Kingdom Atomic Energy Authority,United Kingdom Atomic Energy Authority
07/08/2013,VISITOR EXPENSES,SUPPORT SERVICES,VISITOR EXPENSES,1900058633,280.46,United Kingdom Atomic Energy Authority,United Kingdom Atomic Energy Authority
06/08/2013,VISITOR EXPENSES,FUSION,VISITOR EXPENSES,1900058606,297.70,United Kingdom Atomic Energy Authority,United Kingdom Atomic Energy Authority
19/08/2013,VISITOR EXPENSES,FUSION,VISITOR EXPENSES,1900058678,319.20,United Kingdom Atomic Energy Authority,United Kingdom Atomic Energy Authority
09/08/2013,VISITOR EXPENSES,FUSION,VISITOR EXPENSES,1900058645,349.80,United Kingdom Atomic Energy Authority,United Kingdom Atomic Energy Authority
02/08/2013,VISITOR EXPENSES,FUSION,VISITOR EXPENSES,1900058598,352.65,United Kingdom Atomic Energy Authority,United Kingdom Atomic Energy Authority
06/08/2013,VISITOR EXPENSES,FUSION,VISITOR EXPENSES,1900058602,394.70,United Kingdom Atomic Energy Authority,United Kingdom Atomic Energy Authority
15/08/2013,VISITOR EXPENSES,FUSION,VISITOR EXPENSES,1900058674,404.45,United Kingdom Atomic Energy Authority,United Kingdom Atomic Energy Authority
15/08/2013,VISITOR EXPENSES,FUSION,VISITOR EXPENSES,1900058675,420.16,United Kingdom Atomic Energy Authority,United Kingdom Atomic Energy Authority
10/08/2013,EFDA TRAVEL EXPENSES,FUSION,VISITOR EXPENSES,100694222,680.51,United Kingdom Atomic Energy Authority,United Kingdom Atomic Energy Authority
10/08/2013,EFDA TRAVEL EXPENSES,FUSION,VISITOR EXPENSES,100694224,"1,236.91",United Kingdom Atomic Energy Authority,United Kingdom Atomic Energy Authority
14/08/2013,PROFESSIONAL SERVICES,FUSION,VT NUCLEAR SERVICES LTD,5100292480,150.52,United Kingdom Atomic Energy Authority,United Kingdom Atomic Energy Authority
21/08/2013,PROFESSIONAL SERVICES,FUSION,VWR INTERNATIONAL LTD,5100292656,254.00,United Kingdom Atomic Energy Authority,United Kingdom Atomic Energy Authority
05/08/2013,MATERIALS & SPARES,FUSION,WALL COLMONOY,5100292150,146.90,United Kingdom Atomic Energy Authority,United Kingdom Atomic Energy Authority
05/08/2013,MATERIALS & SPARES,FUSION,WALL COLMONOY,5100292148,"1,017.00",United Kingdom Atomic Energy Authority,United Kingdom Atomic Energy Authority
05/08/2013,MATERIALS & SPARES,FUSION,WALL COLMONOY,5100292149,"1,306.00",United Kingdom Atomic Energy Authority,United Kingdom Atomic Energy Authority
12/08/2013,MATERIALS & SPARES,FUSION,WELLINGTON ENGINEERING,5100292294,400.00,United Kingdom Atomic Energy Authority,United Kingdom Atomic Energy Authority
12/08/2013,MATERIALS & SPARES,FUSION,WELLINGTON ENGINEERING,5100292298,"33,105.50",United Kingdom Atomic Energy Authority,United Kingdom Atomic Energy Authority
01/08/2013,PROFESSIONAL SERVICES,FUSION,Wilde Analysis Ltd,1900058594,"1,806.72",United Kingdom Atomic Energy Authority,United Kingdom Atomic Energy Authority
29/07/2013,MATERIALS & SPARES,FUSION,WOODSTOCK INDUSTRIAL SUPPLIES LTD,5100291834,72.30,United Kingdom Atomic Energy Authority,United Kingdom Atomic Energy Authority
12/08/2013,TRAINING COURSE FEES,PROPERTY,WORKPLACE LAW GROUP LTD,5100292490,249.00,United Kingdom Atomic Energy Authority,United Kingdom Atomic Energy Authority
05/08/2013,PLANT & EQUIPMENT,FUSION,YOKOGAWA MEASUREMENT TECHNOLOGIES,5100292046,94.00,United Kingdom Atomic Energy Authority,United Kingdom Atomic Energy Authority
